Posting date,Supplier number,Supplier name,Expense type,Department,Amount
31/07/2023,1249077,The Advocacy Project,B*Voluntary-Spot-V Dep-Enhanced - do not u,ASC Procurement and Business Intelligenc,51294
11/07/2023,1243869,Addison Lee,HTM / Other Vehicle - Hire Charges,Adult Social Care Finance and Resources,988.94
15/09/2023,1246072,Bates Office Services Ltd,Stationery and other office consumables,Adult Social Care Finance and Resources,520.4
17/08/2023,1297376,Chocolato Ltd,B*SLA - HTLC (teaching& leadership coll,Adult Social Care Finance and Resources,530
20/09/2023,1263368,PERSONAL PAYMENTS,Hire of Accommodation and Facilities,Adult Social Care Finance and Resources,1745
21/07/2023,1243797,Central & North West London Nhs,Hired and Contracted Services,Adult Social Care Finance and Resources,4234
08/08/2023,1243797,Central & North West London Nhs,Hired and Contracted Services,Adult Social Care Finance and Resources,4232
06/07/2023,1243532,Sanctuary Care Ltd,,Adult Social Care Finance and Resources,13577.14
28/07/2023,1249167,TMP (UK) Ltd,Recruitment Expenses (excl. advertising),Adult Social Care Finance and Resources,5670
02/08/2023,1251196,Royal Borough of Kensington and,B*Payments to OLAs - Southampton City Co,Adult Social Care Finance and Resources,26563
02/08/2023,1251196,Royal Borough of Kensington and,B*Payments to OLAs - Southampton City Co,Adult Social Care Finance and Resources,26234
24/07/2023,1245228,Pohwer,Hired and Contracted Services,Adult Social Care Finance and Resources,1576.05
24/07/2023,1245228,Pohwer,Hired and Contracted Services,Adult Social Care Finance and Resources,1837.12
24/07/2023,1245228,Pohwer,Hired and Contracted Services,Adult Social Care Finance and Resources,2756.96
21/08/2023,1245228,Pohwer,Hired and Contracted Services,Adult Social Care Finance and Resources,1853.08
03/09/2023,1248919,Social Business International Ltd,Professional Subscriptions,Adult Social Care Finance and Resources,900
18/07/2023,1246206,Westco Trading ltd,Hired and Contracted Services,Adult Social Care Finance and Resources,3613.8
18/07/2023,1246206,Westco Trading ltd,Hired and Contracted Services,Adult Social Care Finance and Resources,855
18/07/2023,1246206,Westco Trading ltd,Hired and Contracted Services,Adult Social Care Finance and Resources,2280
02/08/2023,1251196,Royal Borough of Kensington and,B*Payments to OLAs - Southampton City Co,Adult Social Care Finance and Resources,18767
17/07/2023,D000000016,GENERAL,Grant Aid and Donations,Adult Social Care Operations,15143
17/07/2023,D000000016,GENERAL,Grant Aid and Donations,Adult Social Care Operations,275646
31/08/2023,1244066,Buddi Ltd,###,Bi-Borough Director of Integrated Care,600
05/07/2023,1290804,Doro Care UK Ltd,###,Bi-Borough Director of Integrated Care,2544
05/07/2023,1290804,Doro Care UK Ltd,###,Bi-Borough Director of Integrated Care,1050
05/07/2023,1290804,Doro Care UK Ltd,###,Bi-Borough Director of Integrated Care,18900
25/07/2023,1290804,Doro Care UK Ltd,###,Bi-Borough Director of Integrated Care,2664
29/08/2023,1290804,Doro Care UK Ltd,###,Bi-Borough Director of Integrated Care,2692
28/07/2023,1292281,The Community Housing Group Limited,Hired and Contracted Services,Bi-Borough Director of Integrated Care,5637.4
09/08/2023,1292281,The Community Housing Group Limited,Hired and Contracted Services,Bi-Borough Director of Integrated Care,5616.1
14/08/2023,1292281,The Community Housing Group Limited,Hired and Contracted Services,Bi-Borough Director of Integrated Care,858
17/08/2023,1292281,The Community Housing Group Limited,Hired and Contracted Services,Bi-Borough Director of Integrated Care,2407.41
22/09/2023,1292281,The Community Housing Group Limited,Hired and Contracted Services,Bi-Borough Director of Integrated Care,7768.8
04/08/2023,1246138,Tunstall Healthcare (UK) Ltd (Use,###,Bi-Borough Director of Integrated Care,3897
30/08/2023,1273817,GCH Alan Morkill House Ltd,Hired and Contracted Services,Bi-Borough Director of Integrated Care,364008
30/08/2023,1273817,GCH Alan Morkill House Ltd,Hired and Contracted Services,Bi-Borough Director of Integrated Care,364008
30/08/2023,1273817,GCH Alan Morkill House Ltd,Hired and Contracted Services,Bi-Borough Director of Integrated Care,18030
30/08/2023,1273817,GCH Alan Morkill House Ltd,Hired and Contracted Services,Bi-Borough Director of Integrated Care,364008
30/08/2023,1273817,GCH Alan Morkill House Ltd,Hired and Contracted Services,Bi-Borough Director of Integrated Care,5012.94
30/08/2023,1273817,GCH Alan Morkill House Ltd,Hired and Contracted Services,Bi-Borough Director of Integrated Care,2210049
27/09/2023,1273817,GCH Alan Morkill House Ltd,Hired and Contracted Services,Bi-Borough Director of Integrated Care,90530.16
27/09/2023,1273817,GCH Alan Morkill House Ltd,Hired and Contracted Services,Bi-Borough Director of Integrated Care,381251.52
28/09/2023,1273817,GCH Alan Morkill House Ltd,Hired and Contracted Services,Bi-Borough Director of Integrated Care,381251.52
17/07/2023,1243481,Gold Care Homes Ltd,Staff - Basic Pay,Bi-Borough Director of Integrated Care,998941.06
02/08/2023,1251196,Royal Borough of Kensington and,B*Payments to OLAs - Southampton City Co,Bi-Borough Director of Integrated Care,63380
31/07/2023,1245693,London Borough Of Hammersmith &,B*Payments to OLAs - Southampton City Co,Bi-Borough Director of Integrated Care,92029
31/07/2023,1251196,Royal Borough of Kensington and,B*Payments to OLAs - Southampton City Co,Bi-Borough Director of Integrated Care,65376
31/07/2023,1251196,Royal Borough of Kensington and,B*Payments to OLAs - Southampton City Co,Bi-Borough Director of Integrated Care,13161.01
13/07/2023,1245595,Skyguard Ltd,Health and Safety Equipment,Bi-Borough Director of Integrated Care,7560
25/08/2023,1245563,Sharpe Pritchard,Legal Costs,Bi-Borough Director of Integrated Care,10376.75
19/09/2023,1245563,Sharpe Pritchard,Legal Costs,Bi-Borough Director of Integrated Care,17000
19/07/2023,1292095,365 Care Solutions Ltd,,Bi-Borough Director of Integrated Care,10990
19/07/2023,1292095,365 Care Solutions Ltd,,Bi-Borough Director of Integrated Care,9480
16/08/2023,1292095,365 Care Solutions Ltd,,Bi-Borough Director of Integrated Care,9480
16/08/2023,1292095,365 Care Solutions Ltd,,Bi-Borough Director of Integrated Care,10990
13/09/2023,1292095,365 Care Solutions Ltd,,Bi-Borough Director of Integrated Care,9480
13/09/2023,1292095,365 Care Solutions Ltd,,Bi-Borough Director of Integrated Care,10990
19/07/2023,1255843,A.I. Care Services Ltd,,Bi-Borough Director of Integrated Care,7454.32
16/08/2023,1255843,A.I. Care Services Ltd,,Bi-Borough Director of Integrated Care,7454.32
16/09/2023,1255843,A.I. Care Services Ltd,,Bi-Borough Director of Integrated Care,7454.32
19/07/2023,1245929,The Regard Partnership Ltd,,Bi-Borough Director of Integrated Care,19301.21
19/07/2023,1245929,The Regard Partnership Ltd,,Bi-Borough Director of Integrated Care,10446.2
16/08/2023,1245929,The Regard Partnership Ltd,,Bi-Borough Director of Integrated Care,10446.2
16/08/2023,1245929,The Regard Partnership Ltd,,Bi-Borough Director of Integrated Care,16325.96
13/09/2023,1245929,The Regard Partnership Ltd,,Bi-Borough Director of Integrated Care,10446.2
13/09/2023,1245929,The Regard Partnership Ltd,,Bi-Borough Director of Integrated Care,16325.96
19/07/2023,1271174,ASPECTS 2 LIMITED,,Bi-Borough Director of Integrated Care,4243.4
19/07/2023,1271174,ASPECTS 2 LIMITED,,Bi-Borough Director of Integrated Care,4243.4
16/08/2023,1271174,ASPECTS 2 LIMITED,,Bi-Borough Director of Integrated Care,4243.4
16/08/2023,1271174,ASPECTS 2 LIMITED,,Bi-Borough Director of Integrated Care,4243.4
13/09/2023,1271174,ASPECTS 2 LIMITED,,Bi-Borough Director of Integrated Care,4243.4
13/09/2023,1271174,ASPECTS 2 LIMITED,,Bi-Borough Director of Integrated Care,4243.4
19/07/2023,1243851,Accomplish Group Ltd,,Bi-Borough Director of Integrated Care,9143.72
19/07/2023,1243851,Accomplish Group Ltd,,Bi-Borough Director of Integrated Care,9143.72
16/08/2023,1243851,Accomplish Group Ltd,,Bi-Borough Director of Integrated Care,18027.35
16/08/2023,1243851,Accomplish Group Ltd,,Bi-Borough Director of Integrated Care,18027.35
13/09/2023,1243851,Accomplish Group Ltd,,Bi-Borough Director of Integrated Care,11000
13/09/2023,1243851,Accomplish Group Ltd,,Bi-Borough Director of Integrated Care,11000
19/07/2023,1243435,Acorn Village,,Bi-Borough Director of Integrated Care,7438
16/08/2023,1243435,Acorn Village,,Bi-Borough Director of Integrated Care,7438
13/09/2023,1243435,Acorn Village,,Bi-Borough Director of Integrated Care,7438
19/07/2023,1243942,Aspens Charities,,Bi-Borough Director of Integrated Care,7490
16/08/2023,1243942,Aspens Charities,,Bi-Borough Director of Integrated Care,7490
13/09/2023,1243942,Aspens Charities,,Bi-Borough Director of Integrated Care,7490
19/07/2023,1243961,Autism Anglia,,Bi-Borough Director of Integrated Care,10644
16/08/2023,1243961,Autism Anglia,,Bi-Borough Director of Integrated Care,10644
13/09/2023,1243961,Autism Anglia,,Bi-Borough Director of Integrated Care,10644
11/09/2023,1244010,Bindmans Llp,Legal Costs,Bi-Borough Director of Integrated Care,7000
11/09/2023,1244010,Bindmans Llp,Legal Costs,Bi-Borough Director of Integrated Care,30987.6
19/07/2023,1243445,Broadstreet House Limited,,Bi-Borough Director of Integrated Care,4604.48
16/08/2023,1243445,Broadstreet House Limited,,Bi-Borough Director of Integrated Care,4604.48
13/09/2023,1243445,Broadstreet House Limited,,Bi-Borough Director of Integrated Care,4604.48
19/07/2023,1246286,Brunswick Supported Living,,Bi-Borough Director of Integrated Care,1314.64
19/07/2023,1246286,Brunswick Supported Living,,Bi-Borough Director of Integrated Care,1314.64
16/08/2023,1246286,Brunswick Supported Living,,Bi-Borough Director of Integrated Care,1314.64
16/08/2023,1246286,Brunswick Supported Living,,Bi-Borough Director of Integrated Care,1314.64
13/09/2023,1246286,Brunswick Supported Living,,Bi-Borough Director of Integrated Care,1314.64
13/09/2023,1246286,Brunswick Supported Living,,Bi-Borough Director of Integrated Care,1314.64
24/07/2023,1302645,CENTRE 404,B*Voluntary-Spot-V Dep-Enhanced - do not u,Bi-Borough Director of Integrated Care,717.5
14/08/2023,1302645,CENTRE 404,B*Voluntary-Spot-V Dep-Enhanced - do not u,Bi-Borough Director of Integrated Care,820
14/08/2023,1302645,CENTRE 404,B*Voluntary-Spot-V Dep-Enhanced - do not u,Bi-Borough Director of Integrated Care,820
21/09/2023,1302645,CENTRE 404,B*Voluntary-Spot-V Dep-Enhanced - do not u,Bi-Borough Director of Integrated Care,820
19/07/2023,1273390,CHILTERN SUPPORT & HOUSING LTD,,Bi-Borough Director of Integrated Care,16536.72
16/08/2023,1273390,CHILTERN SUPPORT & HOUSING LTD,,Bi-Borough Director of Integrated Care,16536.72
13/09/2023,1273390,CHILTERN SUPPORT & HOUSING LTD,,Bi-Borough Director of Integrated Care,16536.72
19/07/2023,1244092,Cambrian Learning Disabilities Ltd,,Bi-Borough Director of Integrated Care,9554.6
16/08/2023,1244092,Cambrian Learning Disabilities Ltd,,Bi-Borough Director of Integrated Care,7008.12
13/09/2023,1244092,Cambrian Learning Disabilities Ltd,,Bi-Borough Director of Integrated Care,7008.12
19/07/2023,1246321,Camphill Village Trust,,Bi-Borough Director of Integrated Care,4180.12
16/08/2023,1246321,Camphill Village Trust,,Bi-Borough Director of Integrated Care,4180.12
13/09/2023,1246321,Camphill Village Trust,,Bi-Borough Director of Integrated Care,4180.12
19/07/2023,1246324,Candour Care Services (Broadview),,Bi-Borough Director of Integrated Care,7434.92
16/08/2023,1246324,Candour Care Services (Broadview),,Bi-Borough Director of Integrated Care,7434.92
13/09/2023,1246324,Candour Care Services (Broadview),,Bi-Borough Director of Integrated Care,7434.92
19/07/2023,1246327,Canterbury Oast Trust Ltd,,Bi-Borough Director of Integrated Care,1346.8
16/08/2023,1246327,Canterbury Oast Trust Ltd,,Bi-Borough Director of Integrated Care,1346.8
13/09/2023,1246327,Canterbury Oast Trust Ltd,,Bi-Borough Director of Integrated Care,1346.8
25/09/2023,1245091,Care UK Community Partnerships Ltd,,Bi-Borough Director of Integrated Care,9223.04
19/07/2023,1246339,Caretech Community Services Ltd,,Bi-Borough Director of Integrated Care,6823.36
19/07/2023,1246339,Caretech Community Services Ltd,,Bi-Borough Director of Integrated Care,4711.16
19/07/2023,1246339,Caretech Community Services Ltd,,Bi-Borough Director of Integrated Care,4711.16
16/08/2023,1246339,Caretech Community Services Ltd,,Bi-Borough Director of Integrated Care,6823.36
16/08/2023,1246339,Caretech Community Services Ltd,,Bi-Borough Director of Integrated Care,4711.16
16/08/2023,1246339,Caretech Community Services Ltd,,Bi-Borough Director of Integrated Care,4711.16
13/09/2023,1246339,Caretech Community Services Ltd,,Bi-Borough Director of Integrated Care,6823.36
13/09/2023,1246339,Caretech Community Services Ltd,,Bi-Borough Director of Integrated Care,4711.16
13/09/2023,1246339,Caretech Community Services Ltd,,Bi-Borough Director of Integrated Care,4711.16
24/08/2023,1246349,Caxton Youth Organisation,B*Distric Council non fee related servi,Bi-Borough Director of Integrated Care,650
24/08/2023,1246349,Caxton Youth Organisation,B*Distric Council non fee related servi,Bi-Borough Director of Integrated Care,650
24/08/2023,1246349,Caxton Youth Organisation,B*Distric Council non fee related servi,Bi-Borough Director of Integrated Care,650
19/07/2023,1276470,Certitude (Support for Living),,Bi-Borough Director of Integrated Care,8587.28
19/07/2023,1276470,Certitude (Support for Living),,Bi-Borough Director of Integrated Care,12988.04
19/07/2023,1276470,Certitude (Support for Living),,Bi-Borough Director of Integrated Care,12278.76
19/07/2023,1276470,Certitude (Support for Living),,Bi-Borough Director of Integrated Care,51730.56
19/07/2023,1276470,Certitude (Support for Living),,Bi-Borough Director of Integrated Care,5372.08
19/07/2023,1276470,Certitude (Support for Living),,Bi-Borough Director of Integrated Care,2302.32
19/07/2023,1276470,Certitude (Support for Living),,Bi-Borough Director of Integrated Care,4489.32
19/07/2023,1276470,Certitude (Support for Living),,Bi-Borough Director of Integrated Care,5819.48
19/07/2023,1276470,Certitude (Support for Living),,Bi-Borough Director of Integrated Care,4256.92
19/07/2023,1276470,Certitude (Support for Living),,Bi-Borough Director of Integrated Care,5819.48
16/08/2023,1276470,Certitude (Support for Living),,Bi-Borough Director of Integrated Care,17243.52
16/08/2023,1276470,Certitude (Support for Living),,Bi-Borough Director of Integrated Care,12988.04
16/08/2023,1276470,Certitude (Support for Living),,Bi-Borough Director of Integrated Care,12278.76
16/08/2023,1276470,Certitude (Support for Living),,Bi-Borough Director of Integrated Care,8587.28
16/08/2023,1276470,Certitude (Support for Living),,Bi-Borough Director of Integrated Care,2302.32
16/08/2023,1276470,Certitude (Support for Living),,Bi-Borough Director of Integrated Care,5372.08
16/08/2023,1276470,Certitude (Support for Living),,Bi-Borough Director of Integrated Care,4489.32
16/08/2023,1276470,Certitude (Support for Living),,Bi-Borough Director of Integrated Care,5819.48
16/08/2023,1276470,Certitude (Support for Living),,Bi-Borough Director of Integrated Care,4256.92
16/08/2023,1276470,Certitude (Support for Living),,Bi-Borough Director of Integrated Care,5819.48
13/09/2023,1276470,Certitude (Support for Living),,Bi-Borough Director of Integrated Care,12988.04
13/09/2023,1276470,Certitude (Support for Living),,Bi-Borough Director of Integrated Care,8587.28
13/09/2023,1276470,Certitude (Support for Living),,Bi-Borough Director of Integrated Care,12278.76
13/09/2023,1276470,Certitude (Support for Living),,Bi-Borough Director of Integrated Care,5372.08
13/09/2023,1276470,Certitude (Support for Living),,Bi-Borough Director of Integrated Care,2302.32
13/09/2023,1276470,Certitude (Support for Living),,Bi-Borough Director of Integrated Care,4489.32
13/09/2023,1276470,Certitude (Support for Living),,Bi-Borough Director of Integrated Care,5819.48
13/09/2023,1276470,Certitude (Support for Living),,Bi-Borough Director of Integrated Care,5819.48
13/09/2023,1276470,Certitude (Support for Living),,Bi-Borough Director of Integrated Care,4256.92
13/09/2023,1276470,Certitude (Support for Living),,Bi-Borough Director of Integrated Care,17243.52
19/07/2023,1293636,Choice Support,,Bi-Borough Director of Integrated Care,685.52
19/07/2023,1293636,Choice Support,,Bi-Borough Director of Integrated Care,4812
19/07/2023,1293636,Choice Support,,Bi-Borough Director of Integrated Care,8936
16/08/2023,1293636,Choice Support,,Bi-Borough Director of Integrated Care,8936
16/08/2023,1293636,Choice Support,,Bi-Borough Director of Integrated Care,4812
16/08/2023,1293636,Choice Support,,Bi-Borough Director of Integrated Care,685.52
13/09/2023,1293636,Choice Support,,Bi-Borough Director of Integrated Care,4812
13/09/2023,1293636,Choice Support,,Bi-Borough Director of Integrated Care,685.52
13/09/2023,1293636,Choice Support,,Bi-Borough Director of Integrated Care,8936
19/07/2023,1243458,Cocklebury Farmhouse Homes Ltd,,Bi-Borough Director of Integrated Care,6408
19/07/2023,1243458,Cocklebury Farmhouse Homes Ltd,,Bi-Borough Director of Integrated Care,4952
19/07/2023,1243458,Cocklebury Farmhouse Homes Ltd,,Bi-Borough Director of Integrated Care,5568
19/07/2023,1243458,Cocklebury Farmhouse Homes Ltd,,Bi-Borough Director of Integrated Care,7028
19/07/2023,1243458,Cocklebury Farmhouse Homes Ltd,,Bi-Borough Director of Integrated Care,5536
16/08/2023,1243458,Cocklebury Farmhouse Homes Ltd,,Bi-Borough Director of Integrated Care,5536
16/08/2023,1243458,Cocklebury Farmhouse Homes Ltd,,Bi-Borough Director of Integrated Care,6408
16/08/2023,1243458,Cocklebury Farmhouse Homes Ltd,,Bi-Borough Director of Integrated Care,5568
16/08/2023,1243458,Cocklebury Farmhouse Homes Ltd,,Bi-Borough Director of Integrated Care,7028
16/08/2023,1243458,Cocklebury Farmhouse Homes Ltd,,Bi-Borough Director of Integrated Care,4952
13/09/2023,1243458,Cocklebury Farmhouse Homes Ltd,,Bi-Borough Director of Integrated Care,5536
13/09/2023,1243458,Cocklebury Farmhouse Homes Ltd,,Bi-Borough Director of Integrated Care,6408
13/09/2023,1243458,Cocklebury Farmhouse Homes Ltd,,Bi-Borough Director of Integrated Care,4952
13/09/2023,1243458,Cocklebury Farmhouse Homes Ltd,,Bi-Borough Director of Integrated Care,5568
13/09/2023,1243458,Cocklebury Farmhouse Homes Ltd,,Bi-Borough Director of Integrated Care,7028
05/07/2023,1246600,Community Focus Inclusive Arts,B*Voluntary-Spot-V Dep-Enhanced - do not u,Bi-Borough Director of Integrated Care,1180
19/07/2023,1280687,Community Integrated Care,,Bi-Borough Director of Integrated Care,8742.92
19/07/2023,1280687,Community Integrated Care,,Bi-Borough Director of Integrated Care,10808.64
19/07/2023,1280687,Community Integrated Care,,Bi-Borough Director of Integrated Care,10822.08
19/07/2023,1280687,Community Integrated Care,,Bi-Borough Director of Integrated Care,7903.24
19/07/2023,1280687,Community Integrated Care,,Bi-Borough Director of Integrated Care,10822.08
19/07/2023,1280687,Community Integrated Care,,Bi-Borough Director of Integrated Care,10493.84
19/07/2023,1280687,Community Integrated Care,,Bi-Borough Director of Integrated Care,6397.36
16/08/2023,1280687,Community Integrated Care,,Bi-Borough Director of Integrated Care,10822.08
16/08/2023,1280687,Community Integrated Care,,Bi-Borough Director of Integrated Care,10550.89
16/08/2023,1280687,Community Integrated Care,,Bi-Borough Director of Integrated Care,10822.08
16/08/2023,1280687,Community Integrated Care,,Bi-Borough Director of Integrated Care,11671.77
16/08/2023,1280687,Community Integrated Care,,Bi-Borough Director of Integrated Care,14429.51
16/08/2023,1280687,Community Integrated Care,,Bi-Borough Director of Integrated Care,10493.84
16/08/2023,1280687,Community Integrated Care,,Bi-Borough Director of Integrated Care,6397.36
13/09/2023,1280687,Community Integrated Care,,Bi-Borough Director of Integrated Care,10822.08
13/09/2023,1280687,Community Integrated Care,,Bi-Borough Director of Integrated Care,8456.48
13/09/2023,1280687,Community Integrated Care,,Bi-Borough Director of Integrated Care,10493.84
13/09/2023,1280687,Community Integrated Care,,Bi-Borough Director of Integrated Care,10822.08
13/09/2023,1280687,Community Integrated Care,,Bi-Borough Director of Integrated Care,11565.24
13/09/2023,1280687,Community Integrated Care,,Bi-Borough Director of Integrated Care,6397.36
19/07/2023,1243470,Downing (Chertsey Road) Ltd,,Bi-Borough Director of Integrated Care,5971.2
16/08/2023,1243470,Downing (Chertsey Road) Ltd,,Bi-Borough Director of Integrated Care,5971.2
13/09/2023,1243470,Downing (Chertsey Road) Ltd,,Bi-Borough Director of Integrated Care,5971.2
19/07/2023,1247651,London Care Partnership Ltd,,Bi-Borough Director of Integrated Care,8941.32
16/08/2023,1247651,London Care Partnership Ltd,,Bi-Borough Director of Integrated Care,8941.32
13/09/2023,1247651,London Care Partnership Ltd,,Bi-Borough Director of Integrated Care,8941.32
19/07/2023,1245108,Elysium Healthcare No 2 Ltd,,Bi-Borough Director of Integrated Care,9341.48
16/08/2023,1245108,Elysium Healthcare No 2 Ltd,,Bi-Borough Director of Integrated Care,9341.48
13/09/2023,1245108,Elysium Healthcare No 2 Ltd,,Bi-Borough Director of Integrated Care,9341.48
24/07/2023,1246934,Equal People Mencap (Kensington &,B*Voluntary-Spot-V Dep-Enhanced - do not u,Bi-Borough Director of Integrated Care,551
14/08/2023,1246934,Equal People Mencap (Kensington &,B*Voluntary-Spot-V Dep-Enhanced - do not u,Bi-Borough Director of Integrated Care,1121
14/08/2023,1246934,Equal People Mencap (Kensington &,B*Voluntary-Spot-V Dep-Enhanced - do not u,Bi-Borough Director of Integrated Care,1292.25
14/08/2023,1246934,Equal People Mencap (Kensington &,B*Voluntary-Spot-V Dep-Enhanced - do not u,Bi-Borough Director of Integrated Care,912
13/09/2023,1245110,Eric Patrick Care Ltd,,Bi-Borough Director of Integrated Care,7645.57
28/07/2023,1259597,Ethica Services LTD,,Bi-Borough Director of Integrated Care,1656
07/09/2023,1259597,Ethica Services LTD,,Bi-Borough Director of Integrated Care,1383.12
20/09/2023,1259597,Ethica Services LTD,,Bi-Borough Director of Integrated Care,4120.54
23/08/2023,1252498,Field Court Chambers,Legal Costs,Bi-Borough Director of Integrated Care,985
19/07/2023,1243483,Greenview Healthcare Ltd,,Bi-Borough Director of Integrated Care,4471
16/08/2023,1243483,Greenview Healthcare Ltd,,Bi-Borough Director of Integrated Care,4471
13/09/2023,1243483,Greenview Healthcare Ltd,,Bi-Borough Director of Integrated Care,4471
19/07/2023,1243485,Grove Care Partnership Ltd,,Bi-Borough Director of Integrated Care,10431.04
16/08/2023,1243485,Grove Care Partnership Ltd,,Bi-Borough Director of Integrated Care,10431.04
13/09/2023,1243485,Grove Care Partnership Ltd,,Bi-Borough Director of Integrated Care,10431.04
19/07/2023,1258503,Guyatt House Care Limited,,Bi-Borough Director of Integrated Care,7557.16
16/08/2023,1258503,Guyatt House Care Limited,,Bi-Borough Director of Integrated Care,7557.16
13/09/2023,1258503,Guyatt House Care Limited,,Bi-Borough Director of Integrated Care,7557.16
17/07/2023,1244531,HCP Staffing Services Ltd,,Bi-Borough Director of Integrated Care,717.88
07/09/2023,1244531,HCP Staffing Services Ltd,,Bi-Borough Director of Integrated Care,717.88
20/09/2023,1244531,HCP Staffing Services Ltd,,Bi-Borough Director of Integrated Care,717.88
21/09/2023,1244531,HCP Staffing Services Ltd,,Bi-Borough Director of Integrated Care,717.88
19/07/2023,1244549,HF Trust Ltd,,Bi-Borough Director of Integrated Care,3900.64
19/07/2023,1244549,HF Trust Ltd,,Bi-Borough Director of Integrated Care,15117.84
16/08/2023,1244549,HF Trust Ltd,,Bi-Borough Director of Integrated Care,3900.64
16/08/2023,1244549,HF Trust Ltd,,Bi-Borough Director of Integrated Care,15117.84
13/09/2023,1244549,HF Trust Ltd,,Bi-Borough Director of Integrated Care,15117.84
13/09/2023,1244549,HF Trust Ltd,,Bi-Borough Director of Integrated Care,3900.64
19/07/2023,1244515,Hampshire Autistic Society,,Bi-Borough Director of Integrated Care,9411.32
16/08/2023,1244515,Hampshire Autistic Society,,Bi-Borough Director of Integrated Care,9411.32
13/09/2023,1244515,Hampshire Autistic Society,,Bi-Borough Director of Integrated Care,9411.32
19/07/2023,1243490,Haydon Park Lodge Ltd,,Bi-Borough Director of Integrated Care,4000
16/08/2023,1243490,Haydon Park Lodge Ltd,,Bi-Borough Director of Integrated Care,4000
13/09/2023,1243490,Haydon Park Lodge Ltd,,Bi-Borough Director of Integrated Care,4000
19/07/2023,1260257,Hazel Homes for Autism Ltd,,Bi-Borough Director of Integrated Care,14885.24
19/07/2023,1260257,Hazel Homes for Autism Ltd,,Bi-Borough Director of Integrated Care,861
16/08/2023,1260257,Hazel Homes for Autism Ltd,,Bi-Borough Director of Integrated Care,14885.24
16/08/2023,1260257,Hazel Homes for Autism Ltd,,Bi-Borough Director of Integrated Care,861
13/09/2023,1260257,Hazel Homes for Autism Ltd,,Bi-Borough Director of Integrated Care,14885.24
13/09/2023,1260257,Hazel Homes for Autism Ltd,,Bi-Borough Director of Integrated Care,861
19/07/2023,1245125,Heathcotes (Southern) Ltd,,Bi-Borough Director of Integrated Care,12189.16
16/08/2023,1245125,Heathcotes (Southern) Ltd,,Bi-Borough Director of Integrated Care,12189.16
13/09/2023,1245125,Heathcotes (Southern) Ltd,,Bi-Borough Director of Integrated Care,12189.16
13/09/2023,1254857,Hope Care Agency,,Bi-Borough Director of Integrated Care,8606.08
13/09/2023,1254857,Hope Care Agency,,Bi-Borough Director of Integrated Care,1844.16
13/09/2023,1254857,Hope Care Agency,,Bi-Borough Director of Integrated Care,8606.08
13/09/2023,1254857,Hope Care Agency,,Bi-Borough Director of Integrated Care,71000.16
13/09/2023,1254857,Hope Care Agency,,Bi-Borough Director of Integrated Care,17212.16
27/09/2023,1254857,Hope Care Agency,,Bi-Borough Director of Integrated Care,6608.24
19/07/2023,1267460,Hunters Lodge Care Home,,Bi-Borough Director of Integrated Care,3930.64
16/08/2023,1267460,Hunters Lodge Care Home,,Bi-Borough Director of Integrated Care,3930.64
13/09/2023,1267460,Hunters Lodge Care Home,,Bi-Borough Director of Integrated Care,3930.64
17/07/2023,1247526,Integrity Care and Support Ltd,B*Voluntary-Spot-V Dep-Enhanced - do not u,Bi-Borough Director of Integrated Care,1598.25
17/07/2023,1247526,Integrity Care and Support Ltd,B*Voluntary-Spot-V Dep-Enhanced - do not u,Bi-Borough Director of Integrated Care,511.44
17/07/2023,1247526,Integrity Care and Support Ltd,B*Voluntary-Spot-V Dep-Enhanced - do not u,Bi-Borough Director of Integrated Care,1576.94
17/07/2023,1247526,Integrity Care and Support Ltd,B*Voluntary-Spot-V Dep-Enhanced - do not u,Bi-Borough Director of Integrated Care,1022.88
17/07/2023,1247526,Integrity Care and Support Ltd,B*Voluntary-Spot-V Dep-Enhanced - do not u,Bi-Borough Director of Integrated Care,1544.99
17/07/2023,1247526,Integrity Care and Support Ltd,B*Voluntary-Spot-V Dep-Enhanced - do not u,Bi-Borough Director of Integrated Care,1438.44
17/07/2023,1247526,Integrity Care and Support Ltd,B*Voluntary-Spot-V Dep-Enhanced - do not u,Bi-Borough Director of Integrated Care,1044.19
17/07/2023,1247526,Integrity Care and Support Ltd,B*Voluntary-Spot-V Dep-Enhanced - do not u,Bi-Borough Director of Integrated Care,852.4
17/07/2023,1247526,Integrity Care and Support Ltd,B*Voluntary-Spot-V Dep-Enhanced - do not u,Bi-Borough Director of Integrated Care,511.44
17/07/2023,1247526,Integrity Care and Support Ltd,B*Voluntary-Spot-V Dep-Enhanced - do not u,Bi-Borough Director of Integrated Care,1193.36
17/07/2023,1247526,Integrity Care and Support Ltd,B*Voluntary-Spot-V Dep-Enhanced - do not u,Bi-Borough Director of Integrated Care,511.44
17/07/2023,1247526,Integrity Care and Support Ltd,B*Voluntary-Spot-V Dep-Enhanced - do not u,Bi-Borough Director of Integrated Care,554.08
17/07/2023,1247526,Integrity Care and Support Ltd,B*Voluntary-Spot-V Dep-Enhanced - do not u,Bi-Borough Director of Integrated Care,639.3
17/07/2023,1247526,Integrity Care and Support Ltd,B*Voluntary-Spot-V Dep-Enhanced - do not u,Bi-Borough Director of Integrated Care,1640.87
17/07/2023,1247526,Integrity Care and Support Ltd,B*Voluntary-Spot-V Dep-Enhanced - do not u,Bi-Borough Director of Integrated Care,1108.12
17/07/2023,1247526,Integrity Care and Support Ltd,B*Voluntary-Spot-V Dep-Enhanced - do not u,Bi-Borough Director of Integrated Care,1790.04
17/07/2023,1247526,Integrity Care and Support Ltd,B*Voluntary-Spot-V Dep-Enhanced - do not u,Bi-Borough Director of Integrated Care,681.92
17/07/2023,1247526,Integrity Care and Support Ltd,B*Voluntary-Spot-V Dep-Enhanced - do not u,Bi-Borough Director of Integrated Care,809.78
08/09/2023,1247526,Integrity Care and Support Ltd,B*Voluntary-Spot-V Dep-Enhanced - do not u,Bi-Borough Director of Integrated Care,1363.85
08/09/2023,1247526,Integrity Care and Support Ltd,B*Voluntary-Spot-V Dep-Enhanced - do not u,Bi-Borough Director of Integrated Care,511.44
08/09/2023,1247526,Integrity Care and Support Ltd,B*Voluntary-Spot-V Dep-Enhanced - do not u,Bi-Borough Director of Integrated Care,1587.61
08/09/2023,1247526,Integrity Care and Support Ltd,B*Voluntary-Spot-V Dep-Enhanced - do not u,Bi-Borough Director of Integrated Care,1108.12
08/09/2023,1247526,Integrity Care and Support Ltd,B*Voluntary-Spot-V Dep-Enhanced - do not u,Bi-Borough Director of Integrated Care,1342.54
08/09/2023,1247526,Integrity Care and Support Ltd,B*Voluntary-Spot-V Dep-Enhanced - do not u,Bi-Borough Director of Integrated Care,745.86
08/09/2023,1247526,Integrity Care and Support Ltd,B*Voluntary-Spot-V Dep-Enhanced - do not u,Bi-Borough Director of Integrated Care,703.23
08/09/2023,1247526,Integrity Care and Support Ltd,B*Voluntary-Spot-V Dep-Enhanced - do not u,Bi-Borough Director of Integrated Care,1715.46
08/09/2023,1247526,Integrity Care and Support Ltd,B*Voluntary-Spot-V Dep-Enhanced - do not u,Bi-Borough Director of Integrated Care,767.16
08/09/2023,1247526,Integrity Care and Support Ltd,B*Voluntary-Spot-V Dep-Enhanced - do not u,Bi-Borough Director of Integrated Care,532.76
08/09/2023,1247526,Integrity Care and Support Ltd,B*Voluntary-Spot-V Dep-Enhanced - do not u,Bi-Borough Director of Integrated Care,852.4
08/09/2023,1247526,Integrity Care and Support Ltd,B*Voluntary-Spot-V Dep-Enhanced - do not u,Bi-Borough Director of Integrated Care,1470.4
08/09/2023,1247526,Integrity Care and Support Ltd,B*Voluntary-Spot-V Dep-Enhanced - do not u,Bi-Borough Director of Integrated Care,1726.12
21/09/2023,1247526,Integrity Care and Support Ltd,B*Voluntary-Spot-V Dep-Enhanced - do not u,Bi-Borough Director of Integrated Care,543.42
21/09/2023,1247526,Integrity Care and Support Ltd,B*Voluntary-Spot-V Dep-Enhanced - do not u,Bi-Borough Director of Integrated Care,1193.36
21/09/2023,1247526,Integrity Care and Support Ltd,B*Voluntary-Spot-V Dep-Enhanced - do not u,Bi-Borough Director of Integrated Care,1576.94
21/09/2023,1247526,Integrity Care and Support Ltd,B*Voluntary-Spot-V Dep-Enhanced - do not u,Bi-Borough Director of Integrated Care,681.92
21/09/2023,1247526,Integrity Care and Support Ltd,B*Voluntary-Spot-V Dep-Enhanced - do not u,Bi-Borough Director of Integrated Care,852.4
21/09/2023,1247526,Integrity Care and Support Ltd,B*Voluntary-Spot-V Dep-Enhanced - do not u,Bi-Borough Director of Integrated Care,596.69
21/09/2023,1247526,Integrity Care and Support Ltd,B*Voluntary-Spot-V Dep-Enhanced - do not u,Bi-Borough Director of Integrated Care,916.33
21/09/2023,1247526,Integrity Care and Support Ltd,B*Voluntary-Spot-V Dep-Enhanced - do not u,Bi-Borough Director of Integrated Care,1481.06
21/09/2023,1247526,Integrity Care and Support Ltd,B*Voluntary-Spot-V Dep-Enhanced - do not u,Bi-Borough Director of Integrated Care,1662.2
21/09/2023,1247526,Integrity Care and Support Ltd,B*Voluntary-Spot-V Dep-Enhanced - do not u,Bi-Borough Director of Integrated Care,1704.8
21/09/2023,1247526,Integrity Care and Support Ltd,B*Voluntary-Spot-V Dep-Enhanced - do not u,Bi-Borough Director of Integrated Care,1022.88
21/09/2023,1247526,Integrity Care and Support Ltd,B*Voluntary-Spot-V Dep-Enhanced - do not u,Bi-Borough Director of Integrated Care,1747.42
21/09/2023,1247526,Integrity Care and Support Ltd,B*Voluntary-Spot-V Dep-Enhanced - do not u,Bi-Borough Director of Integrated Care,1704.79
21/07/2023,1256893,Kapital Care WCC,,Bi-Borough Director of Integrated Care,1613.92
18/08/2023,1256893,Kapital Care WCC,,Bi-Borough Director of Integrated Care,1613.92
15/09/2023,1256893,Kapital Care WCC,,Bi-Borough Director of Integrated Care,1613.92
19/07/2023,1247598,Kisimul Group Ltd,,Bi-Borough Director of Integrated Care,13876.39
16/08/2023,1247598,Kisimul Group Ltd,,Bi-Borough Director of Integrated Care,15409.2
13/09/2023,1247598,Kisimul Group Ltd,,Bi-Borough Director of Integrated Care,23209.5
19/07/2023,1243535,Sequence Care Ltd,,Bi-Borough Director of Integrated Care,15032.8
19/07/2023,1243535,Sequence Care Ltd,,Bi-Borough Director of Integrated Care,17857.84
19/07/2023,1243535,Sequence Care Ltd,,Bi-Borough Director of Integrated Care,10470
19/07/2023,1243535,Sequence Care Ltd,,Bi-Borough Director of Integrated Care,10470
16/08/2023,1243535,Sequence Care Ltd,,Bi-Borough Director of Integrated Care,15032.8
16/08/2023,1243535,Sequence Care Ltd,,Bi-Borough Director of Integrated Care,23840.37
16/08/2023,1243535,Sequence Care Ltd,,Bi-Borough Director of Integrated Care,13020.21
16/08/2023,1243535,Sequence Care Ltd,,Bi-Borough Director of Integrated Care,13020.21
13/09/2023,1243535,Sequence Care Ltd,,Bi-Borough Director of Integrated Care,19107.92
13/09/2023,1243535,Sequence Care Ltd,,Bi-Borough Director of Integrated Care,11002.88
13/09/2023,1243535,Sequence Care Ltd,,Bi-Borough Director of Integrated Care,11002.88
13/09/2023,1243535,Sequence Care Ltd,,Bi-Borough Director of Integrated Care,15032.8
16/08/2023,1310068,PERSONAL PAYMENTS,,Bi-Borough Director of Integrated Care,11244.85
21/09/2023,1310068,PERSONAL PAYMENTS,Rent,Bi-Borough Director of Integrated Care,3451.6
19/07/2023,1243506,Lifeways Community Care Ltd,,Bi-Borough Director of Integrated Care,7902.72
19/07/2023,1243506,Lifeways Community Care Ltd,,Bi-Borough Director of Integrated Care,13597.72
16/08/2023,1243506,Lifeways Community Care Ltd,,Bi-Borough Director of Integrated Care,7902.72
16/08/2023,1243506,Lifeways Community Care Ltd,,Bi-Borough Director of Integrated Care,13597.72
13/09/2023,1243506,Lifeways Community Care Ltd,,Bi-Borough Director of Integrated Care,13597.72
13/09/2023,1243506,Lifeways Community Care Ltd,,Bi-Borough Director of Integrated Care,7902.72
19/07/2023,1249729,Linden Lodge School,,Bi-Borough Director of Integrated Care,6616
16/08/2023,1249729,Linden Lodge School,,Bi-Borough Director of Integrated Care,6616
13/09/2023,1249729,Linden Lodge School,,Bi-Borough Director of Integrated Care,6616
19/07/2023,1244762,Livability,,Bi-Borough Director of Integrated Care,6180
16/08/2023,1244762,Livability,,Bi-Borough Director of Integrated Care,8190
13/09/2023,1244762,Livability,,Bi-Borough Director of Integrated Care,6600
06/07/2023,1247650,London Care Ltd,,Bi-Borough Director of Integrated Care,1152.64
18/07/2023,1247650,London Care Ltd,,Bi-Borough Director of Integrated Care,848.4
18/07/2023,1247650,London Care Ltd,,Bi-Borough Director of Integrated Care,1774.49
18/07/2023,1247650,London Care Ltd,,Bi-Borough Director of Integrated Care,1447.1
18/07/2023,1247650,London Care Ltd,,Bi-Borough Director of Integrated Care,1023.45
19/07/2023,1247650,London Care Ltd,,Bi-Borough Director of Integrated Care,954.48
19/07/2023,1247650,London Care Ltd,,Bi-Borough Director of Integrated Care,785.6
19/07/2023,1247650,London Care Ltd,,Bi-Borough Director of Integrated Care,1641.58
19/07/2023,1247650,London Care Ltd,,Bi-Borough Director of Integrated Care,1334.22
01/08/2023,1247650,London Care Ltd,,Bi-Borough Director of Integrated Care,1152.64
11/08/2023,1247650,London Care Ltd,,Bi-Borough Director of Integrated Care,848.4
11/08/2023,1247650,London Care Ltd,,Bi-Borough Director of Integrated Care,1760.71
11/08/2023,1247650,London Care Ltd,,Bi-Borough Director of Integrated Care,1484.56
11/08/2023,1247650,London Care Ltd,,Bi-Borough Director of Integrated Care,957.67
11/08/2023,1247650,London Care Ltd,,Bi-Borough Director of Integrated Care,848.4
11/08/2023,1247650,London Care Ltd,,Bi-Borough Director of Integrated Care,1780.85
11/08/2023,1247650,London Care Ltd,,Bi-Borough Director of Integrated Care,1467.25
11/08/2023,1247650,London Care Ltd,,Bi-Borough Director of Integrated Care,1017.2
16/08/2023,1247650,London Care Ltd,,Bi-Borough Director of Integrated Care,576.32
13/09/2023,1247650,London Care Ltd,,Bi-Borough Director of Integrated Care,1171.44
19/07/2023,1247656,London Cyrenians Housing Ltd,,Bi-Borough Director of Integrated Care,9642.88
19/07/2023,1247656,London Cyrenians Housing Ltd,,Bi-Borough Director of Integrated Care,6320
16/08/2023,1247656,London Cyrenians Housing Ltd,,Bi-Borough Director of Integrated Care,6320
16/08/2023,1247656,London Cyrenians Housing Ltd,,Bi-Borough Director of Integrated Care,6320
16/08/2023,1247656,London Cyrenians Housing Ltd,,Bi-Borough Director of Integrated Care,5510.22
24/08/2023,1247656,London Cyrenians Housing Ltd,,Bi-Borough Director of Integrated Care,115819.64
13/09/2023,1247656,London Cyrenians Housing Ltd,,Bi-Borough Director of Integrated Care,6320
13/09/2023,1247656,London Cyrenians Housing Ltd,,Bi-Borough Director of Integrated Care,6320
28/07/2023,1247846,London Vip Cars,Payments to Transport Operators,Bi-Borough Director of Integrated Care,2156.38
19/07/2023,1243508,Lukka Care Homes (2010) Ltd T/A,,Bi-Borough Director of Integrated Care,5985.24
16/08/2023,1243508,Lukka Care Homes (2010) Ltd T/A,,Bi-Borough Director of Integrated Care,5985.24
13/09/2023,1243508,Lukka Care Homes (2010) Ltd T/A,,Bi-Borough Director of Integrated Care,6057.24
20/07/2023,1259132,MMR Home Care LTD,,Bi-Borough Director of Integrated Care,2792.6
20/07/2023,1259132,MMR Home Care LTD,,Bi-Borough Director of Integrated Care,2586.2
18/08/2023,1259132,MMR Home Care LTD,,Bi-Borough Director of Integrated Care,1396.3
18/08/2023,1259132,MMR Home Care LTD,,Bi-Borough Director of Integrated Care,1293.1
15/09/2023,1259132,MMR Home Care LTD,,Bi-Borough Director of Integrated Care,646.55
15/09/2023,1259132,MMR Home Care LTD,,Bi-Borough Director of Integrated Care,698.15
19/07/2023,1282320,Marcus and Marcus,,Bi-Borough Director of Integrated Care,8216.23
19/07/2023,1282320,Marcus and Marcus,,Bi-Borough Director of Integrated Care,9537.83
19/07/2023,1282320,Marcus and Marcus,,Bi-Borough Director of Integrated Care,1321.6
16/08/2023,1282320,Marcus and Marcus,,Bi-Borough Director of Integrated Care,8420.76
16/08/2023,1282320,Marcus and Marcus,,Bi-Borough Director of Integrated Care,7099.16
16/08/2023,1282320,Marcus and Marcus,,Bi-Borough Director of Integrated Care,1321.6
13/09/2023,1282320,Marcus and Marcus,,Bi-Borough Director of Integrated Care,1321.6
13/09/2023,1282320,Marcus and Marcus,,Bi-Borough Director of Integrated Care,7099.16
13/09/2023,1282320,Marcus and Marcus,,Bi-Borough Director of Integrated Care,8420.76
19/07/2023,1245144,Methodist Homes For The Aged,,Bi-Borough Director of Integrated Care,3191.52
16/08/2023,1245144,Methodist Homes For The Aged,,Bi-Borough Director of Integrated Care,3395.91
13/09/2023,1245144,Methodist Homes For The Aged,,Bi-Borough Director of Integrated Care,3233.6
19/07/2023,1247933,Minster Pathways Ltd,,Bi-Borough Director of Integrated Care,5041.4
16/08/2023,1247933,Minster Pathways Ltd,,Bi-Borough Director of Integrated Care,5041.4
05/07/2023,1305072,PERSONAL PAYMENTS,B*Voluntary-Spot-V Dep-Enhanced - do not u,Bi-Borough Director of Integrated Care,598
19/07/2023,1244905,Nas Services Ltd (Residential),,Bi-Borough Director of Integrated Care,7970.16
19/07/2023,1244905,Nas Services Ltd (Residential),,Bi-Borough Director of Integrated Care,4058.88
19/07/2023,1244905,Nas Services Ltd (Residential),,Bi-Borough Director of Integrated Care,7400.08
19/07/2023,1244905,Nas Services Ltd (Residential),,Bi-Borough Director of Integrated Care,3379.32
16/08/2023,1244905,Nas Services Ltd (Residential),,Bi-Borough Director of Integrated Care,7970.16
16/08/2023,1244905,Nas Services Ltd (Residential),,Bi-Borough Director of Integrated Care,4058.88
16/08/2023,1244905,Nas Services Ltd (Residential),,Bi-Borough Director of Integrated Care,7400.08
16/08/2023,1244905,Nas Services Ltd (Residential),,Bi-Borough Director of Integrated Care,3379.32
13/09/2023,1244905,Nas Services Ltd (Residential),,Bi-Borough Director of Integrated Care,7970.16
13/09/2023,1244905,Nas Services Ltd (Residential),,Bi-Borough Director of Integrated Care,3379.32
13/09/2023,1244905,Nas Services Ltd (Residential),,Bi-Borough Director of Integrated Care,7400.08
13/09/2023,1244905,Nas Services Ltd (Residential),,Bi-Borough Director of Integrated Care,4058.88
19/07/2023,1282551,Nisacraftcare Limited,,Bi-Borough Director of Integrated Care,10980.04
19/07/2023,1282551,Nisacraftcare Limited,,Bi-Borough Director of Integrated Care,8065.2
19/07/2023,1282551,Nisacraftcare Limited,,Bi-Borough Director of Integrated Care,7635.24
16/08/2023,1282551,Nisacraftcare Limited,,Bi-Borough Director of Integrated Care,8065.2
16/08/2023,1282551,Nisacraftcare Limited,,Bi-Borough Director of Integrated Care,10980.04
16/08/2023,1282551,Nisacraftcare Limited,,Bi-Borough Director of Integrated Care,7635.24
13/09/2023,1282551,Nisacraftcare Limited,,Bi-Borough Director of Integrated Care,10980.04
13/09/2023,1282551,Nisacraftcare Limited,,Bi-Borough Director of Integrated Care,7635.24
13/09/2023,1282551,Nisacraftcare Limited,,Bi-Borough Director of Integrated Care,8065.2
19/07/2023,1247147,Norwood Schools Ltd,,Bi-Borough Director of Integrated Care,15242.14
19/07/2023,1247147,Norwood Schools Ltd,,Bi-Borough Director of Integrated Care,9472.52
19/07/2023,1247147,Norwood Schools Ltd,,Bi-Borough Director of Integrated Care,6272.76
19/07/2023,1247147,Norwood Schools Ltd,,Bi-Borough Director of Integrated Care,26076.57
16/08/2023,1247147,Norwood Schools Ltd,,Bi-Borough Director of Integrated Care,8800
16/08/2023,1247147,Norwood Schools Ltd,,Bi-Borough Director of Integrated Care,9472.52
16/08/2023,1247147,Norwood Schools Ltd,,Bi-Borough Director of Integrated Care,12264
16/08/2023,1247147,Norwood Schools Ltd,,Bi-Borough Director of Integrated Care,5099.76
13/09/2023,1247147,Norwood Schools Ltd,,Bi-Borough Director of Integrated Care,31038.66
13/09/2023,1247147,Norwood Schools Ltd,,Bi-Borough Director of Integrated Care,12264
13/09/2023,1247147,Norwood Schools Ltd,,Bi-Borough Director of Integrated Care,5099.76
13/09/2023,1247147,Norwood Schools Ltd,,Bi-Borough Director of Integrated Care,8800
16/08/2023,1273024,Oakland Support Ltd,,Bi-Borough Director of Integrated Care,3886.94
13/09/2023,1273024,Oakland Support Ltd,,Bi-Borough Director of Integrated Care,998.48
13/09/2023,1273024,Oakland Support Ltd,,Bi-Borough Director of Integrated Care,4885.42
19/07/2023,1243520,Oakview Care (Berkshire) Ltd,,Bi-Borough Director of Integrated Care,7531.68
16/08/2023,1243520,Oakview Care (Berkshire) Ltd,,Bi-Borough Director of Integrated Care,7531.68
13/09/2023,1243520,Oakview Care (Berkshire) Ltd,,Bi-Borough Director of Integrated Care,7531.68
07/09/2023,1248252,Origin Housing Ltd,B*Voluntary-Spot-V Dep-Enhanced - do not u,Bi-Borough Director of Integrated Care,993.72
07/09/2023,1248252,Origin Housing Ltd,B*Voluntary-Spot-V Dep-Enhanced - do not u,Bi-Borough Director of Integrated Care,1716
19/07/2023,1243524,Ormsby Lodge,,Bi-Borough Director of Integrated Care,936
19/07/2023,1243524,Ormsby Lodge,,Bi-Borough Director of Integrated Care,3481.16
16/08/2023,1243524,Ormsby Lodge,,Bi-Borough Director of Integrated Care,936
16/08/2023,1243524,Ormsby Lodge,,Bi-Borough Director of Integrated Care,3481.16
13/09/2023,1243524,Ormsby Lodge,,Bi-Borough Director of Integrated Care,936
13/09/2023,1243524,Ormsby Lodge,,Bi-Borough Director of Integrated Care,3481.16
19/07/2023,1245005,Outlook Care,,Bi-Borough Director of Integrated Care,1744.8
19/07/2023,1245005,Outlook Care,,Bi-Borough Director of Integrated Care,2146.88
19/07/2023,1245005,Outlook Care,,Bi-Borough Director of Integrated Care,2902.96
19/07/2023,1245005,Outlook Care,,Bi-Borough Director of Integrated Care,3370.88
19/07/2023,1245005,Outlook Care,,Bi-Borough Director of Integrated Care,3542.72
19/07/2023,1245005,Outlook Care,,Bi-Borough Director of Integrated Care,1337.68
16/08/2023,1245005,Outlook Care,,Bi-Borough Director of Integrated Care,2146.88
16/08/2023,1245005,Outlook Care,,Bi-Borough Director of Integrated Care,1744.8
16/08/2023,1245005,Outlook Care,,Bi-Borough Director of Integrated Care,2902.96
16/08/2023,1245005,Outlook Care,,Bi-Borough Director of Integrated Care,3370.88
16/08/2023,1245005,Outlook Care,,Bi-Borough Director of Integrated Care,3542.72
16/08/2023,1245005,Outlook Care,,Bi-Borough Director of Integrated Care,1337.68
13/09/2023,1245005,Outlook Care,,Bi-Borough Director of Integrated Care,1744.8
13/09/2023,1245005,Outlook Care,,Bi-Borough Director of Integrated Care,2146.88
13/09/2023,1245005,Outlook Care,,Bi-Borough Director of Integrated Care,2902.96
13/09/2023,1245005,Outlook Care,,Bi-Borough Director of Integrated Care,3370.88
13/09/2023,1245005,Outlook Care,,Bi-Borough Director of Integrated Care,1337.68
13/09/2023,1245005,Outlook Care,,Bi-Borough Director of Integrated Care,3542.72
27/07/2023,1246066,Barrie Bookkeeping & Payroll,Adult Social Care - Other Transfer Pay,Bi-Borough Director of Integrated Care,2585.32
27/07/2023,1250074,PERSONAL PAYMENTS,Adult Social Care - Other Transfer Pay,Bi-Borough Director of Integrated Care,6904.8
27/07/2023,1249876,PERSONAL PAYMENTS,Adult Social Care - Other Transfer Pay,Bi-Borough Director of Integrated Care,648.92
27/07/2023,1257487,PERSONAL PAYMENTS,Adult Social Care - Other Transfer Pay,Bi-Borough Director of Integrated Care,650
27/07/2023,1257487,PERSONAL PAYMENTS,Adult Social Care - Other Transfer Pay,Bi-Borough Director of Integrated Care,668.93
27/07/2023,1291747,PERSONAL PAYMENTS,Adult Social Care - Other Transfer Pay,Bi-Borough Director of Integrated Care,2552.2
27/07/2023,1247804,PERSONAL PAYMENTS,Adult Social Care - Other Transfer Pay,Bi-Borough Director of Integrated Care,752.2
27/07/2023,1250670,PERSONAL PAYMENTS,Adult Social Care - Other Transfer Pay,Bi-Borough Director of Integrated Care,1571.52
27/07/2023,1250627,PERSONAL PAYMENTS,Adult Social Care - Other Transfer Pay,Bi-Borough Director of Integrated Care,2508
27/07/2023,1250044,PERSONAL PAYMENTS,Adult Social Care - Other Transfer Pay,Bi-Borough Director of Integrated Care,724.04
27/07/2023,1250012,PERSONAL PAYMENTS,Adult Social Care - Other Transfer Pay,Bi-Borough Director of Integrated Care,838.6
27/07/2023,1250138,PERSONAL PAYMENTS,Adult Social Care - Other Transfer Pay,Bi-Borough Director of Integrated Care,916
27/07/2023,1250186,PERSONAL PAYMENTS,Adult Social Care - Other Transfer Pay,Bi-Borough Director of Integrated Care,3404.96
27/07/2023,1248828,PERSONAL PAYMENTS,Adult Social Care - Other Transfer Pay,Bi-Borough Director of Integrated Care,868.76
27/07/2023,1272570,PERSONAL PAYMENTS,Adult Social Care - Other Transfer Pay,Bi-Borough Director of Integrated Care,1051.24
27/07/2023,1250674,PERSONAL PAYMENTS,Adult Social Care - Other Transfer Pay,Bi-Borough Director of Integrated Care,2652.16
27/07/2023,1246066,Barrie Bookkeeping & Payroll,Adult Social Care - Other Transfer Pay,Bi-Borough Director of Integrated Care,1164.6
27/07/2023,1246066,Barrie Bookkeeping & Payroll,Adult Social Care - Other Transfer Pay,Bi-Borough Director of Integrated Care,843.96
27/07/2023,1246066,Barrie Bookkeeping & Payroll,Adult Social Care - Other Transfer Pay,Bi-Borough Director of Integrated Care,1070.52
27/07/2023,1246066,Barrie Bookkeeping & Payroll,Adult Social Care - Other Transfer Pay,Bi-Borough Director of Integrated Care,1029.88
27/07/2023,1246066,Barrie Bookkeeping & Payroll,Adult Social Care - Other Transfer Pay,Bi-Borough Director of Integrated Care,2452.2
27/07/2023,1280973,PERSONAL PAYMENTS,Adult Social Care - Other Transfer Pay,Bi-Borough Director of Integrated Care,6394.48
27/07/2023,1246066,Barrie Bookkeeping & Payroll,Adult Social Care - Other Transfer Pay,Bi-Borough Director of Integrated Care,11674.68
27/07/2023,1246066,Barrie Bookkeeping & Payroll,Adult Social Care - Other Transfer Pay,Bi-Borough Director of Integrated Care,1991
27/07/2023,1246066,Barrie Bookkeeping & Payroll,Adult Social Care - Other Transfer Pay,Bi-Borough Director of Integrated Care,2056.84
27/07/2023,1246066,Barrie Bookkeeping & Payroll,Adult Social Care - Other Transfer Pay,Bi-Borough Director of Integrated Care,2854.04
27/07/2023,1246066,Barrie Bookkeeping & Payroll,Adult Social Care - Other Transfer Pay,Bi-Borough Director of Integrated Care,918.96
27/07/2023,1292106,PERSONAL PAYMENTS,Adult Social Care - Other Transfer Pay,Bi-Borough Director of Integrated Care,1155.4
27/07/2023,1268346,PERSONAL PAYMENTS,Adult Social Care - Other Transfer Pay,Bi-Borough Director of Integrated Care,2234.8
27/07/2023,1247820,PERSONAL PAYMENTS,Adult Social Care - Other Transfer Pay,Bi-Borough Director of Integrated Care,8751.04
27/07/2023,1249942,PERSONAL PAYMENTS,Adult Social Care - Other Transfer Pay,Bi-Borough Director of Integrated Care,6343.36
27/07/2023,1246066,Barrie Bookkeeping & Payroll,Adult Social Care - Other Transfer Pay,Bi-Borough Director of Integrated Care,818
27/07/2023,1246066,Barrie Bookkeeping & Payroll,Adult Social Care - Other Transfer Pay,Bi-Borough Director of Integrated Care,1066.28
27/07/2023,1291747,PERSONAL PAYMENTS,Adult Social Care - Other Transfer Pay,Bi-Borough Director of Integrated Care,1682.52
27/07/2023,1291747,PERSONAL PAYMENTS,Adult Social Care - Other Transfer Pay,Bi-Borough Director of Integrated Care,2041.76
27/07/2023,1246066,Barrie Bookkeeping & Payroll,Adult Social Care - Other Transfer Pay,Bi-Borough Director of Integrated Care,2690.16
27/07/2023,1246066,Barrie Bookkeeping & Payroll,Adult Social Care - Other Transfer Pay,Bi-Borough Director of Integrated Care,1688.6
27/07/2023,1250536,PERSONAL PAYMENTS,Adult Social Care - Other Transfer Pay,Bi-Borough Director of Integrated Care,678.64
27/07/2023,1250656,PERSONAL PAYMENTS,Social Care - Direct Payments,Bi-Borough Director of Integrated Care,1118.36
27/07/2023,1254540,PERSONAL PAYMENTS,Adult Social Care - Other Transfer Pay,Bi-Borough Director of Integrated Care,939.92
27/07/2023,1246066,Barrie Bookkeeping & Payroll,Adult Social Care - Other Transfer Pay,Bi-Borough Director of Integrated Care,2618.28
27/07/2023,1269674,PERSONAL PAYMENTS,Adult Social Care - Other Transfer Pay,Bi-Borough Director of Integrated Care,889.28
27/07/2023,1246066,Barrie Bookkeeping & Payroll,Adult Social Care - Other Transfer Pay,Bi-Borough Director of Integrated Care,733.8
27/07/2023,1248354,PERSONAL PAYMENTS,Adult Social Care - Other Transfer Pay,Bi-Borough Director of Integrated Care,2425.36
27/07/2023,1250215,PERSONAL PAYMENTS,Adult Social Care - Other Transfer Pay,Bi-Borough Director of Integrated Care,1361.56
27/07/2023,1291747,PERSONAL PAYMENTS,Adult Social Care - Other Transfer Pay,Bi-Borough Director of Integrated Care,1201.8
27/07/2023,1291747,PERSONAL PAYMENTS,Adult Social Care - Other Transfer Pay,Bi-Borough Director of Integrated Care,1480.36
27/07/2023,1246066,Barrie Bookkeeping & Payroll,Adult Social Care - Other Transfer Pay,Bi-Borough Director of Integrated Care,5914.56
27/07/2023,1246066,Barrie Bookkeeping & Payroll,Adult Social Care - Other Transfer Pay,Bi-Borough Director of Integrated Care,5754.04
27/07/2023,1250037,PERSONAL PAYMENTS,Adult Social Care - Other Transfer Pay,Bi-Borough Director of Integrated Care,2383.72
27/07/2023,1247727,PERSONAL PAYMENTS,Social Care - Direct Payments,Bi-Borough Director of Integrated Care,2740.72
27/07/2023,1291747,PERSONAL PAYMENTS,Adult Social Care - Other Transfer Pay,Bi-Borough Director of Integrated Care,1531.32
27/07/2023,1291747,PERSONAL PAYMENTS,Adult Social Care - Other Transfer Pay,Bi-Borough Director of Integrated Care,4521
27/07/2023,1248010,PERSONAL PAYMENTS,Adult Social Care - Other Transfer Pay,Bi-Borough Director of Integrated Care,646.16
27/07/2023,1278955,PERSONAL PAYMENTS,Social Care - Direct Payments,Bi-Borough Director of Integrated Care,1580.32
27/07/2023,1248154,PERSONAL PAYMENTS,Adult Social Care - Other Transfer Pay,Bi-Borough Director of Integrated Care,829.52
27/07/2023,1291747,PERSONAL PAYMENTS,Adult Social Care - Other Transfer Pay,Bi-Borough Director of Integrated Care,1216.8
27/07/2023,1291747,PERSONAL PAYMENTS,Adult Social Care - Other Transfer Pay,Bi-Borough Director of Integrated Care,3892.72
27/07/2023,1246066,Barrie Bookkeeping & Payroll,Adult Social Care - Other Transfer Pay,Bi-Borough Director of Integrated Care,544
27/07/2023,1248148,PERSONAL PAYMENTS,Adult Social Care - Other Transfer Pay,Bi-Borough Director of Integrated Care,1638.96
24/08/2023,1246066,Barrie Bookkeeping & Payroll,Adult Social Care - Other Transfer Pay,Bi-Borough Director of Integrated Care,11674.68
24/08/2023,1246066,Barrie Bookkeeping & Payroll,Adult Social Care - Other Transfer Pay,Bi-Borough Director of Integrated Care,2056.84
24/08/2023,1246066,Barrie Bookkeeping & Payroll,Adult Social Care - Other Transfer Pay,Bi-Borough Director of Integrated Care,918.96
24/08/2023,1246066,Barrie Bookkeeping & Payroll,Adult Social Care - Other Transfer Pay,Bi-Borough Director of Integrated Care,1991
24/08/2023,1246066,Barrie Bookkeeping & Payroll,Adult Social Care - Other Transfer Pay,Bi-Borough Director of Integrated Care,1029.88
24/08/2023,1246066,Barrie Bookkeeping & Payroll,Adult Social Care - Other Transfer Pay,Bi-Borough Director of Integrated Care,2452.2
24/08/2023,1246066,Barrie Bookkeeping & Payroll,Adult Social Care - Other Transfer Pay,Bi-Borough Director of Integrated Care,7048.05
24/08/2023,1292106,PERSONAL PAYMENTS,Adult Social Care - Other Transfer Pay,Bi-Borough Director of Integrated Care,976.62
24/08/2023,1268346,PERSONAL PAYMENTS,Adult Social Care - Other Transfer Pay,Bi-Borough Director of Integrated Care,2234.8
24/08/2023,1250656,PERSONAL PAYMENTS,Social Care - Direct Payments,Bi-Borough Director of Integrated Care,1118.36
24/08/2023,1249942,PERSONAL PAYMENTS,Adult Social Care - Other Transfer Pay,Bi-Borough Director of Integrated Care,6343.36
24/08/2023,1254540,PERSONAL PAYMENTS,Adult Social Care - Other Transfer Pay,Bi-Borough Director of Integrated Care,939.92
24/08/2023,1247820,PERSONAL PAYMENTS,Adult Social Care - Other Transfer Pay,Bi-Borough Director of Integrated Care,8751.04
24/08/2023,1246066,Barrie Bookkeeping & Payroll,Adult Social Care - Other Transfer Pay,Bi-Borough Director of Integrated Care,1089.35
24/08/2023,1246066,Barrie Bookkeeping & Payroll,Adult Social Care - Other Transfer Pay,Bi-Borough Director of Integrated Care,1066.28
24/08/2023,1291747,PERSONAL PAYMENTS,Adult Social Care - Other Transfer Pay,Bi-Borough Director of Integrated Care,1682.52
24/08/2023,1246066,Barrie Bookkeeping & Payroll,Adult Social Care - Other Transfer Pay,Bi-Borough Director of Integrated Care,2618.28
24/08/2023,1250536,PERSONAL PAYMENTS,Adult Social Care - Other Transfer Pay,Bi-Borough Director of Integrated Care,678.64
24/08/2023,1261992,PERSONAL PAYMENTS,Adult Social Care - Other Transfer Pay,Bi-Borough Director of Integrated Care,800.62
24/08/2023,1248354,PERSONAL PAYMENTS,Adult Social Care - Other Transfer Pay,Bi-Borough Director of Integrated Care,2425.36
24/08/2023,1269674,PERSONAL PAYMENTS,Adult Social Care - Other Transfer Pay,Bi-Borough Director of Integrated Care,889.28
24/08/2023,1250215,PERSONAL PAYMENTS,Adult Social Care - Other Transfer Pay,Bi-Borough Director of Integrated Care,1361.56
24/08/2023,1246066,Barrie Bookkeeping & Payroll,Adult Social Care - Other Transfer Pay,Bi-Borough Director of Integrated Care,733.8
24/08/2023,1246066,Barrie Bookkeeping & Payroll,Adult Social Care - Other Transfer Pay,Bi-Borough Director of Integrated Care,1688.6
24/08/2023,1246066,Barrie Bookkeeping & Payroll,Adult Social Care - Other Transfer Pay,Bi-Borough Director of Integrated Care,2690.16
24/08/2023,1291747,PERSONAL PAYMENTS,Adult Social Care - Other Transfer Pay,Bi-Borough Director of Integrated Care,2041.76
24/08/2023,1291747,PERSONAL PAYMENTS,Adult Social Care - Other Transfer Pay,Bi-Borough Director of Integrated Care,1201.8
24/08/2023,1247727,PERSONAL PAYMENTS,Social Care - Direct Payments,Bi-Borough Director of Integrated Care,2740.72
24/08/2023,1250037,PERSONAL PAYMENTS,Adult Social Care - Other Transfer Pay,Bi-Borough Director of Integrated Care,2383.72
24/08/2023,1246066,Barrie Bookkeeping & Payroll,Adult Social Care - Other Transfer Pay,Bi-Borough Director of Integrated Care,5914.56
24/08/2023,1246066,Barrie Bookkeeping & Payroll,Adult Social Care - Other Transfer Pay,Bi-Borough Director of Integrated Care,5754.04
24/08/2023,1291747,PERSONAL PAYMENTS,Adult Social Care - Other Transfer Pay,Bi-Borough Director of Integrated Care,1480.36
24/08/2023,1248010,PERSONAL PAYMENTS,Adult Social Care - Other Transfer Pay,Bi-Borough Director of Integrated Care,646.16
24/08/2023,1248154,PERSONAL PAYMENTS,Adult Social Care - Other Transfer Pay,Bi-Borough Director of Integrated Care,829.52
24/08/2023,1248148,PERSONAL PAYMENTS,Adult Social Care - Other Transfer Pay,Bi-Borough Director of Integrated Care,1638.96
24/08/2023,1291747,PERSONAL PAYMENTS,Adult Social Care - Other Transfer Pay,Bi-Borough Director of Integrated Care,1531.32
24/08/2023,1291747,PERSONAL PAYMENTS,Adult Social Care - Other Transfer Pay,Bi-Borough Director of Integrated Care,4521
24/08/2023,1291747,PERSONAL PAYMENTS,Adult Social Care - Other Transfer Pay,Bi-Borough Director of Integrated Care,1216.8
24/08/2023,1291747,PERSONAL PAYMENTS,Adult Social Care - Other Transfer Pay,Bi-Borough Director of Integrated Care,3892.72
24/08/2023,1246066,Barrie Bookkeeping & Payroll,Adult Social Care - Other Transfer Pay,Bi-Borough Director of Integrated Care,544
24/08/2023,1257487,PERSONAL PAYMENTS,Adult Social Care - Other Transfer Pay,Bi-Borough Director of Integrated Care,550
24/08/2023,1250074,PERSONAL PAYMENTS,Adult Social Care - Other Transfer Pay,Bi-Borough Director of Integrated Care,6904.8
24/08/2023,1249876,PERSONAL PAYMENTS,Adult Social Care - Other Transfer Pay,Bi-Borough Director of Integrated Care,648.92
24/08/2023,1246066,Barrie Bookkeeping & Payroll,Adult Social Care - Other Transfer Pay,Bi-Borough Director of Integrated Care,2585.32
24/08/2023,1250670,PERSONAL PAYMENTS,Adult Social Care - Other Transfer Pay,Bi-Borough Director of Integrated Care,1571.52
24/08/2023,1250138,PERSONAL PAYMENTS,Adult Social Care - Other Transfer Pay,Bi-Borough Director of Integrated Care,916
24/08/2023,1250044,PERSONAL PAYMENTS,Adult Social Care - Other Transfer Pay,Bi-Borough Director of Integrated Care,724.04
24/08/2023,1247804,PERSONAL PAYMENTS,Adult Social Care - Other Transfer Pay,Bi-Borough Director of Integrated Care,752.2
24/08/2023,1250627,PERSONAL PAYMENTS,Adult Social Care - Other Transfer Pay,Bi-Borough Director of Integrated Care,2508
24/08/2023,1250012,PERSONAL PAYMENTS,Adult Social Care - Other Transfer Pay,Bi-Borough Director of Integrated Care,838.6
24/08/2023,1291747,PERSONAL PAYMENTS,Adult Social Care - Other Transfer Pay,Bi-Borough Director of Integrated Care,2552.2
24/08/2023,1250186,PERSONAL PAYMENTS,Adult Social Care - Other Transfer Pay,Bi-Borough Director of Integrated Care,3404.96
24/08/2023,1248828,PERSONAL PAYMENTS,Adult Social Care - Other Transfer Pay,Bi-Borough Director of Integrated Care,868.76
24/08/2023,1250674,PERSONAL PAYMENTS,Adult Social Care - Other Transfer Pay,Bi-Borough Director of Integrated Care,2652.16
24/08/2023,1272570,PERSONAL PAYMENTS,Adult Social Care - Other Transfer Pay,Bi-Borough Director of Integrated Care,1051.24
24/08/2023,1246066,Barrie Bookkeeping & Payroll,Adult Social Care - Other Transfer Pay,Bi-Borough Director of Integrated Care,843.96
24/08/2023,1246066,Barrie Bookkeeping & Payroll,Adult Social Care - Other Transfer Pay,Bi-Borough Director of Integrated Care,1070.52
24/08/2023,1280973,PERSONAL PAYMENTS,Adult Social Care - Other Transfer Pay,Bi-Borough Director of Integrated Care,6394.48
21/09/2023,1248148,PERSONAL PAYMENTS,Adult Social Care - Other Transfer Pay,Bi-Borough Director of Integrated Care,1638.96
21/09/2023,1291747,PERSONAL PAYMENTS,Adult Social Care - Other Transfer Pay,Bi-Borough Director of Integrated Care,3892.72
21/09/2023,1291747,PERSONAL PAYMENTS,Adult Social Care - Other Transfer Pay,Bi-Borough Director of Integrated Care,1531.32
21/09/2023,1314455,PERSONAL PAYMENTS,Adult Social Care - Other Transfer Pay,Bi-Borough Director of Integrated Care,4713.94
21/09/2023,1246066,Barrie Bookkeeping & Payroll,Adult Social Care - Other Transfer Pay,Bi-Borough Director of Integrated Care,2585.32
21/09/2023,1257487,PERSONAL PAYMENTS,Adult Social Care - Other Transfer Pay,Bi-Borough Director of Integrated Care,550
21/09/2023,1250074,PERSONAL PAYMENTS,Adult Social Care - Other Transfer Pay,Bi-Borough Director of Integrated Care,6904.8
21/09/2023,1249876,PERSONAL PAYMENTS,Adult Social Care - Other Transfer Pay,Bi-Borough Director of Integrated Care,717
21/09/2023,1249876,PERSONAL PAYMENTS,Adult Social Care - Other Transfer Pay,Bi-Borough Director of Integrated Care,648.92
21/09/2023,1250627,PERSONAL PAYMENTS,Adult Social Care - Other Transfer Pay,Bi-Borough Director of Integrated Care,2508
21/09/2023,1250670,PERSONAL PAYMENTS,Adult Social Care - Other Transfer Pay,Bi-Borough Director of Integrated Care,1571.52
21/09/2023,1250138,PERSONAL PAYMENTS,Adult Social Care - Other Transfer Pay,Bi-Borough Director of Integrated Care,916
21/09/2023,1250138,PERSONAL PAYMENTS,Adult Social Care - Other Transfer Pay,Bi-Borough Director of Integrated Care,2100
21/09/2023,1247804,PERSONAL PAYMENTS,Adult Social Care - Other Transfer Pay,Bi-Borough Director of Integrated Care,752.2
21/09/2023,1250044,PERSONAL PAYMENTS,Adult Social Care - Other Transfer Pay,Bi-Borough Director of Integrated Care,724.04
21/09/2023,1250012,PERSONAL PAYMENTS,Adult Social Care - Other Transfer Pay,Bi-Borough Director of Integrated Care,838.6
21/09/2023,1291747,PERSONAL PAYMENTS,Adult Social Care - Other Transfer Pay,Bi-Borough Director of Integrated Care,2552.2
21/09/2023,1246066,Barrie Bookkeeping & Payroll,Adult Social Care - Other Transfer Pay,Bi-Borough Director of Integrated Care,5423
21/09/2023,1272570,PERSONAL PAYMENTS,Adult Social Care - Other Transfer Pay,Bi-Borough Director of Integrated Care,1051.24
21/09/2023,1250674,PERSONAL PAYMENTS,Adult Social Care - Other Transfer Pay,Bi-Borough Director of Integrated Care,2652.16
21/09/2023,1246066,Barrie Bookkeeping & Payroll,Adult Social Care - Other Transfer Pay,Bi-Borough Director of Integrated Care,843.96
21/09/2023,1250186,PERSONAL PAYMENTS,Adult Social Care - Other Transfer Pay,Bi-Borough Director of Integrated Care,3404.96
21/09/2023,1248828,PERSONAL PAYMENTS,Adult Social Care - Other Transfer Pay,Bi-Borough Director of Integrated Care,868.76
21/09/2023,1246066,Barrie Bookkeeping & Payroll,Adult Social Care - Other Transfer Pay,Bi-Borough Director of Integrated Care,1070.52
21/09/2023,1250656,PERSONAL PAYMENTS,Adult Social Care - Other Transfer Pay,Bi-Borough Director of Integrated Care,3075.49
21/09/2023,1246066,Barrie Bookkeeping & Payroll,Adult Social Care - Other Transfer Pay,Bi-Borough Director of Integrated Care,11674.68
21/09/2023,1246066,Barrie Bookkeeping & Payroll,Adult Social Care - Other Transfer Pay,Bi-Borough Director of Integrated Care,2056.84
21/09/2023,1246066,Barrie Bookkeeping & Payroll,Adult Social Care - Other Transfer Pay,Bi-Borough Director of Integrated Care,2452.2
21/09/2023,1280973,PERSONAL PAYMENTS,Adult Social Care - Other Transfer Pay,Bi-Borough Director of Integrated Care,6394.48
21/09/2023,1246066,Barrie Bookkeeping & Payroll,Adult Social Care - Other Transfer Pay,Bi-Borough Director of Integrated Care,1029.88
21/09/2023,1268346,PERSONAL PAYMENTS,Adult Social Care - Other Transfer Pay,Bi-Borough Director of Integrated Care,2234.8
21/09/2023,1246066,Barrie Bookkeeping & Payroll,Adult Social Care - Other Transfer Pay,Bi-Borough Director of Integrated Care,3166.36
21/09/2023,1246066,Barrie Bookkeeping & Payroll,Adult Social Care - Other Transfer Pay,Bi-Borough Director of Integrated Care,1991
21/09/2023,1246066,Barrie Bookkeeping & Payroll,Adult Social Care - Other Transfer Pay,Bi-Borough Director of Integrated Care,918.96
21/09/2023,1292106,PERSONAL PAYMENTS,Adult Social Care - Other Transfer Pay,Bi-Borough Director of Integrated Care,1093.6
21/09/2023,1291747,PERSONAL PAYMENTS,Adult Social Care - Other Transfer Pay,Bi-Borough Director of Integrated Care,4627.14
21/09/2023,1247820,PERSONAL PAYMENTS,Adult Social Care - Other Transfer Pay,Bi-Borough Director of Integrated Care,8751.04
21/09/2023,1246066,Barrie Bookkeeping & Payroll,Adult Social Care - Other Transfer Pay,Bi-Borough Director of Integrated Care,1066.28
21/09/2023,1254540,PERSONAL PAYMENTS,Adult Social Care - Other Transfer Pay,Bi-Borough Director of Integrated Care,939.92
21/09/2023,1249942,PERSONAL PAYMENTS,Adult Social Care - Other Transfer Pay,Bi-Borough Director of Integrated Care,6343.36
21/09/2023,1246066,Barrie Bookkeeping & Payroll,Adult Social Care - Other Transfer Pay,Bi-Borough Director of Integrated Care,2618.28
21/09/2023,1291747,PERSONAL PAYMENTS,Adult Social Care - Other Transfer Pay,Bi-Borough Director of Integrated Care,1682.52
21/09/2023,1246066,Barrie Bookkeeping & Payroll,Adult Social Care - Other Transfer Pay,Bi-Borough Director of Integrated Care,858.2
21/09/2023,1291747,PERSONAL PAYMENTS,Adult Social Care - Other Transfer Pay,Bi-Borough Director of Integrated Care,1480.36
21/09/2023,1246066,Barrie Bookkeeping & Payroll,Adult Social Care - Other Transfer Pay,Bi-Borough Director of Integrated Care,1688.6
21/09/2023,1246066,Barrie Bookkeeping & Payroll,Adult Social Care - Other Transfer Pay,Bi-Borough Director of Integrated Care,733.8
21/09/2023,1269674,PERSONAL PAYMENTS,Adult Social Care - Other Transfer Pay,Bi-Borough Director of Integrated Care,889.28
21/09/2023,1250215,PERSONAL PAYMENTS,Adult Social Care - Other Transfer Pay,Bi-Borough Director of Integrated Care,1361.56
21/09/2023,1250536,PERSONAL PAYMENTS,Adult Social Care - Other Transfer Pay,Bi-Borough Director of Integrated Care,678.64
21/09/2023,1248354,PERSONAL PAYMENTS,Adult Social Care - Other Transfer Pay,Bi-Borough Director of Integrated Care,2425.36
21/09/2023,1246066,Barrie Bookkeeping & Payroll,Adult Social Care - Other Transfer Pay,Bi-Borough Director of Integrated Care,2690.16
21/09/2023,1248154,PERSONAL PAYMENTS,Adult Social Care - Other Transfer Pay,Bi-Borough Director of Integrated Care,829.52
21/09/2023,1291747,PERSONAL PAYMENTS,Adult Social Care - Other Transfer Pay,Bi-Borough Director of Integrated Care,7762.32
21/09/2023,1291747,PERSONAL PAYMENTS,Adult Social Care - Other Transfer Pay,Bi-Borough Director of Integrated Care,4521
21/09/2023,1248010,PERSONAL PAYMENTS,Adult Social Care - Other Transfer Pay,Bi-Borough Director of Integrated Care,646.16
21/09/2023,1246066,Barrie Bookkeeping & Payroll,Adult Social Care - Other Transfer Pay,Bi-Borough Director of Integrated Care,544
21/09/2023,1291747,PERSONAL PAYMENTS,Adult Social Care - Other Transfer Pay,Bi-Borough Director of Integrated Care,1931.4
21/09/2023,1291747,PERSONAL PAYMENTS,Adult Social Care - Other Transfer Pay,Bi-Borough Director of Integrated Care,2041.76
21/09/2023,1291747,PERSONAL PAYMENTS,Adult Social Care - Other Transfer Pay,Bi-Borough Director of Integrated Care,5848.47
21/09/2023,1246066,Barrie Bookkeeping & Payroll,Adult Social Care - Other Transfer Pay,Bi-Borough Director of Integrated Care,5754.04
21/09/2023,1246066,Barrie Bookkeeping & Payroll,Adult Social Care - Other Transfer Pay,Bi-Borough Director of Integrated Care,5914.56
21/09/2023,1250037,PERSONAL PAYMENTS,Adult Social Care - Other Transfer Pay,Bi-Borough Director of Integrated Care,2383.72
19/07/2023,1258049,PSS (UK),,Bi-Borough Director of Integrated Care,2794
16/08/2023,1258049,PSS (UK),,Bi-Borough Director of Integrated Care,2794
13/09/2023,1258049,PSS (UK),,Bi-Borough Director of Integrated Care,2794
19/07/2023,1245021,Paradise Community,,Bi-Borough Director of Integrated Care,11143.72
16/08/2023,1245021,Paradise Community,,Bi-Borough Director of Integrated Care,11143.72
13/09/2023,1245021,Paradise Community,,Bi-Borough Director of Integrated Care,11143.72
19/07/2023,1292143,Pathway for Care Ltd T/a Transformi,,Bi-Borough Director of Integrated Care,10954.64
16/08/2023,1292143,Pathway for Care Ltd T/a Transformi,,Bi-Borough Director of Integrated Care,10954.64
13/09/2023,1292143,Pathway for Care Ltd T/a Transformi,,Bi-Borough Director of Integrated Care,10954.64
19/07/2023,1250448,PERSONAL PAYMENTS,,Bi-Borough Director of Integrated Care,1419.24
16/08/2023,1250448,PERSONAL PAYMENTS,,Bi-Borough Director of Integrated Care,1419.24
13/09/2023,1250448,PERSONAL PAYMENTS,,Bi-Borough Director of Integrated Care,1419.24
19/07/2023,1245163,Poor Servants of the mother of,,Bi-Borough Director of Integrated Care,2878.88
16/08/2023,1245163,Poor Servants of the mother of,,Bi-Borough Director of Integrated Care,7287.09
13/09/2023,1245163,Poor Servants of the mother of,,Bi-Borough Director of Integrated Care,3800
19/07/2023,1245166,Precious Homes Support Ltd,,Bi-Borough Director of Integrated Care,2793
19/07/2023,1245166,Precious Homes Support Ltd,,Bi-Borough Director of Integrated Care,2793
16/08/2023,1245166,Precious Homes Support Ltd,,Bi-Borough Director of Integrated Care,2793
16/08/2023,1245166,Precious Homes Support Ltd,,Bi-Borough Director of Integrated Care,2793
13/09/2023,1245166,Precious Homes Support Ltd,,Bi-Borough Director of Integrated Care,2793
13/09/2023,1245166,Precious Homes Support Ltd,,Bi-Borough Director of Integrated Care,2793
24/07/2023,1248563,Pursuing Independent Paths,B*Voluntary-Spot-V Dep-Enhanced - do not u,Bi-Borough Director of Integrated Care,1020.88
24/07/2023,1248563,Pursuing Independent Paths,B*Voluntary-Spot-V Dep-Enhanced - do not u,Bi-Borough Director of Integrated Care,1276.1
24/07/2023,1248563,Pursuing Independent Paths,B*Voluntary-Spot-V Dep-Enhanced - do not u,Bi-Borough Director of Integrated Care,1531.32
24/07/2023,1248563,Pursuing Independent Paths,B*Voluntary-Spot-V Dep-Enhanced - do not u,Bi-Borough Director of Integrated Care,1786.54
24/07/2023,1248563,Pursuing Independent Paths,B*Voluntary-Spot-V Dep-Enhanced - do not u,Bi-Borough Director of Integrated Care,1289.32
24/07/2023,1248563,Pursuing Independent Paths,B*Voluntary-Spot-V Dep-Enhanced - do not u,Bi-Borough Director of Integrated Care,510.44
24/07/2023,1248563,Pursuing Independent Paths,B*Voluntary-Spot-V Dep-Enhanced - do not u,Bi-Borough Director of Integrated Care,1020.88
24/07/2023,1248563,Pursuing Independent Paths,B*Voluntary-Spot-V Dep-Enhanced - do not u,Bi-Borough Director of Integrated Care,1020.88
24/07/2023,1248563,Pursuing Independent Paths,B*Voluntary-Spot-V Dep-Enhanced - do not u,Bi-Borough Director of Integrated Care,1531.32
24/07/2023,1248563,Pursuing Independent Paths,B*Voluntary-Spot-V Dep-Enhanced - do not u,Bi-Borough Director of Integrated Care,1531.32
24/07/2023,1248563,Pursuing Independent Paths,B*Voluntary-Spot-V Dep-Enhanced - do not u,Bi-Borough Director of Integrated Care,510.44
24/07/2023,1248563,Pursuing Independent Paths,B*Voluntary-Spot-V Dep-Enhanced - do not u,Bi-Borough Director of Integrated Care,1531.32
24/07/2023,1248563,Pursuing Independent Paths,B*Voluntary-Spot-V Dep-Enhanced - do not u,Bi-Borough Director of Integrated Care,1531.32
24/07/2023,1248563,Pursuing Independent Paths,B*Voluntary-Spot-V Dep-Enhanced - do not u,Bi-Borough Director of Integrated Care,1276.1
24/07/2023,1248563,Pursuing Independent Paths,B*Voluntary-Spot-V Dep-Enhanced - do not u,Bi-Borough Director of Integrated Care,2552.2
24/07/2023,1248563,Pursuing Independent Paths,B*Voluntary-Spot-V Dep-Enhanced - do not u,Bi-Borough Director of Integrated Care,1531.32
24/07/2023,1248563,Pursuing Independent Paths,B*Voluntary-Spot-V Dep-Enhanced - do not u,Bi-Borough Director of Integrated Care,1531.32
24/07/2023,1248563,Pursuing Independent Paths,B*Voluntary-Spot-V Dep-Enhanced - do not u,Bi-Borough Director of Integrated Care,1531.32
24/07/2023,1248563,Pursuing Independent Paths,B*Voluntary-Spot-V Dep-Enhanced - do not u,Bi-Borough Director of Integrated Care,1276.1
24/07/2023,1248563,Pursuing Independent Paths,B*Voluntary-Spot-V Dep-Enhanced - do not u,Bi-Borough Director of Integrated Care,510.44
24/07/2023,1248563,Pursuing Independent Paths,B*Voluntary-Spot-V Dep-Enhanced - do not u,Bi-Borough Director of Integrated Care,1252.72
24/07/2023,1248563,Pursuing Independent Paths,B*Voluntary-Spot-V Dep-Enhanced - do not u,Bi-Borough Director of Integrated Care,510.44
24/07/2023,1248563,Pursuing Independent Paths,B*Voluntary-Spot-V Dep-Enhanced - do not u,Bi-Borough Director of Integrated Care,510.44
24/07/2023,1248563,Pursuing Independent Paths,B*Voluntary-Spot-V Dep-Enhanced - do not u,Bi-Borough Director of Integrated Care,1879.08
24/07/2023,1248563,Pursuing Independent Paths,B*Voluntary-Spot-V Dep-Enhanced - do not u,Bi-Borough Director of Integrated Care,1531.32
24/07/2023,1248563,Pursuing Independent Paths,B*Voluntary-Spot-V Dep-Enhanced - do not u,Bi-Borough Director of Integrated Care,510.44
24/07/2023,1248563,Pursuing Independent Paths,B*Voluntary-Spot-V Dep-Enhanced - do not u,Bi-Borough Director of Integrated Care,1020.88
24/07/2023,1248563,Pursuing Independent Paths,B*Voluntary-Spot-V Dep-Enhanced - do not u,Bi-Borough Director of Integrated Care,546.9
24/07/2023,1248563,Pursuing Independent Paths,B*Voluntary-Spot-V Dep-Enhanced - do not u,Bi-Borough Director of Integrated Care,583.36
24/07/2023,1248563,Pursuing Independent Paths,B*Voluntary-Spot-V Dep-Enhanced - do not u,Bi-Borough Director of Integrated Care,510.44
24/07/2023,1248563,Pursuing Independent Paths,B*Voluntary-Spot-V Dep-Enhanced - do not u,Bi-Borough Director of Integrated Care,1531.32
24/07/2023,1248563,Pursuing Independent Paths,B*Voluntary-Spot-V Dep-Enhanced - do not u,Bi-Borough Director of Integrated Care,1020.88
24/07/2023,1248563,Pursuing Independent Paths,B*Voluntary-Spot-V Dep-Enhanced - do not u,Bi-Borough Director of Integrated Care,1020.88
24/07/2023,1248563,Pursuing Independent Paths,B*Voluntary-Spot-V Dep-Enhanced - do not u,Bi-Borough Director of Integrated Care,1531.32
24/07/2023,1248563,Pursuing Independent Paths,B*Voluntary-Spot-V Dep-Enhanced - do not u,Bi-Borough Director of Integrated Care,510.44
24/07/2023,1248563,Pursuing Independent Paths,B*Voluntary-Spot-V Dep-Enhanced - do not u,Bi-Borough Director of Integrated Care,1531.32
24/07/2023,1248563,Pursuing Independent Paths,B*Voluntary-Spot-V Dep-Enhanced - do not u,Bi-Borough Director of Integrated Care,1020.88
24/07/2023,1248563,Pursuing Independent Paths,B*Voluntary-Spot-V Dep-Enhanced - do not u,Bi-Borough Director of Integrated Care,2041.76
24/07/2023,1248563,Pursuing Independent Paths,B*Voluntary-Spot-V Dep-Enhanced - do not u,Bi-Borough Director of Integrated Care,1531.32
24/07/2023,1248563,Pursuing Independent Paths,B*Voluntary-Spot-V Dep-Enhanced - do not u,Bi-Borough Director of Integrated Care,1531.32
24/07/2023,1248563,Pursuing Independent Paths,B*Voluntary-Spot-V Dep-Enhanced - do not u,Bi-Borough Director of Integrated Care,1531.32
29/08/2023,1248563,Pursuing Independent Paths,B*Voluntary-Spot-V Dep-Enhanced - do not u,Bi-Borough Director of Integrated Care,1020.88
29/08/2023,1248563,Pursuing Independent Paths,B*Voluntary-Spot-V Dep-Enhanced - do not u,Bi-Borough Director of Integrated Care,1276.1
29/08/2023,1248563,Pursuing Independent Paths,B*Voluntary-Spot-V Dep-Enhanced - do not u,Bi-Borough Director of Integrated Care,1531.32
29/08/2023,1248563,Pursuing Independent Paths,B*Voluntary-Spot-V Dep-Enhanced - do not u,Bi-Borough Director of Integrated Care,1786.54
29/08/2023,1248563,Pursuing Independent Paths,B*Voluntary-Spot-V Dep-Enhanced - do not u,Bi-Borough Director of Integrated Care,1289.32
29/08/2023,1248563,Pursuing Independent Paths,B*Voluntary-Spot-V Dep-Enhanced - do not u,Bi-Borough Director of Integrated Care,510.44
29/08/2023,1248563,Pursuing Independent Paths,B*Voluntary-Spot-V Dep-Enhanced - do not u,Bi-Borough Director of Integrated Care,1020.88
29/08/2023,1248563,Pursuing Independent Paths,B*Voluntary-Spot-V Dep-Enhanced - do not u,Bi-Borough Director of Integrated Care,1020.88
29/08/2023,1248563,Pursuing Independent Paths,B*Voluntary-Spot-V Dep-Enhanced - do not u,Bi-Borough Director of Integrated Care,1531.32
29/08/2023,1248563,Pursuing Independent Paths,B*Voluntary-Spot-V Dep-Enhanced - do not u,Bi-Borough Director of Integrated Care,1531.32
29/08/2023,1248563,Pursuing Independent Paths,B*Voluntary-Spot-V Dep-Enhanced - do not u,Bi-Borough Director of Integrated Care,510.44
29/08/2023,1248563,Pursuing Independent Paths,B*Voluntary-Spot-V Dep-Enhanced - do not u,Bi-Borough Director of Integrated Care,1531.32
29/08/2023,1248563,Pursuing Independent Paths,B*Voluntary-Spot-V Dep-Enhanced - do not u,Bi-Borough Director of Integrated Care,1531.32
29/08/2023,1248563,Pursuing Independent Paths,B*Voluntary-Spot-V Dep-Enhanced - do not u,Bi-Borough Director of Integrated Care,1276.1
29/08/2023,1248563,Pursuing Independent Paths,B*Voluntary-Spot-V Dep-Enhanced - do not u,Bi-Borough Director of Integrated Care,2552.2
29/08/2023,1248563,Pursuing Independent Paths,B*Voluntary-Spot-V Dep-Enhanced - do not u,Bi-Borough Director of Integrated Care,1531.32
29/08/2023,1248563,Pursuing Independent Paths,B*Voluntary-Spot-V Dep-Enhanced - do not u,Bi-Borough Director of Integrated Care,1531.32
29/08/2023,1248563,Pursuing Independent Paths,B*Voluntary-Spot-V Dep-Enhanced - do not u,Bi-Borough Director of Integrated Care,1531.32
29/08/2023,1248563,Pursuing Independent Paths,B*Voluntary-Spot-V Dep-Enhanced - do not u,Bi-Borough Director of Integrated Care,1276.1
29/08/2023,1248563,Pursuing Independent Paths,B*Voluntary-Spot-V Dep-Enhanced - do not u,Bi-Borough Director of Integrated Care,510.44
29/08/2023,1248563,Pursuing Independent Paths,B*Voluntary-Spot-V Dep-Enhanced - do not u,Bi-Borough Director of Integrated Care,1252.72
29/08/2023,1248563,Pursuing Independent Paths,B*Voluntary-Spot-V Dep-Enhanced - do not u,Bi-Borough Director of Integrated Care,510.44
29/08/2023,1248563,Pursuing Independent Paths,B*Voluntary-Spot-V Dep-Enhanced - do not u,Bi-Borough Director of Integrated Care,510.44
29/08/2023,1248563,Pursuing Independent Paths,B*Voluntary-Spot-V Dep-Enhanced - do not u,Bi-Borough Director of Integrated Care,1879.08
29/08/2023,1248563,Pursuing Independent Paths,B*Voluntary-Spot-V Dep-Enhanced - do not u,Bi-Borough Director of Integrated Care,1531.32
29/08/2023,1248563,Pursuing Independent Paths,B*Voluntary-Spot-V Dep-Enhanced - do not u,Bi-Borough Director of Integrated Care,510.44
29/08/2023,1248563,Pursuing Independent Paths,B*Voluntary-Spot-V Dep-Enhanced - do not u,Bi-Borough Director of Integrated Care,1020.88
29/08/2023,1248563,Pursuing Independent Paths,B*Voluntary-Spot-V Dep-Enhanced - do not u,Bi-Borough Director of Integrated Care,546.9
29/08/2023,1248563,Pursuing Independent Paths,B*Voluntary-Spot-V Dep-Enhanced - do not u,Bi-Borough Director of Integrated Care,583.36
29/08/2023,1248563,Pursuing Independent Paths,B*Voluntary-Spot-V Dep-Enhanced - do not u,Bi-Borough Director of Integrated Care,510.44
29/08/2023,1248563,Pursuing Independent Paths,B*Voluntary-Spot-V Dep-Enhanced - do not u,Bi-Borough Director of Integrated Care,1531.32
29/08/2023,1248563,Pursuing Independent Paths,B*Voluntary-Spot-V Dep-Enhanced - do not u,Bi-Borough Director of Integrated Care,1020.88
29/08/2023,1248563,Pursuing Independent Paths,B*Voluntary-Spot-V Dep-Enhanced - do not u,Bi-Borough Director of Integrated Care,1020.88
29/08/2023,1248563,Pursuing Independent Paths,B*Voluntary-Spot-V Dep-Enhanced - do not u,Bi-Borough Director of Integrated Care,1531.32
29/08/2023,1248563,Pursuing Independent Paths,B*Voluntary-Spot-V Dep-Enhanced - do not u,Bi-Borough Director of Integrated Care,510.44
29/08/2023,1248563,Pursuing Independent Paths,B*Voluntary-Spot-V Dep-Enhanced - do not u,Bi-Borough Director of Integrated Care,1531.32
29/08/2023,1248563,Pursuing Independent Paths,B*Voluntary-Spot-V Dep-Enhanced - do not u,Bi-Borough Director of Integrated Care,1020.88
29/08/2023,1248563,Pursuing Independent Paths,B*Voluntary-Spot-V Dep-Enhanced - do not u,Bi-Borough Director of Integrated Care,2041.76
29/08/2023,1248563,Pursuing Independent Paths,B*Voluntary-Spot-V Dep-Enhanced - do not u,Bi-Borough Director of Integrated Care,1531.32
29/08/2023,1248563,Pursuing Independent Paths,B*Voluntary-Spot-V Dep-Enhanced - do not u,Bi-Borough Director of Integrated Care,1531.32
29/08/2023,1248563,Pursuing Independent Paths,B*Voluntary-Spot-V Dep-Enhanced - do not u,Bi-Borough Director of Integrated Care,1531.32
25/09/2023,1248563,Pursuing Independent Paths,B*Voluntary-Spot-V Dep-Enhanced - do not u,Bi-Borough Director of Integrated Care,1531.32
25/09/2023,1248563,Pursuing Independent Paths,B*Voluntary-Spot-V Dep-Enhanced - do not u,Bi-Borough Director of Integrated Care,1276.1
25/09/2023,1248563,Pursuing Independent Paths,B*Voluntary-Spot-V Dep-Enhanced - do not u,Bi-Borough Director of Integrated Care,1531.32
25/09/2023,1248563,Pursuing Independent Paths,B*Voluntary-Spot-V Dep-Enhanced - do not u,Bi-Borough Director of Integrated Care,1786.54
25/09/2023,1248563,Pursuing Independent Paths,B*Voluntary-Spot-V Dep-Enhanced - do not u,Bi-Borough Director of Integrated Care,1289.32
25/09/2023,1248563,Pursuing Independent Paths,B*Voluntary-Spot-V Dep-Enhanced - do not u,Bi-Borough Director of Integrated Care,510.44
25/09/2023,1248563,Pursuing Independent Paths,B*Voluntary-Spot-V Dep-Enhanced - do not u,Bi-Borough Director of Integrated Care,1020.88
25/09/2023,1248563,Pursuing Independent Paths,B*Voluntary-Spot-V Dep-Enhanced - do not u,Bi-Borough Director of Integrated Care,1020.88
25/09/2023,1248563,Pursuing Independent Paths,B*Voluntary-Spot-V Dep-Enhanced - do not u,Bi-Borough Director of Integrated Care,1531.32
25/09/2023,1248563,Pursuing Independent Paths,B*Voluntary-Spot-V Dep-Enhanced - do not u,Bi-Borough Director of Integrated Care,1531.32
25/09/2023,1248563,Pursuing Independent Paths,B*Voluntary-Spot-V Dep-Enhanced - do not u,Bi-Borough Director of Integrated Care,510.44
25/09/2023,1248563,Pursuing Independent Paths,B*Voluntary-Spot-V Dep-Enhanced - do not u,Bi-Borough Director of Integrated Care,1531.32
25/09/2023,1248563,Pursuing Independent Paths,B*Voluntary-Spot-V Dep-Enhanced - do not u,Bi-Borough Director of Integrated Care,1531.32
25/09/2023,1248563,Pursuing Independent Paths,B*Voluntary-Spot-V Dep-Enhanced - do not u,Bi-Borough Director of Integrated Care,1276.1
25/09/2023,1248563,Pursuing Independent Paths,B*Voluntary-Spot-V Dep-Enhanced - do not u,Bi-Borough Director of Integrated Care,2552.2
25/09/2023,1248563,Pursuing Independent Paths,B*Voluntary-Spot-V Dep-Enhanced - do not u,Bi-Borough Director of Integrated Care,1531.32
25/09/2023,1248563,Pursuing Independent Paths,B*Voluntary-Spot-V Dep-Enhanced - do not u,Bi-Borough Director of Integrated Care,1531.32
25/09/2023,1248563,Pursuing Independent Paths,B*Voluntary-Spot-V Dep-Enhanced - do not u,Bi-Borough Director of Integrated Care,1531.32
25/09/2023,1248563,Pursuing Independent Paths,B*Voluntary-Spot-V Dep-Enhanced - do not u,Bi-Borough Director of Integrated Care,1276.1
25/09/2023,1248563,Pursuing Independent Paths,B*Voluntary-Spot-V Dep-Enhanced - do not u,Bi-Borough Director of Integrated Care,1252.72
25/09/2023,1248563,Pursuing Independent Paths,B*Voluntary-Spot-V Dep-Enhanced - do not u,Bi-Borough Director of Integrated Care,510.44
25/09/2023,1248563,Pursuing Independent Paths,B*Voluntary-Spot-V Dep-Enhanced - do not u,Bi-Borough Director of Integrated Care,510.44
25/09/2023,1248563,Pursuing Independent Paths,B*Voluntary-Spot-V Dep-Enhanced - do not u,Bi-Borough Director of Integrated Care,1879.08
25/09/2023,1248563,Pursuing Independent Paths,B*Voluntary-Spot-V Dep-Enhanced - do not u,Bi-Borough Director of Integrated Care,1531.32
25/09/2023,1248563,Pursuing Independent Paths,B*Voluntary-Spot-V Dep-Enhanced - do not u,Bi-Borough Director of Integrated Care,510.44
25/09/2023,1248563,Pursuing Independent Paths,B*Voluntary-Spot-V Dep-Enhanced - do not u,Bi-Borough Director of Integrated Care,1020.88
25/09/2023,1248563,Pursuing Independent Paths,B*Voluntary-Spot-V Dep-Enhanced - do not u,Bi-Borough Director of Integrated Care,546.9
25/09/2023,1248563,Pursuing Independent Paths,B*Voluntary-Spot-V Dep-Enhanced - do not u,Bi-Borough Director of Integrated Care,583.36
25/09/2023,1248563,Pursuing Independent Paths,B*Voluntary-Spot-V Dep-Enhanced - do not u,Bi-Borough Director of Integrated Care,510.44
25/09/2023,1248563,Pursuing Independent Paths,B*Voluntary-Spot-V Dep-Enhanced - do not u,Bi-Borough Director of Integrated Care,1531.32
25/09/2023,1248563,Pursuing Independent Paths,B*Voluntary-Spot-V Dep-Enhanced - do not u,Bi-Borough Director of Integrated Care,1020.88
25/09/2023,1248563,Pursuing Independent Paths,B*Voluntary-Spot-V Dep-Enhanced - do not u,Bi-Borough Director of Integrated Care,1020.88
25/09/2023,1248563,Pursuing Independent Paths,B*Voluntary-Spot-V Dep-Enhanced - do not u,Bi-Borough Director of Integrated Care,1531.32
25/09/2023,1248563,Pursuing Independent Paths,B*Voluntary-Spot-V Dep-Enhanced - do not u,Bi-Borough Director of Integrated Care,510.44
25/09/2023,1248563,Pursuing Independent Paths,B*Voluntary-Spot-V Dep-Enhanced - do not u,Bi-Borough Director of Integrated Care,1531.32
25/09/2023,1248563,Pursuing Independent Paths,B*Voluntary-Spot-V Dep-Enhanced - do not u,Bi-Borough Director of Integrated Care,1020.88
25/09/2023,1248563,Pursuing Independent Paths,B*Voluntary-Spot-V Dep-Enhanced - do not u,Bi-Borough Director of Integrated Care,1020.88
25/09/2023,1248563,Pursuing Independent Paths,B*Voluntary-Spot-V Dep-Enhanced - do not u,Bi-Borough Director of Integrated Care,2041.76
25/09/2023,1248563,Pursuing Independent Paths,B*Voluntary-Spot-V Dep-Enhanced - do not u,Bi-Borough Director of Integrated Care,1531.32
25/09/2023,1248563,Pursuing Independent Paths,B*Voluntary-Spot-V Dep-Enhanced - do not u,Bi-Borough Director of Integrated Care,1531.32
25/09/2023,1248563,Pursuing Independent Paths,B*Voluntary-Spot-V Dep-Enhanced - do not u,Bi-Borough Director of Integrated Care,1531.32
19/07/2023,1245169,Rcp Residential Care Providers Ltd,,Bi-Borough Director of Integrated Care,8092.44
16/08/2023,1245169,Rcp Residential Care Providers Ltd,,Bi-Borough Director of Integrated Care,8092.44
13/09/2023,1245169,Rcp Residential Care Providers Ltd,,Bi-Borough Director of Integrated Care,8092.44
19/07/2023,1269718,Reliant Care Limited,,Bi-Borough Director of Integrated Care,7008
19/07/2023,1269718,Reliant Care Limited,,Bi-Borough Director of Integrated Care,8764
19/07/2023,1269718,Reliant Care Limited,,Bi-Borough Director of Integrated Care,3712
19/07/2023,1269718,Reliant Care Limited,,Bi-Borough Director of Integrated Care,3712
16/08/2023,1269718,Reliant Care Limited,,Bi-Borough Director of Integrated Care,7008
16/08/2023,1269718,Reliant Care Limited,,Bi-Borough Director of Integrated Care,3712
16/08/2023,1269718,Reliant Care Limited,,Bi-Borough Director of Integrated Care,3712
16/08/2023,1269718,Reliant Care Limited,,Bi-Borough Director of Integrated Care,8764
13/09/2023,1269718,Reliant Care Limited,,Bi-Borough Director of Integrated Care,3712
13/09/2023,1269718,Reliant Care Limited,,Bi-Borough Director of Integrated Care,3712
13/09/2023,1269718,Reliant Care Limited,,Bi-Borough Director of Integrated Care,8764
05/07/2023,1298287,Residential Care Services Ltd,B*Voluntary-Spot-V Dep-Enhanced - do not u,Bi-Borough Director of Integrated Care,1653.84
05/07/2023,1298287,Residential Care Services Ltd,B*Voluntary-Spot-V Dep-Enhanced - do not u,Bi-Borough Director of Integrated Care,1653.84
14/08/2023,1298287,Residential Care Services Ltd,B*Voluntary-Spot-V Dep-Enhanced - do not u,Bi-Borough Director of Integrated Care,1653.84
14/09/2023,1298287,Residential Care Services Ltd,B*Voluntary-Spot-V Dep-Enhanced - do not u,Bi-Borough Director of Integrated Care,1653.84
25/09/2023,1298287,Residential Care Services Ltd,B*Voluntary-Spot-V Dep-Enhanced - do not u,Bi-Borough Director of Integrated Care,1653.84
19/07/2023,1248843,Sage Care Ltd,,Bi-Borough Director of Integrated Care,636.4
19/07/2023,1248843,Sage Care Ltd,,Bi-Borough Director of Integrated Care,1908.92
19/07/2023,1248843,Sage Care Ltd,,Bi-Borough Director of Integrated Care,1781.64
19/07/2023,1248843,Sage Care Ltd,,Bi-Borough Director of Integrated Care,588.58
20/07/2023,1248843,Sage Care Ltd,,Bi-Borough Director of Integrated Care,1649.76
20/07/2023,1248843,Sage Care Ltd,,Bi-Borough Director of Integrated Care,1640.34
26/07/2023,1248843,Sage Care Ltd,,Bi-Borough Director of Integrated Care,636.4
26/07/2023,1248843,Sage Care Ltd,,Bi-Borough Director of Integrated Care,1908.92
26/07/2023,1248843,Sage Care Ltd,,Bi-Borough Director of Integrated Care,1742.05
26/07/2023,1248843,Sage Care Ltd,,Bi-Borough Director of Integrated Care,593.88
13/09/2023,1248843,Sage Care Ltd,,Bi-Borough Director of Integrated Care,593.88
13/09/2023,1248843,Sage Care Ltd,,Bi-Borough Director of Integrated Care,636.4
13/09/2023,1248843,Sage Care Ltd,,Bi-Borough Director of Integrated Care,1908.92
13/09/2023,1248843,Sage Care Ltd,,Bi-Borough Director of Integrated Care,1781.64
22/09/2023,1248843,Sage Care Ltd,,Bi-Borough Director of Integrated Care,604.58
22/09/2023,1248843,Sage Care Ltd,,Bi-Borough Director of Integrated Care,636.4
22/09/2023,1248843,Sage Care Ltd,,Bi-Borough Director of Integrated Care,1871.81
22/09/2023,1248843,Sage Care Ltd,,Bi-Borough Director of Integrated Care,1758.45
22/09/2023,1248843,Sage Care Ltd,,Bi-Borough Director of Integrated Care,593.88
19/07/2023,1262057,Sense - The National Deafbllind,,Bi-Borough Director of Integrated Care,4868.52
19/07/2023,1262057,Sense - The National Deafbllind,,Bi-Borough Director of Integrated Care,4868.52
16/08/2023,1262057,Sense - The National Deafbllind,,Bi-Borough Director of Integrated Care,4868.52
16/08/2023,1262057,Sense - The National Deafbllind,,Bi-Borough Director of Integrated Care,4868.52
13/09/2023,1262057,Sense - The National Deafbllind,,Bi-Borough Director of Integrated Care,4868.52
13/09/2023,1262057,Sense - The National Deafbllind,,Bi-Borough Director of Integrated Care,4868.52
19/07/2023,1245566,Shaw Care Uk Ltd,,Bi-Borough Director of Integrated Care,5191.64
19/07/2023,1245566,Shaw Care Uk Ltd,,Bi-Borough Director of Integrated Care,5191.64
16/08/2023,1245566,Shaw Care Uk Ltd,,Bi-Borough Director of Integrated Care,5191.64
16/08/2023,1245566,Shaw Care Uk Ltd,,Bi-Borough Director of Integrated Care,5191.64
13/09/2023,1245566,Shaw Care Uk Ltd,,Bi-Borough Director of Integrated Care,5191.64
13/09/2023,1245566,Shaw Care Uk Ltd,,Bi-Borough Director of Integrated Care,5191.64
19/07/2023,1286751,Shine Partnerships Limited,,Bi-Borough Director of Integrated Care,11402.79
19/07/2023,1286751,Shine Partnerships Limited,,Bi-Borough Director of Integrated Care,1700
16/08/2023,1286751,Shine Partnerships Limited,,Bi-Borough Director of Integrated Care,1700
16/08/2023,1286751,Shine Partnerships Limited,,Bi-Borough Director of Integrated Care,3082.28
13/09/2023,1286751,Shine Partnerships Limited,,Bi-Borough Director of Integrated Care,1700
13/09/2023,1286751,Shine Partnerships Limited,,Bi-Borough Director of Integrated Care,3082.28
05/07/2023,1302889,Solitions Social Care,B*Voluntary-Spot-V Dep-Enhanced - do not u,Bi-Borough Director of Integrated Care,7733.75
02/08/2023,1302889,Solitions Social Care,B*Voluntary-Spot-V Dep-Enhanced - do not u,Bi-Borough Director of Integrated Care,6187
04/09/2023,1302889,Solitions Social Care,B*Voluntary-Spot-V Dep-Enhanced - do not u,Bi-Borough Director of Integrated Care,7733.75
05/07/2023,1294228,Solutions Logistics Ltd,B*Voluntary-Spot-V Dep-Enhanced - do not u,Bi-Borough Director of Integrated Care,1650
02/08/2023,1294228,Solutions Logistics Ltd,B*Voluntary-Spot-V Dep-Enhanced - do not u,Bi-Borough Director of Integrated Care,1575
01/09/2023,1294228,Solutions Logistics Ltd,B*Voluntary-Spot-V Dep-Enhanced - do not u,Bi-Borough Director of Integrated Care,1725
19/07/2023,1248935,Southside Partnership,,Bi-Borough Director of Integrated Care,800
19/07/2023,1248935,Southside Partnership,,Bi-Borough Director of Integrated Care,3592.8
19/07/2023,1248935,Southside Partnership,,Bi-Borough Director of Integrated Care,800
19/07/2023,1248935,Southside Partnership,,Bi-Borough Director of Integrated Care,2546.68
16/08/2023,1248935,Southside Partnership,,Bi-Borough Director of Integrated Care,800
16/08/2023,1248935,Southside Partnership,,Bi-Borough Director of Integrated Care,3592.8
16/08/2023,1248935,Southside Partnership,,Bi-Borough Director of Integrated Care,2546.68
16/08/2023,1248935,Southside Partnership,,Bi-Borough Director of Integrated Care,800
13/09/2023,1248935,Southside Partnership,,Bi-Borough Director of Integrated Care,2546.68
13/09/2023,1248935,Southside Partnership,,Bi-Borough Director of Integrated Care,800
13/09/2023,1248935,Southside Partnership,,Bi-Borough Director of Integrated Care,800
13/09/2023,1248935,Southside Partnership,,Bi-Borough Director of Integrated Care,3592.8
17/07/2023,1248940,Special People,B*Voluntary-Spot-V Dep-Enhanced - do not u,Bi-Borough Director of Integrated Care,568.08
17/07/2023,1248940,Special People,B*Voluntary-Spot-V Dep-Enhanced - do not u,Bi-Borough Director of Integrated Care,688.32
17/07/2023,1248940,Special People,B*Voluntary-Spot-V Dep-Enhanced - do not u,Bi-Borough Director of Integrated Care,5057
08/08/2023,1248940,Special People,B*Voluntary-Spot-V Dep-Enhanced - do not u,Bi-Borough Director of Integrated Care,1234.44
08/08/2023,1248940,Special People,B*Voluntary-Spot-V Dep-Enhanced - do not u,Bi-Borough Director of Integrated Care,793.38
08/08/2023,1248940,Special People,B*Voluntary-Spot-V Dep-Enhanced - do not u,Bi-Borough Director of Integrated Care,568.08
14/08/2023,1248940,Special People,B*Voluntary-Spot-V Dep-Enhanced - do not u,Bi-Borough Director of Integrated Care,1248
14/08/2023,1248940,Special People,B*Voluntary-Spot-V Dep-Enhanced - do not u,Bi-Borough Director of Integrated Care,5450
16/09/2023,1248940,Special People,B*Voluntary-Spot-V Dep-Enhanced - do not u,Bi-Borough Director of Integrated Care,2190
16/09/2023,1248940,Special People,B*Voluntary-Spot-V Dep-Enhanced - do not u,Bi-Borough Director of Integrated Care,912
16/09/2023,1248940,Special People,B*Voluntary-Spot-V Dep-Enhanced - do not u,Bi-Borough Director of Integrated Care,768
19/07/2023,1245620,Spencer & Arlington,,Bi-Borough Director of Integrated Care,9700.64
19/07/2023,1245620,Spencer & Arlington,,Bi-Borough Director of Integrated Care,9700.64
16/08/2023,1245620,Spencer & Arlington,,Bi-Borough Director of Integrated Care,9700.64
16/08/2023,1245620,Spencer & Arlington,,Bi-Borough Director of Integrated Care,9700.64
13/09/2023,1245620,Spencer & Arlington,,Bi-Borough Director of Integrated Care,9700.64
13/09/2023,1245620,Spencer & Arlington,,Bi-Borough Director of Integrated Care,9700.64
19/07/2023,1243543,Springlake Care Home Ltd,,Bi-Borough Director of Integrated Care,6000
19/07/2023,1243543,Springlake Care Home Ltd,,Bi-Borough Director of Integrated Care,5400
19/07/2023,1243543,Springlake Care Home Ltd,,Bi-Borough Director of Integrated Care,6800
16/08/2023,1243543,Springlake Care Home Ltd,,Bi-Borough Director of Integrated Care,6000
16/08/2023,1243543,Springlake Care Home Ltd,,Bi-Borough Director of Integrated Care,5400
16/08/2023,1243543,Springlake Care Home Ltd,,Bi-Borough Director of Integrated Care,6800
13/09/2023,1243543,Springlake Care Home Ltd,,Bi-Borough Director of Integrated Care,5400
13/09/2023,1243543,Springlake Care Home Ltd,,Bi-Borough Director of Integrated Care,6800
13/09/2023,1243543,Springlake Care Home Ltd,,Bi-Borough Director of Integrated Care,6000
19/07/2023,1248948,St Davids Care In The Community,,Bi-Borough Director of Integrated Care,3132.56
19/07/2023,1248948,St Davids Care In The Community,,Bi-Borough Director of Integrated Care,3440
16/08/2023,1248948,St Davids Care In The Community,,Bi-Borough Director of Integrated Care,3132.56
16/08/2023,1248948,St Davids Care In The Community,,Bi-Borough Director of Integrated Care,3440
13/09/2023,1248948,St Davids Care In The Community,,Bi-Borough Director of Integrated Care,3132.56
13/09/2023,1248948,St Davids Care In The Community,,Bi-Borough Director of Integrated Care,3440
22/09/2023,1245182,Supporting Care Ltd,,Bi-Borough Director of Integrated Care,998.92
14/08/2023,1260994,SureCare Chelsea & Fulham,B*Voluntary-Spot-V Dep-Enhanced - do not u,Bi-Borough Director of Integrated Care,540
27/09/2023,1260994,SureCare Chelsea & Fulham,B*Voluntary-Spot-V Dep-Enhanced - do not u,Bi-Borough Director of Integrated Care,1440
27/09/2023,1260994,SureCare Chelsea & Fulham,B*Voluntary-Spot-V Dep-Enhanced - do not u,Bi-Borough Director of Integrated Care,540
06/07/2023,1307154,Surrey Choices Ltd,B*Voluntary-Spot-V Dep-Enhanced - do not u,Bi-Borough Director of Integrated Care,1710
24/07/2023,1307154,Surrey Choices Ltd,B*Voluntary-Spot-V Dep-Enhanced - do not u,Bi-Borough Director of Integrated Care,1512
06/09/2023,1307154,Surrey Choices Ltd,B*Voluntary-Spot-V Dep-Enhanced - do not u,Bi-Borough Director of Integrated Care,1512
16/09/2023,1307154,Surrey Choices Ltd,B*Voluntary-Spot-V Dep-Enhanced - do not u,Bi-Borough Director of Integrated Care,1890
05/07/2023,1245825,Sweet Tree Home Care Services,,Bi-Borough Director of Integrated Care,5532.62
14/08/2023,1245825,Sweet Tree Home Care Services,,Bi-Borough Director of Integrated Care,5559.9
04/09/2023,1245825,Sweet Tree Home Care Services,,Bi-Borough Director of Integrated Care,3448
19/07/2023,1305461,The Frances Taylor Foundation,,Bi-Borough Director of Integrated Care,3901.6
16/08/2023,1305461,The Frances Taylor Foundation,,Bi-Borough Director of Integrated Care,3901.6
13/09/2023,1305461,The Frances Taylor Foundation,,Bi-Borough Director of Integrated Care,3901.6
19/07/2023,1245900,The Grace Eyre Foundation,,Bi-Borough Director of Integrated Care,3290.16
19/07/2023,1245900,The Grace Eyre Foundation,,Bi-Borough Director of Integrated Care,4235.96
16/08/2023,1245900,The Grace Eyre Foundation,,Bi-Borough Director of Integrated Care,3290.16
16/08/2023,1245900,The Grace Eyre Foundation,,Bi-Borough Director of Integrated Care,4235.96
13/09/2023,1245900,The Grace Eyre Foundation,,Bi-Borough Director of Integrated Care,3290.16
13/09/2023,1245900,The Grace Eyre Foundation,,Bi-Borough Director of Integrated Care,4235.96
19/07/2023,1249156,The Wirral Autistic Society,,Bi-Borough Director of Integrated Care,5097.28
16/08/2023,1249156,The Wirral Autistic Society,,Bi-Borough Director of Integrated Care,5097.28
13/09/2023,1249156,The Wirral Autistic Society,,Bi-Borough Director of Integrated Care,5097.28
19/07/2023,1246095,Theana Ltd T/a Enlighten Homes,,Bi-Borough Director of Integrated Care,2946
19/07/2023,1246095,Theana Ltd T/a Enlighten Homes,,Bi-Borough Director of Integrated Care,2946
16/08/2023,1246095,Theana Ltd T/a Enlighten Homes,,Bi-Borough Director of Integrated Care,2946
16/08/2023,1246095,Theana Ltd T/a Enlighten Homes,,Bi-Borough Director of Integrated Care,2946
13/09/2023,1246095,Theana Ltd T/a Enlighten Homes,,Bi-Borough Director of Integrated Care,2946
13/09/2023,1246095,Theana Ltd T/a Enlighten Homes,,Bi-Borough Director of Integrated Care,2946
19/07/2023,1287640,VIVID COMMUNITY CARE LTD,,Bi-Borough Director of Integrated Care,15311.52
16/08/2023,1287640,VIVID COMMUNITY CARE LTD,,Bi-Borough Director of Integrated Care,15311.52
13/09/2023,1287640,VIVID COMMUNITY CARE LTD,,Bi-Borough Director of Integrated Care,15311.52
07/09/2023,1249232,Vincentian Care Plus,,Bi-Borough Director of Integrated Care,869.61
19/07/2023,1243552,Vision Homes Association,,Bi-Borough Director of Integrated Care,7760
16/08/2023,1243552,Vision Homes Association,,Bi-Borough Director of Integrated Care,7760
13/09/2023,1243552,Vision Homes Association,,Bi-Borough Director of Integrated Care,7760
19/07/2023,1243553,Voyage Care (Bridge House),,Bi-Borough Director of Integrated Care,7533.4
19/07/2023,1243553,Voyage Care (Bridge House),,Bi-Borough Director of Integrated Care,5079.2
19/07/2023,1243553,Voyage Care (Bridge House),,Bi-Borough Director of Integrated Care,6958.32
16/08/2023,1243553,Voyage Care (Bridge House),,Bi-Borough Director of Integrated Care,10417.65
16/08/2023,1243553,Voyage Care (Bridge House),,Bi-Borough Director of Integrated Care,6774.68
16/08/2023,1243553,Voyage Care (Bridge House),,Bi-Borough Director of Integrated Care,6958.32
13/09/2023,1243553,Voyage Care (Bridge House),,Bi-Borough Director of Integrated Care,5433.48
13/09/2023,1243553,Voyage Care (Bridge House),,Bi-Borough Director of Integrated Care,2960.87
13/09/2023,1243553,Voyage Care (Bridge House),,Bi-Borough Director of Integrated Care,7934.32
13/09/2023,1243553,Voyage Care (Bridge House),,Bi-Borough Director of Integrated Care,8136.08
19/07/2023,1243554,Voyage Care (Kenton House),,Bi-Borough Director of Integrated Care,6400.24
16/08/2023,1243554,Voyage Care (Kenton House),,Bi-Borough Director of Integrated Care,8850.53
13/09/2023,1243554,Voyage Care (Kenton House),,Bi-Borough Director of Integrated Care,6912.24
05/07/2023,1249291,Westminster Society,Rent,Bi-Borough Director of Integrated Care,20778.52
05/07/2023,1249291,Westminster Society,Rent,Bi-Borough Director of Integrated Care,19596.45
19/07/2023,1249291,Westminster Society,,Bi-Borough Director of Integrated Care,2450.56
19/07/2023,1249291,Westminster Society,,Bi-Borough Director of Integrated Care,599.08
19/07/2023,1249291,Westminster Society,,Bi-Borough Director of Integrated Care,959.59
19/07/2023,1249291,Westminster Society,,Bi-Borough Director of Integrated Care,4909.88
19/07/2023,1249291,Westminster Society,,Bi-Borough Director of Integrated Care,1237.83
19/07/2023,1249291,Westminster Society,,Bi-Borough Director of Integrated Care,2625.6
19/07/2023,1249291,Westminster Society,,Bi-Borough Director of Integrated Care,2188
19/07/2023,1249291,Westminster Society,,Bi-Borough Director of Integrated Care,599.08
19/07/2023,1249291,Westminster Society,,Bi-Borough Director of Integrated Care,4463.52
19/07/2023,1249291,Westminster Society,,Bi-Borough Director of Integrated Care,1481.12
19/07/2023,1249291,Westminster Society,,Bi-Borough Director of Integrated Care,7132.88
19/07/2023,1249291,Westminster Society,,Bi-Borough Director of Integrated Care,1237.83
19/07/2023,1249291,Westminster Society,,Bi-Borough Director of Integrated Care,6739.04
19/07/2023,1249291,Westminster Society,,Bi-Borough Director of Integrated Care,599.08
19/07/2023,1249291,Westminster Society,,Bi-Borough Director of Integrated Care,740.56
19/07/2023,1249291,Westminster Society,,Bi-Borough Director of Integrated Care,612.64
19/07/2023,1249291,Westminster Society,,Bi-Borough Director of Integrated Care,4726.08
19/07/2023,1249291,Westminster Society,,Bi-Borough Director of Integrated Care,12239.36
19/07/2023,1249291,Westminster Society,,Bi-Borough Director of Integrated Care,3369.52
19/07/2023,1249291,Westminster Society,,Bi-Borough Director of Integrated Care,1936
19/07/2023,1249291,Westminster Society,,Bi-Borough Director of Integrated Care,1601.6
19/07/2023,1249291,Westminster Society,,Bi-Borough Director of Integrated Care,621.66
19/07/2023,1249291,Westminster Society,,Bi-Borough Director of Integrated Care,3325.76
19/07/2023,1249291,Westminster Society,,Bi-Borough Director of Integrated Care,3500.8
19/07/2023,1249291,Westminster Society,,Bi-Borough Director of Integrated Care,5496.24
19/07/2023,1249291,Westminster Society,,Bi-Borough Director of Integrated Care,1237.83
19/07/2023,1249291,Westminster Society,,Bi-Borough Director of Integrated Care,5540
19/07/2023,1249291,Westminster Society,,Bi-Borough Director of Integrated Care,4463.52
19/07/2023,1249291,Westminster Society,,Bi-Borough Director of Integrated Care,2713.12
19/07/2023,1249291,Westminster Society,,Bi-Borough Director of Integrated Care,599.08
19/07/2023,1249291,Westminster Society,,Bi-Borough Director of Integrated Care,10852.48
19/07/2023,1249291,Westminster Society,,Bi-Borough Director of Integrated Care,2175.8
19/07/2023,1249291,Westminster Society,,Bi-Borough Director of Integrated Care,2450.56
19/07/2023,1249291,Westminster Society,,Bi-Borough Director of Integrated Care,7447.96
19/07/2023,1249291,Westminster Society,,Bi-Borough Director of Integrated Care,1237.83
19/07/2023,1249291,Westminster Society,,Bi-Borough Director of Integrated Care,1006.48
19/07/2023,1249291,Westminster Society,,Bi-Borough Director of Integrated Care,700.16
19/07/2023,1249291,Westminster Society,,Bi-Borough Director of Integrated Care,3369.52
19/07/2023,1249291,Westminster Society,,Bi-Borough Director of Integrated Care,2888.16
19/07/2023,1249291,Westminster Society,,Bi-Borough Director of Integrated Care,4747.96
19/07/2023,1249291,Westminster Society,,Bi-Borough Director of Integrated Care,2888.16
19/07/2023,1249291,Westminster Society,,Bi-Borough Director of Integrated Care,1531.6
19/07/2023,1249291,Westminster Society,,Bi-Borough Director of Integrated Care,2538.08
19/07/2023,1249291,Westminster Society,,Bi-Borough Director of Integrated Care,798.8
19/07/2023,1249291,Westminster Society,,Bi-Borough Director of Integrated Care,15299.2
19/07/2023,1249291,Westminster Society,,Bi-Borough Director of Integrated Care,9246.48
19/07/2023,1249291,Westminster Society,,Bi-Borough Director of Integrated Care,6126.4
19/07/2023,1249291,Westminster Society,,Bi-Borough Director of Integrated Care,599.08
19/07/2023,1249291,Westminster Society,,Bi-Borough Director of Integrated Care,7045.36
19/07/2023,1249291,Westminster Society,,Bi-Borough Director of Integrated Care,1481.12
19/07/2023,1249291,Westminster Society,,Bi-Borough Director of Integrated Care,1237.83
19/07/2023,1249291,Westminster Society,,Bi-Borough Director of Integrated Care,5513.76
19/07/2023,1249291,Westminster Society,,Bi-Borough Director of Integrated Care,3413.28
19/07/2023,1249291,Westminster Society,,Bi-Borough Director of Integrated Care,3325.76
19/07/2023,1249291,Westminster Society,,Bi-Borough Director of Integrated Care,599.08
19/07/2023,1249291,Westminster Society,,Bi-Borough Director of Integrated Care,1237.83
19/07/2023,1249291,Westminster Society,,Bi-Borough Director of Integrated Care,7421.68
19/07/2023,1249291,Westminster Society,,Bi-Borough Director of Integrated Care,1237.83
19/07/2023,1249291,Westminster Society,,Bi-Borough Director of Integrated Care,10414.88
19/07/2023,1249291,Westminster Society,,Bi-Borough Director of Integrated Care,1237.83
19/07/2023,1249291,Westminster Society,,Bi-Borough Director of Integrated Care,10502.4
19/07/2023,1249291,Westminster Society,,Bi-Borough Director of Integrated Care,4376
19/07/2023,1249291,Westminster Society,,Bi-Borough Director of Integrated Care,846.36
19/07/2023,1249291,Westminster Society,,Bi-Borough Director of Integrated Care,3238.24
19/07/2023,1249291,Westminster Society,,Bi-Borough Director of Integrated Care,1481.12
19/07/2023,1249291,Westminster Society,,Bi-Borough Director of Integrated Care,6760.92
19/07/2023,1249291,Westminster Society,,Bi-Borough Director of Integrated Care,1237.83
19/07/2023,1249291,Westminster Society,,Bi-Borough Director of Integrated Care,3982.16
19/07/2023,1249291,Westminster Society,,Bi-Borough Director of Integrated Care,1444.08
19/07/2023,1249291,Westminster Society,,Bi-Borough Director of Integrated Care,1481.12
19/07/2023,1249291,Westminster Society,,Bi-Borough Director of Integrated Care,6935.96
19/07/2023,1249291,Westminster Society,,Bi-Borough Director of Integrated Care,700.16
19/07/2023,1249291,Westminster Society,,Bi-Borough Director of Integrated Care,4901.12
19/07/2023,1249291,Westminster Society,,Bi-Borough Director of Integrated Care,1225.28
19/07/2023,1249291,Westminster Society,,Bi-Borough Director of Integrated Care,11531.57
19/07/2023,1249291,Westminster Society,,Bi-Borough Director of Integrated Care,2175.8
19/07/2023,1249291,Westminster Society,,Bi-Borough Director of Integrated Care,612.64
19/07/2023,1249291,Westminster Society,,Bi-Borough Director of Integrated Care,1237.83
19/07/2023,1249291,Westminster Society,,Bi-Borough Director of Integrated Care,2450.56
19/07/2023,1249291,Westminster Society,,Bi-Borough Director of Integrated Care,700.16
19/07/2023,1249291,Westminster Society,,Bi-Borough Director of Integrated Care,2713.12
19/07/2023,1249291,Westminster Society,,Bi-Borough Director of Integrated Care,2975.68
19/07/2023,1249291,Westminster Society,,Bi-Borough Director of Integrated Care,4200.96
19/07/2023,1249291,Westminster Society,,Bi-Borough Director of Integrated Care,1369.37
19/07/2023,1249291,Westminster Society,,Bi-Borough Director of Integrated Care,12152.77
19/07/2023,1249291,Westminster Society,,Bi-Borough Director of Integrated Care,2363.04
19/07/2023,1249291,Westminster Society,,Bi-Borough Director of Integrated Care,3588.32
19/07/2023,1249291,Westminster Society,,Bi-Borough Director of Integrated Care,3982.16
19/07/2023,1249291,Westminster Society,,Bi-Borough Director of Integrated Care,1225.28
19/07/2023,1249291,Westminster Society,,Bi-Borough Director of Integrated Care,4988.64
19/07/2023,1249291,Westminster Society,,Bi-Borough Director of Integrated Care,3063.2
19/07/2023,1249291,Westminster Society,,Bi-Borough Director of Integrated Care,4200.96
19/07/2023,1249291,Westminster Society,,Bi-Borough Director of Integrated Care,3150.72
19/07/2023,1249291,Westminster Society,,Bi-Borough Director of Integrated Care,12239.36
19/07/2023,1249291,Westminster Society,,Bi-Borough Director of Integrated Care,7859.28
19/07/2023,1249291,Westminster Society,,Bi-Borough Director of Integrated Care,3325.76
19/07/2023,1249291,Westminster Society,,Bi-Borough Director of Integrated Care,621.66
19/07/2023,1249291,Westminster Society,,Bi-Borough Director of Integrated Care,15299.2
19/07/2023,1249291,Westminster Society,,Bi-Borough Director of Integrated Care,798.8
19/07/2023,1249291,Westminster Society,,Bi-Borough Director of Integrated Care,9373.4
19/07/2023,1249291,Westminster Society,,Bi-Borough Director of Integrated Care,5601.28
19/07/2023,1249291,Westminster Society,,Bi-Borough Director of Integrated Care,3063.2
19/07/2023,1249291,Westminster Society,,Bi-Borough Director of Integrated Care,7351.68
19/07/2023,1249291,Westminster Society,,Bi-Borough Director of Integrated Care,12239.36
19/07/2023,1249291,Westminster Society,,Bi-Borough Director of Integrated Care,798.8
19/07/2023,1249291,Westminster Society,,Bi-Borough Director of Integrated Care,10572.4
19/07/2023,1249291,Westminster Society,,Bi-Borough Director of Integrated Care,5426.24
19/07/2023,1249291,Westminster Society,,Bi-Borough Director of Integrated Care,12239.36
19/07/2023,1249291,Westminster Society,,Bi-Borough Director of Integrated Care,798.8
19/07/2023,1249291,Westminster Society,,Bi-Borough Director of Integrated Care,10047.28
19/07/2023,1249291,Westminster Society,,Bi-Borough Director of Integrated Care,1269.04
19/07/2023,1249291,Westminster Society,,Bi-Borough Director of Integrated Care,1925.44
03/08/2023,1249291,Westminster Society,B*Voluntary-Spot-V Dep-Enhanced - do not u,Bi-Borough Director of Integrated Care,875.2
03/08/2023,1249291,Westminster Society,B*Voluntary-Spot-V Dep-Enhanced - do not u,Bi-Borough Director of Integrated Care,875.2
03/08/2023,1249291,Westminster Society,B*Voluntary-Spot-V Dep-Enhanced - do not u,Bi-Borough Director of Integrated Care,984.6
03/08/2023,1249291,Westminster Society,B*Voluntary-Spot-V Dep-Enhanced - do not u,Bi-Borough Director of Integrated Care,1072.12
03/08/2023,1249291,Westminster Society,B*Voluntary-Spot-V Dep-Enhanced - do not u,Bi-Borough Director of Integrated Care,765.8
03/08/2023,1249291,Westminster Society,B*Voluntary-Spot-V Dep-Enhanced - do not u,Bi-Borough Director of Integrated Care,984.6
03/08/2023,1249291,Westminster Society,B*Voluntary-Spot-V Dep-Enhanced - do not u,Bi-Borough Director of Integrated Care,875.2
03/08/2023,1249291,Westminster Society,B*Voluntary-Spot-V Dep-Enhanced - do not u,Bi-Borough Director of Integrated Care,2603.72
03/08/2023,1249291,Westminster Society,B*Voluntary-Spot-V Dep-Enhanced - do not u,Bi-Borough Director of Integrated Care,2078.6
03/08/2023,1249291,Westminster Society,B*Voluntary-Spot-V Dep-Enhanced - do not u,Bi-Borough Director of Integrated Care,656.4
03/08/2023,1249291,Westminster Society,B*Voluntary-Spot-V Dep-Enhanced - do not u,Bi-Borough Director of Integrated Care,612.64
03/08/2023,1249291,Westminster Society,B*Voluntary-Spot-V Dep-Enhanced - do not u,Bi-Borough Director of Integrated Care,2735
03/08/2023,1249291,Westminster Society,B*Voluntary-Spot-V Dep-Enhanced - do not u,Bi-Borough Director of Integrated Care,1312.8
16/08/2023,1249291,Westminster Society,,Bi-Borough Director of Integrated Care,4901.12
16/08/2023,1249291,Westminster Society,,Bi-Borough Director of Integrated Care,3238.24
16/08/2023,1249291,Westminster Society,,Bi-Borough Director of Integrated Care,1225.28
16/08/2023,1249291,Westminster Society,,Bi-Borough Director of Integrated Care,6935.96
16/08/2023,1249291,Westminster Society,,Bi-Borough Director of Integrated Care,6760.92
16/08/2023,1249291,Westminster Society,,Bi-Borough Director of Integrated Care,1225.28
16/08/2023,1249291,Westminster Society,,Bi-Borough Director of Integrated Care,9539.68
16/08/2023,1249291,Westminster Society,,Bi-Borough Director of Integrated Care,1799.84
16/08/2023,1249291,Westminster Society,,Bi-Borough Director of Integrated Care,2713.12
16/08/2023,1249291,Westminster Society,,Bi-Borough Director of Integrated Care,2975.68
16/08/2023,1249291,Westminster Society,,Bi-Borough Director of Integrated Care,612.64
16/08/2023,1249291,Westminster Society,,Bi-Borough Director of Integrated Care,1225.28
16/08/2023,1249291,Westminster Society,,Bi-Borough Director of Integrated Care,1024
16/08/2023,1249291,Westminster Society,,Bi-Borough Director of Integrated Care,2450.56
16/08/2023,1249291,Westminster Society,,Bi-Borough Director of Integrated Care,700.16
16/08/2023,1249291,Westminster Society,,Bi-Borough Director of Integrated Care,700.16
16/08/2023,1249291,Westminster Society,,Bi-Borough Director of Integrated Care,1944.2
16/08/2023,1249291,Westminster Society,,Bi-Borough Director of Integrated Care,7089.12
16/08/2023,1249291,Westminster Society,,Bi-Borough Director of Integrated Care,798.8
16/08/2023,1249291,Westminster Society,,Bi-Borough Director of Integrated Care,2450.56
16/08/2023,1249291,Westminster Society,,Bi-Borough Director of Integrated Care,3982.16
16/08/2023,1249291,Westminster Society,,Bi-Borough Director of Integrated Care,1024
16/08/2023,1249291,Westminster Society,,Bi-Borough Director of Integrated Care,2363.04
16/08/2023,1249291,Westminster Society,,Bi-Borough Director of Integrated Care,3588.32
16/08/2023,1249291,Westminster Society,,Bi-Borough Director of Integrated Care,3982.16
16/08/2023,1249291,Westminster Society,,Bi-Borough Director of Integrated Care,4988.64
16/08/2023,1249291,Westminster Society,,Bi-Borough Director of Integrated Care,4200.96
16/08/2023,1249291,Westminster Society,,Bi-Borough Director of Integrated Care,1225.28
16/08/2023,1249291,Westminster Society,,Bi-Borough Director of Integrated Care,3150.72
16/08/2023,1249291,Westminster Society,,Bi-Borough Director of Integrated Care,7859.28
16/08/2023,1249291,Westminster Society,,Bi-Borough Director of Integrated Care,3063.2
16/08/2023,1249291,Westminster Society,,Bi-Borough Director of Integrated Care,3325.76
16/08/2023,1249291,Westminster Society,,Bi-Borough Director of Integrated Care,514.24
16/08/2023,1249291,Westminster Society,,Bi-Borough Director of Integrated Care,5426.24
16/08/2023,1249291,Westminster Society,,Bi-Borough Director of Integrated Care,5601.28
16/08/2023,1249291,Westminster Society,,Bi-Borough Director of Integrated Care,3063.2
16/08/2023,1249291,Westminster Society,,Bi-Borough Director of Integrated Care,7351.68
16/08/2023,1249291,Westminster Society,,Bi-Borough Director of Integrated Care,1269.04
16/08/2023,1249291,Westminster Society,,Bi-Borough Director of Integrated Care,798.8
16/08/2023,1249291,Westminster Society,,Bi-Borough Director of Integrated Care,10572.4
16/08/2023,1249291,Westminster Society,,Bi-Borough Director of Integrated Care,798.8
16/08/2023,1249291,Westminster Society,,Bi-Borough Director of Integrated Care,10047.28
16/08/2023,1249291,Westminster Society,,Bi-Borough Director of Integrated Care,9373.4
16/08/2023,1249291,Westminster Society,,Bi-Borough Director of Integrated Care,798.8
16/08/2023,1249291,Westminster Society,,Bi-Borough Director of Integrated Care,4463.52
16/08/2023,1249291,Westminster Society,,Bi-Borough Director of Integrated Care,2625.6
16/08/2023,1249291,Westminster Society,,Bi-Borough Director of Integrated Care,1225.28
16/08/2023,1249291,Westminster Society,,Bi-Borough Director of Integrated Care,1925.44
16/08/2023,1249291,Westminster Society,,Bi-Borough Director of Integrated Care,787.68
16/08/2023,1249291,Westminster Society,,Bi-Borough Director of Integrated Care,1024
16/08/2023,1249291,Westminster Society,,Bi-Borough Director of Integrated Care,4909.88
16/08/2023,1249291,Westminster Society,,Bi-Borough Director of Integrated Care,2188
16/08/2023,1249291,Westminster Society,,Bi-Borough Director of Integrated Care,599.08
16/08/2023,1249291,Westminster Society,,Bi-Borough Director of Integrated Care,599.08
16/08/2023,1249291,Westminster Society,,Bi-Borough Director of Integrated Care,2450.56
16/08/2023,1249291,Westminster Society,,Bi-Borough Director of Integrated Care,3369.52
16/08/2023,1249291,Westminster Society,,Bi-Borough Director of Integrated Care,4726.08
16/08/2023,1249291,Westminster Society,,Bi-Borough Director of Integrated Care,6739.04
16/08/2023,1249291,Westminster Society,,Bi-Borough Director of Integrated Care,599.08
16/08/2023,1249291,Westminster Society,,Bi-Borough Director of Integrated Care,1601.6
16/08/2023,1249291,Westminster Society,,Bi-Borough Director of Integrated Care,1601.6
16/08/2023,1249291,Westminster Society,,Bi-Borough Director of Integrated Care,612.64
16/08/2023,1249291,Westminster Society,,Bi-Borough Director of Integrated Care,612.64
16/08/2023,1249291,Westminster Society,,Bi-Borough Director of Integrated Care,7132.88
16/08/2023,1249291,Westminster Society,,Bi-Borough Director of Integrated Care,1024
16/08/2023,1249291,Westminster Society,,Bi-Borough Director of Integrated Care,3325.76
16/08/2023,1249291,Westminster Society,,Bi-Borough Director of Integrated Care,514.24
16/08/2023,1249291,Westminster Society,,Bi-Borough Director of Integrated Care,4463.52
16/08/2023,1249291,Westminster Society,,Bi-Borough Director of Integrated Care,3500.8
16/08/2023,1249291,Westminster Society,,Bi-Borough Director of Integrated Care,2713.12
16/08/2023,1249291,Westminster Society,,Bi-Borough Director of Integrated Care,3369.52
16/08/2023,1249291,Westminster Society,,Bi-Borough Director of Integrated Care,599.08
16/08/2023,1249291,Westminster Society,,Bi-Borough Director of Integrated Care,10852.48
16/08/2023,1249291,Westminster Society,,Bi-Borough Director of Integrated Care,1799.84
16/08/2023,1249291,Westminster Society,,Bi-Borough Director of Integrated Care,1024
16/08/2023,1249291,Westminster Society,,Bi-Borough Director of Integrated Care,7447.96
16/08/2023,1249291,Westminster Society,,Bi-Borough Director of Integrated Care,2450.56
16/08/2023,1249291,Westminster Society,,Bi-Borough Director of Integrated Care,700.16
16/08/2023,1249291,Westminster Society,,Bi-Borough Director of Integrated Care,5540
16/08/2023,1249291,Westminster Society,,Bi-Borough Director of Integrated Care,1006.48
16/08/2023,1249291,Westminster Society,,Bi-Borough Director of Integrated Care,1024
16/08/2023,1249291,Westminster Society,,Bi-Borough Director of Integrated Care,5496.24
16/08/2023,1249291,Westminster Society,,Bi-Borough Director of Integrated Care,2888.16
16/08/2023,1249291,Westminster Society,,Bi-Borough Director of Integrated Care,2888.16
16/08/2023,1249291,Westminster Society,,Bi-Borough Director of Integrated Care,2538.08
16/08/2023,1249291,Westminster Society,,Bi-Borough Director of Integrated Care,5513.76
16/08/2023,1249291,Westminster Society,,Bi-Borough Director of Integrated Care,1024
16/08/2023,1249291,Westminster Society,,Bi-Borough Director of Integrated Care,1531.6
16/08/2023,1249291,Westminster Society,,Bi-Borough Director of Integrated Care,1225.28
16/08/2023,1249291,Westminster Society,,Bi-Borough Director of Integrated Care,7045.36
16/08/2023,1249291,Westminster Society,,Bi-Borough Director of Integrated Care,3413.28
16/08/2023,1249291,Westminster Society,,Bi-Borough Director of Integrated Care,4747.96
16/08/2023,1249291,Westminster Society,,Bi-Borough Director of Integrated Care,9246.48
16/08/2023,1249291,Westminster Society,,Bi-Borough Director of Integrated Care,798.8
16/08/2023,1249291,Westminster Society,,Bi-Borough Director of Integrated Care,6126.4
16/08/2023,1249291,Westminster Society,,Bi-Borough Director of Integrated Care,599.08
16/08/2023,1249291,Westminster Society,,Bi-Borough Director of Integrated Care,3802.73
16/08/2023,1249291,Westminster Society,,Bi-Borough Director of Integrated Care,804.57
16/08/2023,1249291,Westminster Society,,Bi-Borough Director of Integrated Care,599.08
16/08/2023,1249291,Westminster Society,,Bi-Borough Director of Integrated Care,3325.76
16/08/2023,1249291,Westminster Society,,Bi-Borough Director of Integrated Care,899.92
16/08/2023,1249291,Westminster Society,,Bi-Borough Director of Integrated Care,4376
16/08/2023,1249291,Westminster Society,,Bi-Borough Director of Integrated Care,700.16
16/08/2023,1249291,Westminster Society,,Bi-Borough Director of Integrated Care,10502.4
16/08/2023,1249291,Westminster Society,,Bi-Borough Director of Integrated Care,1024
16/08/2023,1249291,Westminster Society,,Bi-Borough Director of Integrated Care,1024
16/08/2023,1249291,Westminster Society,,Bi-Borough Director of Integrated Care,10414.88
16/08/2023,1249291,Westminster Society,,Bi-Borough Director of Integrated Care,1024
16/08/2023,1249291,Westminster Society,,Bi-Borough Director of Integrated Care,7421.68
31/08/2023,1249291,Westminster Society,Rent,Bi-Borough Director of Integrated Care,6564
31/08/2023,1249291,Westminster Society,Rent,Bi-Borough Director of Integrated Care,2422.68
01/09/2023,1249291,Westminster Society,B*Voluntary-Spot-V Dep-Enhanced - do not u,Bi-Borough Director of Integrated Care,612.64
01/09/2023,1249291,Westminster Society,B*Voluntary-Spot-V Dep-Enhanced - do not u,Bi-Borough Director of Integrated Care,1050.24
01/09/2023,1249291,Westminster Society,B*Voluntary-Spot-V Dep-Enhanced - do not u,Bi-Borough Director of Integrated Care,875.2
01/09/2023,1249291,Westminster Society,B*Voluntary-Spot-V Dep-Enhanced - do not u,Bi-Borough Director of Integrated Care,2188
01/09/2023,1249291,Westminster Society,B*Voluntary-Spot-V Dep-Enhanced - do not u,Bi-Borough Director of Integrated Care,1662.88
01/09/2023,1249291,Westminster Society,B*Voluntary-Spot-V Dep-Enhanced - do not u,Bi-Borough Director of Integrated Care,787.68
01/09/2023,1249291,Westminster Society,B*Voluntary-Spot-V Dep-Enhanced - do not u,Bi-Borough Director of Integrated Care,1225.28
01/09/2023,1249291,Westminster Society,B*Voluntary-Spot-V Dep-Enhanced - do not u,Bi-Borough Director of Integrated Care,787.68
01/09/2023,1249291,Westminster Society,B*Voluntary-Spot-V Dep-Enhanced - do not u,Bi-Borough Director of Integrated Care,1137.76
01/09/2023,1249291,Westminster Society,B*Voluntary-Spot-V Dep-Enhanced - do not u,Bi-Borough Director of Integrated Care,1225.28
01/09/2023,1249291,Westminster Society,B*Voluntary-Spot-V Dep-Enhanced - do not u,Bi-Borough Director of Integrated Care,700.16
01/09/2023,1249291,Westminster Society,B*Voluntary-Spot-V Dep-Enhanced - do not u,Bi-Borough Director of Integrated Care,525.12
01/09/2023,1249291,Westminster Society,B*Voluntary-Spot-V Dep-Enhanced - do not u,Bi-Borough Director of Integrated Care,962.72
01/09/2023,1249291,Westminster Society,B*Voluntary-Spot-V Dep-Enhanced - do not u,Bi-Borough Director of Integrated Care,1662.88
01/09/2023,1249291,Westminster Society,B*Voluntary-Spot-V Dep-Enhanced - do not u,Bi-Borough Director of Integrated Care,700.16
04/09/2023,1249291,Westminster Society,Rent,Bi-Borough Director of Integrated Care,5270.4
13/09/2023,1249291,Westminster Society,,Bi-Borough Director of Integrated Care,4901.12
13/09/2023,1249291,Westminster Society,,Bi-Borough Director of Integrated Care,9539.68
13/09/2023,1249291,Westminster Society,,Bi-Borough Director of Integrated Care,1799.84
13/09/2023,1249291,Westminster Society,,Bi-Borough Director of Integrated Care,3238.24
13/09/2023,1249291,Westminster Society,,Bi-Borough Director of Integrated Care,2713.12
13/09/2023,1249291,Westminster Society,,Bi-Borough Director of Integrated Care,2975.68
13/09/2023,1249291,Westminster Society,,Bi-Borough Director of Integrated Care,612.64
13/09/2023,1249291,Westminster Society,,Bi-Borough Director of Integrated Care,1225.28
13/09/2023,1249291,Westminster Society,,Bi-Borough Director of Integrated Care,6935.96
13/09/2023,1249291,Westminster Society,,Bi-Borough Director of Integrated Care,1225.28
13/09/2023,1249291,Westminster Society,,Bi-Borough Director of Integrated Care,6760.92
13/09/2023,1249291,Westminster Society,,Bi-Borough Director of Integrated Care,700.16
13/09/2023,1249291,Westminster Society,,Bi-Borough Director of Integrated Care,1225.28
13/09/2023,1249291,Westminster Society,,Bi-Borough Director of Integrated Care,700.16
13/09/2023,1249291,Westminster Society,,Bi-Borough Director of Integrated Care,2450.56
13/09/2023,1249291,Westminster Society,,Bi-Borough Director of Integrated Care,1024
13/09/2023,1249291,Westminster Society,,Bi-Borough Director of Integrated Care,3194.48
13/09/2023,1249291,Westminster Society,,Bi-Borough Director of Integrated Care,2450.56
13/09/2023,1249291,Westminster Society,,Bi-Borough Director of Integrated Care,798.8
13/09/2023,1249291,Westminster Society,,Bi-Borough Director of Integrated Care,7089.12
13/09/2023,1249291,Westminster Society,,Bi-Borough Director of Integrated Care,1024
13/09/2023,1249291,Westminster Society,,Bi-Borough Director of Integrated Care,3982.16
13/09/2023,1249291,Westminster Society,,Bi-Borough Director of Integrated Care,2363.04
13/09/2023,1249291,Westminster Society,,Bi-Borough Director of Integrated Care,21438.07
13/09/2023,1249291,Westminster Society,,Bi-Borough Director of Integrated Care,5174.54
13/09/2023,1249291,Westminster Society,,Bi-Borough Director of Integrated Care,1225.28
13/09/2023,1249291,Westminster Society,,Bi-Borough Director of Integrated Care,3150.72
13/09/2023,1249291,Westminster Society,,Bi-Borough Director of Integrated Care,3588.32
13/09/2023,1249291,Westminster Society,,Bi-Borough Director of Integrated Care,3982.16
13/09/2023,1249291,Westminster Society,,Bi-Borough Director of Integrated Care,4200.96
13/09/2023,1249291,Westminster Society,,Bi-Borough Director of Integrated Care,4988.64
13/09/2023,1249291,Westminster Society,,Bi-Borough Director of Integrated Care,2450.56
13/09/2023,1249291,Westminster Society,,Bi-Borough Director of Integrated Care,7859.28
13/09/2023,1249291,Westminster Society,,Bi-Borough Director of Integrated Care,3063.2
13/09/2023,1249291,Westminster Society,,Bi-Borough Director of Integrated Care,3325.76
13/09/2023,1249291,Westminster Society,,Bi-Borough Director of Integrated Care,514.24
13/09/2023,1249291,Westminster Society,,Bi-Borough Director of Integrated Care,5426.24
13/09/2023,1249291,Westminster Society,,Bi-Borough Director of Integrated Care,5601.28
13/09/2023,1249291,Westminster Society,,Bi-Borough Director of Integrated Care,1269.04
13/09/2023,1249291,Westminster Society,,Bi-Borough Director of Integrated Care,3063.2
13/09/2023,1249291,Westminster Society,,Bi-Borough Director of Integrated Care,7351.68
13/09/2023,1249291,Westminster Society,,Bi-Borough Director of Integrated Care,10572.4
13/09/2023,1249291,Westminster Society,,Bi-Borough Director of Integrated Care,798.8
13/09/2023,1249291,Westminster Society,,Bi-Borough Director of Integrated Care,2450.56
13/09/2023,1249291,Westminster Society,,Bi-Borough Director of Integrated Care,2450.56
13/09/2023,1249291,Westminster Society,,Bi-Borough Director of Integrated Care,10047.28
13/09/2023,1249291,Westminster Society,,Bi-Borough Director of Integrated Care,798.8
13/09/2023,1249291,Westminster Society,,Bi-Borough Director of Integrated Care,798.8
13/09/2023,1249291,Westminster Society,,Bi-Borough Director of Integrated Care,3063.2
13/09/2023,1249291,Westminster Society,,Bi-Borough Director of Integrated Care,9373.4
13/09/2023,1249291,Westminster Society,,Bi-Borough Director of Integrated Care,4463.52
13/09/2023,1249291,Westminster Society,,Bi-Borough Director of Integrated Care,1225.28
13/09/2023,1249291,Westminster Society,,Bi-Borough Director of Integrated Care,787.68
13/09/2023,1249291,Westminster Society,,Bi-Borough Director of Integrated Care,2625.6
13/09/2023,1249291,Westminster Society,,Bi-Borough Director of Integrated Care,1925.44
13/09/2023,1249291,Westminster Society,,Bi-Borough Director of Integrated Care,4909.88
13/09/2023,1249291,Westminster Society,,Bi-Borough Director of Integrated Care,1024
13/09/2023,1249291,Westminster Society,,Bi-Borough Director of Integrated Care,599.08
13/09/2023,1249291,Westminster Society,,Bi-Borough Director of Integrated Care,2188
13/09/2023,1249291,Westminster Society,,Bi-Borough Director of Integrated Care,2450.56
13/09/2023,1249291,Westminster Society,,Bi-Borough Director of Integrated Care,599.08
13/09/2023,1249291,Westminster Society,,Bi-Borough Director of Integrated Care,3369.52
13/09/2023,1249291,Westminster Society,,Bi-Borough Director of Integrated Care,6739.04
13/09/2023,1249291,Westminster Society,,Bi-Borough Director of Integrated Care,599.08
13/09/2023,1249291,Westminster Society,,Bi-Borough Director of Integrated Care,1601.6
13/09/2023,1249291,Westminster Society,,Bi-Borough Director of Integrated Care,1601.6
13/09/2023,1249291,Westminster Society,,Bi-Borough Director of Integrated Care,612.64
13/09/2023,1249291,Westminster Society,,Bi-Borough Director of Integrated Care,612.64
13/09/2023,1249291,Westminster Society,,Bi-Borough Director of Integrated Care,6796.87
13/09/2023,1249291,Westminster Society,,Bi-Borough Director of Integrated Care,2450.56
13/09/2023,1249291,Westminster Society,,Bi-Borough Director of Integrated Care,7132.88
13/09/2023,1249291,Westminster Society,,Bi-Borough Director of Integrated Care,1024
13/09/2023,1249291,Westminster Society,,Bi-Borough Director of Integrated Care,3325.76
13/09/2023,1249291,Westminster Society,,Bi-Borough Director of Integrated Care,514.24
13/09/2023,1249291,Westminster Society,,Bi-Borough Director of Integrated Care,4463.52
13/09/2023,1249291,Westminster Society,,Bi-Borough Director of Integrated Care,3500.8
13/09/2023,1249291,Westminster Society,,Bi-Borough Director of Integrated Care,3369.52
13/09/2023,1249291,Westminster Society,,Bi-Borough Director of Integrated Care,599.08
13/09/2023,1249291,Westminster Society,,Bi-Borough Director of Integrated Care,10852.48
13/09/2023,1249291,Westminster Society,,Bi-Borough Director of Integrated Care,1799.84
13/09/2023,1249291,Westminster Society,,Bi-Borough Director of Integrated Care,2450.56
13/09/2023,1249291,Westminster Society,,Bi-Borough Director of Integrated Care,700.16
13/09/2023,1249291,Westminster Society,,Bi-Borough Director of Integrated Care,2713.12
13/09/2023,1249291,Westminster Society,,Bi-Borough Director of Integrated Care,1006.48
13/09/2023,1249291,Westminster Society,,Bi-Borough Director of Integrated Care,5540
13/09/2023,1249291,Westminster Society,,Bi-Borough Director of Integrated Care,7447.96
13/09/2023,1249291,Westminster Society,,Bi-Borough Director of Integrated Care,1024
13/09/2023,1249291,Westminster Society,,Bi-Borough Director of Integrated Care,1024
13/09/2023,1249291,Westminster Society,,Bi-Borough Director of Integrated Care,5496.24
13/09/2023,1249291,Westminster Society,,Bi-Borough Director of Integrated Care,2888.16
13/09/2023,1249291,Westminster Society,,Bi-Borough Director of Integrated Care,2888.16
13/09/2023,1249291,Westminster Society,,Bi-Borough Director of Integrated Care,2538.08
13/09/2023,1249291,Westminster Society,,Bi-Borough Director of Integrated Care,1225.28
13/09/2023,1249291,Westminster Society,,Bi-Borough Director of Integrated Care,7045.36
13/09/2023,1249291,Westminster Society,,Bi-Borough Director of Integrated Care,1531.6
13/09/2023,1249291,Westminster Society,,Bi-Borough Director of Integrated Care,3413.28
13/09/2023,1249291,Westminster Society,,Bi-Borough Director of Integrated Care,5513.76
13/09/2023,1249291,Westminster Society,,Bi-Borough Director of Integrated Care,1024
13/09/2023,1249291,Westminster Society,,Bi-Borough Director of Integrated Care,4747.96
13/09/2023,1249291,Westminster Society,,Bi-Borough Director of Integrated Care,3063.2
13/09/2023,1249291,Westminster Society,,Bi-Borough Director of Integrated Care,798.8
13/09/2023,1249291,Westminster Society,,Bi-Borough Director of Integrated Care,9246.48
13/09/2023,1249291,Westminster Society,,Bi-Borough Director of Integrated Care,1024
13/09/2023,1249291,Westminster Society,,Bi-Borough Director of Integrated Care,4839.84
13/09/2023,1249291,Westminster Society,,Bi-Borough Director of Integrated Care,599.08
13/09/2023,1249291,Westminster Society,,Bi-Borough Director of Integrated Care,6126.4
13/09/2023,1249291,Westminster Society,,Bi-Borough Director of Integrated Care,599.08
13/09/2023,1249291,Westminster Society,,Bi-Borough Director of Integrated Care,3325.76
13/09/2023,1249291,Westminster Society,,Bi-Borough Director of Integrated Care,899.92
13/09/2023,1249291,Westminster Society,,Bi-Borough Director of Integrated Care,4376
13/09/2023,1249291,Westminster Society,,Bi-Borough Director of Integrated Care,700.16
13/09/2023,1249291,Westminster Society,,Bi-Borough Director of Integrated Care,10414.88
13/09/2023,1249291,Westminster Society,,Bi-Borough Director of Integrated Care,1024
13/09/2023,1249291,Westminster Society,,Bi-Borough Director of Integrated Care,10502.4
13/09/2023,1249291,Westminster Society,,Bi-Borough Director of Integrated Care,1024
13/09/2023,1249291,Westminster Society,,Bi-Borough Director of Integrated Care,1024
13/09/2023,1249291,Westminster Society,,Bi-Borough Director of Integrated Care,7421.68
21/09/2023,1249291,Westminster Society,Rent,Bi-Borough Director of Integrated Care,7710
21/09/2023,1249291,Westminster Society,Rent,Bi-Borough Director of Integrated Care,18701.76
21/09/2023,1249291,Westminster Society,Rent,Bi-Borough Director of Integrated Care,7013.16
19/07/2023,1246224,Whitmore Vale Housing Association,,Bi-Borough Director of Integrated Care,3688.8
16/08/2023,1246224,Whitmore Vale Housing Association,,Bi-Borough Director of Integrated Care,3688.8
13/09/2023,1246224,Whitmore Vale Housing Association,,Bi-Borough Director of Integrated Care,3688.8
19/07/2023,1243566,Yarrow Housing Ltd,,Bi-Borough Director of Integrated Care,7851.2
19/07/2023,1243566,Yarrow Housing Ltd,,Bi-Borough Director of Integrated Care,3889.16
19/07/2023,1243566,Yarrow Housing Ltd,,Bi-Borough Director of Integrated Care,8301.92
19/07/2023,1243566,Yarrow Housing Ltd,,Bi-Borough Director of Integrated Care,5550.8
19/07/2023,1243566,Yarrow Housing Ltd,,Bi-Borough Director of Integrated Care,1686.72
19/07/2023,1243566,Yarrow Housing Ltd,,Bi-Borough Director of Integrated Care,1686.72
19/07/2023,1243566,Yarrow Housing Ltd,,Bi-Borough Director of Integrated Care,12323
19/07/2023,1243566,Yarrow Housing Ltd,,Bi-Borough Director of Integrated Care,1816.64
19/07/2023,1243566,Yarrow Housing Ltd,,Bi-Borough Director of Integrated Care,1816.64
19/07/2023,1243566,Yarrow Housing Ltd,,Bi-Borough Director of Integrated Care,7297.56
03/08/2023,1243566,Yarrow Housing Ltd,,Bi-Borough Director of Integrated Care,7921.77
16/08/2023,1243566,Yarrow Housing Ltd,,Bi-Borough Director of Integrated Care,7851.2
16/08/2023,1243566,Yarrow Housing Ltd,,Bi-Borough Director of Integrated Care,8301.92
16/08/2023,1243566,Yarrow Housing Ltd,,Bi-Borough Director of Integrated Care,3889.16
16/08/2023,1243566,Yarrow Housing Ltd,,Bi-Borough Director of Integrated Care,5550.8
16/08/2023,1243566,Yarrow Housing Ltd,,Bi-Borough Director of Integrated Care,1816.64
16/08/2023,1243566,Yarrow Housing Ltd,,Bi-Borough Director of Integrated Care,1816.64
16/08/2023,1243566,Yarrow Housing Ltd,,Bi-Borough Director of Integrated Care,7297.56
16/08/2023,1243566,Yarrow Housing Ltd,,Bi-Borough Director of Integrated Care,12323
16/08/2023,1243566,Yarrow Housing Ltd,,Bi-Borough Director of Integrated Care,1686.72
16/08/2023,1243566,Yarrow Housing Ltd,,Bi-Borough Director of Integrated Care,1686.72
13/09/2023,1243566,Yarrow Housing Ltd,,Bi-Borough Director of Integrated Care,3889.16
13/09/2023,1243566,Yarrow Housing Ltd,,Bi-Borough Director of Integrated Care,5550.8
13/09/2023,1243566,Yarrow Housing Ltd,,Bi-Borough Director of Integrated Care,1816.64
13/09/2023,1243566,Yarrow Housing Ltd,,Bi-Borough Director of Integrated Care,1816.64
13/09/2023,1243566,Yarrow Housing Ltd,,Bi-Borough Director of Integrated Care,7297.56
13/09/2023,1243566,Yarrow Housing Ltd,,Bi-Borough Director of Integrated Care,12323
13/09/2023,1243566,Yarrow Housing Ltd,,Bi-Borough Director of Integrated Care,1755.38
13/09/2023,1243566,Yarrow Housing Ltd,,Bi-Borough Director of Integrated Care,1755.38
13/09/2023,1243566,Yarrow Housing Ltd,,Bi-Borough Director of Integrated Care,7851.2
13/09/2023,1243566,Yarrow Housing Ltd,,Bi-Borough Director of Integrated Care,8301.92
25/09/2023,1243566,Yarrow Housing Ltd,,Bi-Borough Director of Integrated Care,15835.54
04/07/2023,1249317,Zocalo Ltd T/as Bluebird Care,,Bi-Borough Director of Integrated Care,3897
19/07/2023,1249317,Zocalo Ltd T/as Bluebird Care,,Bi-Borough Director of Integrated Care,3738
29/08/2023,1249317,Zocalo Ltd T/as Bluebird Care,,Bi-Borough Director of Integrated Care,3759
21/09/2023,1249317,Zocalo Ltd T/as Bluebird Care,,Bi-Borough Director of Integrated Care,756
24/07/2023,1249318,Zodiac Arts Ltd,B*Voluntary-Spot-V Dep-Enhanced - do not u,Bi-Borough Director of Integrated Care,715.5
06/09/2023,1249318,Zodiac Arts Ltd,B*Voluntary-Spot-V Dep-Enhanced - do not u,Bi-Borough Director of Integrated Care,715.5
14/09/2023,1249318,Zodiac Arts Ltd,B*Voluntary-Spot-V Dep-Enhanced - do not u,Bi-Borough Director of Integrated Care,715.5
16/08/2023,1249167,TMP (UK) Ltd,Recruitment Expenses (excl. advertising),Bi-Borough Director of Integrated Care,1065
07/07/2023,D000000016,GENERAL,Equipment,Bi-Borough Director of Integrated Care,904.88
28/07/2023,D000000016,GENERAL,Equipment,Bi-Borough Director of Integrated Care,904.88
07/07/2023,1249079,The Appropriate Adult Service Ltd,Training related expenditure,Bi-Borough Director of Integrated Care,722.5
18/07/2023,1249079,The Appropriate Adult Service Ltd,Training related expenditure,Bi-Borough Director of Integrated Care,2263.13
01/09/2023,1249079,The Appropriate Adult Service Ltd,Training related expenditure,Bi-Borough Director of Integrated Care,1360
03/07/2023,1243797,Central & North West London Nhs,Other Expenses,Bi-Borough Director of Integrated Care,6033.93
28/07/2023,1243797,Central & North West London Nhs,Other Expenses,Bi-Borough Director of Integrated Care,5525.74
01/09/2023,1243797,Central & North West London Nhs,Other Expenses,Bi-Borough Director of Integrated Care,4612.09
19/07/2023,1247852,Look Ahead Care and Support Ltd,,Bi-Borough Director of Integrated Care,1256.64
19/07/2023,1247852,Look Ahead Care and Support Ltd,,Bi-Borough Director of Integrated Care,955.56
19/07/2023,1247852,Look Ahead Care and Support Ltd,,Bi-Borough Director of Integrated Care,1413
19/07/2023,1247852,Look Ahead Care and Support Ltd,,Bi-Borough Director of Integrated Care,1256.64
19/07/2023,1247852,Look Ahead Care and Support Ltd,,Bi-Borough Director of Integrated Care,842.28
19/07/2023,1247852,Look Ahead Care and Support Ltd,,Bi-Borough Director of Integrated Care,911.76
19/07/2023,1247852,Look Ahead Care and Support Ltd,,Bi-Borough Director of Integrated Care,1597.68
19/07/2023,1247852,Look Ahead Care and Support Ltd,,Bi-Borough Director of Integrated Care,897.92
16/08/2023,1247852,Look Ahead Care and Support Ltd,,Bi-Borough Director of Integrated Care,955.56
16/08/2023,1247852,Look Ahead Care and Support Ltd,,Bi-Borough Director of Integrated Care,1256.64
16/08/2023,1247852,Look Ahead Care and Support Ltd,,Bi-Borough Director of Integrated Care,842.28
16/08/2023,1247852,Look Ahead Care and Support Ltd,,Bi-Borough Director of Integrated Care,1413
16/08/2023,1247852,Look Ahead Care and Support Ltd,,Bi-Borough Director of Integrated Care,1256.64
16/08/2023,1247852,Look Ahead Care and Support Ltd,,Bi-Borough Director of Integrated Care,1597.68
16/08/2023,1247852,Look Ahead Care and Support Ltd,,Bi-Borough Director of Integrated Care,911.76
16/08/2023,1247852,Look Ahead Care and Support Ltd,,Bi-Borough Director of Integrated Care,897.92
13/09/2023,1247852,Look Ahead Care and Support Ltd,,Bi-Borough Director of Integrated Care,955.56
13/09/2023,1247852,Look Ahead Care and Support Ltd,,Bi-Borough Director of Integrated Care,1256.64
13/09/2023,1247852,Look Ahead Care and Support Ltd,,Bi-Borough Director of Integrated Care,1413
13/09/2023,1247852,Look Ahead Care and Support Ltd,,Bi-Borough Director of Integrated Care,1256.64
13/09/2023,1247852,Look Ahead Care and Support Ltd,,Bi-Borough Director of Integrated Care,1597.68
13/09/2023,1247852,Look Ahead Care and Support Ltd,,Bi-Borough Director of Integrated Care,911.76
13/09/2023,1247852,Look Ahead Care and Support Ltd,,Bi-Borough Director of Integrated Care,897.92
13/09/2023,1244970,Octavia Housing & Care (Rent,,Bi-Borough Director of Integrated Care,941.8
19/07/2023,1248618,Riverside Echg,,Bi-Borough Director of Integrated Care,971.04
19/07/2023,1248618,Riverside Echg,,Bi-Borough Director of Integrated Care,1304.48
19/07/2023,1248618,Riverside Echg,,Bi-Borough Director of Integrated Care,1497.2
16/08/2023,1248618,Riverside Echg,,Bi-Borough Director of Integrated Care,1569.12
16/08/2023,1248618,Riverside Echg,,Bi-Borough Director of Integrated Care,1304.48
16/08/2023,1248618,Riverside Echg,,Bi-Borough Director of Integrated Care,971.04
13/09/2023,1248618,Riverside Echg,,Bi-Borough Director of Integrated Care,1569.12
13/09/2023,1248618,Riverside Echg,,Bi-Borough Director of Integrated Care,1304.48
13/09/2023,1248618,Riverside Echg,,Bi-Borough Director of Integrated Care,971.04
19/07/2023,1245584,Single Homeless Project,,Bi-Borough Director of Integrated Care,1076.92
19/07/2023,1245584,Single Homeless Project,,Bi-Borough Director of Integrated Care,1883.48
19/07/2023,1245584,Single Homeless Project,,Bi-Borough Director of Integrated Care,1880.28
16/08/2023,1245584,Single Homeless Project,,Bi-Borough Director of Integrated Care,1883.48
16/08/2023,1245584,Single Homeless Project,,Bi-Borough Director of Integrated Care,1880.28
13/09/2023,1245584,Single Homeless Project,,Bi-Borough Director of Integrated Care,1883.48
13/09/2023,1245584,Single Homeless Project,,Bi-Borough Director of Integrated Care,1880.28
19/07/2023,1245636,St Mungos Broadway (Grants &,,Bi-Borough Director of Integrated Care,1105.93
19/07/2023,1245636,St Mungos Broadway (Grants &,,Bi-Borough Director of Integrated Care,2064.4
16/08/2023,1245636,St Mungos Broadway (Grants &,,Bi-Borough Director of Integrated Care,2064.4
13/09/2023,1245636,St Mungos Broadway (Grants &,,Bi-Borough Director of Integrated Care,663.56
02/08/2023,1251196,Royal Borough of Kensington and,B*Payments to OLAs - Southampton City Co,Bi-Borough Director of Integrated Care,17918
03/07/2023,1243797,Central & North West London Nhs,Other Expenses,Bi-Borough Director of Integrated Care,5775.55
03/07/2023,1243797,Central & North West London Nhs,Other Expenses,Bi-Borough Director of Integrated Care,6976.97
03/07/2023,1243797,Central & North West London Nhs,Other Expenses,Bi-Borough Director of Integrated Care,6689.51
28/07/2023,1243797,Central & North West London Nhs,Other Expenses,Bi-Borough Director of Integrated Care,6069.61
01/09/2023,1243797,Central & North West London Nhs,Other Expenses,Bi-Borough Director of Integrated Care,4887.76
19/07/2023,1255843,A.I. Care Services Ltd,,Bi-Borough Director of Integrated Care,1075.77
19/07/2023,1255843,A.I. Care Services Ltd,,Bi-Borough Director of Integrated Care,1498.53
16/08/2023,1255843,A.I. Care Services Ltd,,Bi-Borough Director of Integrated Care,768.4
16/08/2023,1255843,A.I. Care Services Ltd,,Bi-Borough Director of Integrated Care,1075.76
16/09/2023,1255843,A.I. Care Services Ltd,,Bi-Borough Director of Integrated Care,1075.76
05/07/2023,1245929,The Regard Partnership Ltd,B*Voluntary-Spot-V Dep-Enhanced - do not u,Bi-Borough Director of Integrated Care,11655
14/08/2023,1245929,The Regard Partnership Ltd,B*Voluntary-Spot-V Dep-Enhanced - do not u,Bi-Borough Director of Integrated Care,1484
05/09/2023,1245929,The Regard Partnership Ltd,B*Voluntary-Spot-V Dep-Enhanced - do not u,Bi-Borough Director of Integrated Care,1855
06/09/2023,1245929,The Regard Partnership Ltd,B*Voluntary-Spot-V Dep-Enhanced - do not u,Bi-Borough Director of Integrated Care,1596
19/07/2023,1307987,ALAND HEALTHCARE CONSULTING LIMITED,,Bi-Borough Director of Integrated Care,1800
19/07/2023,1307987,ALAND HEALTHCARE CONSULTING LIMITED,,Bi-Borough Director of Integrated Care,1800
16/08/2023,1307987,ALAND HEALTHCARE CONSULTING LIMITED,,Bi-Borough Director of Integrated Care,1800
16/08/2023,1307987,ALAND HEALTHCARE CONSULTING LIMITED,,Bi-Borough Director of Integrated Care,1800
13/09/2023,1307987,ALAND HEALTHCARE CONSULTING LIMITED,,Bi-Borough Director of Integrated Care,1800
13/09/2023,1307987,ALAND HEALTHCARE CONSULTING LIMITED,,Bi-Borough Director of Integrated Care,1800
21/09/2023,1247414,PERSONAL PAYMENTS,B*Junior group rec activities,Bi-Borough Director of Integrated Care,729.04
06/07/2023,1246011,Art4Space,B*Voluntary-Spot-V Dep-Enhanced - do not u,Bi-Borough Director of Integrated Care,1560
06/07/2023,1246011,Art4Space,B*Voluntary-Spot-V Dep-Enhanced - do not u,Bi-Borough Director of Integrated Care,1560
06/07/2023,1246011,Art4Space,B*Voluntary-Spot-V Dep-Enhanced - do not u,Bi-Borough Director of Integrated Care,1560
06/07/2023,1246011,Art4Space,B*Voluntary-Spot-V Dep-Enhanced - do not u,Bi-Borough Director of Integrated Care,1560
06/07/2023,1246011,Art4Space,B*Voluntary-Spot-V Dep-Enhanced - do not u,Bi-Borough Director of Integrated Care,1560
17/07/2023,1246011,Art4Space,B*Voluntary-Spot-V Dep-Enhanced - do not u,Bi-Borough Director of Integrated Care,1560
11/07/2023,1243931,Ashbourne Healthcare Services,,Bi-Borough Director of Integrated Care,1748.11
28/07/2023,1243931,Ashbourne Healthcare Services,,Bi-Borough Director of Integrated Care,1613.64
05/08/2023,1243931,Ashbourne Healthcare Services,,Bi-Borough Director of Integrated Care,1613.64
18/08/2023,1243931,Ashbourne Healthcare Services,,Bi-Borough Director of Integrated Care,1882.58
07/09/2023,1243931,Ashbourne Healthcare Services,,Bi-Borough Director of Integrated Care,1671.27
18/09/2023,1243931,Ashbourne Healthcare Services,,Bi-Borough Director of Integrated Care,1671.27
19/07/2023,1271022,BONZA CARE LTD,,Bi-Borough Director of Integrated Care,1684
19/07/2023,1271022,BONZA CARE LTD,,Bi-Borough Director of Integrated Care,2180
19/07/2023,1271022,BONZA CARE LTD,,Bi-Borough Director of Integrated Care,2180
16/08/2023,1271022,BONZA CARE LTD,,Bi-Borough Director of Integrated Care,1684
16/08/2023,1271022,BONZA CARE LTD,,Bi-Borough Director of Integrated Care,2180
16/08/2023,1271022,BONZA CARE LTD,,Bi-Borough Director of Integrated Care,2180
13/09/2023,1271022,BONZA CARE LTD,,Bi-Borough Director of Integrated Care,2180
13/09/2023,1271022,BONZA CARE LTD,,Bi-Borough Director of Integrated Care,2180
19/07/2023,1302222,Bespoke Care Support Ltd,,Bi-Borough Director of Integrated Care,5380
16/08/2023,1302222,Bespoke Care Support Ltd,,Bi-Borough Director of Integrated Care,5380
13/09/2023,1302222,Bespoke Care Support Ltd,,Bi-Borough Director of Integrated Care,5380
02/08/2023,1246247,Blitz Home Environmental Cleaning,,Bi-Borough Director of Integrated Care,1250
02/08/2023,1246247,Blitz Home Environmental Cleaning,,Bi-Borough Director of Integrated Care,1200
02/08/2023,1246247,Blitz Home Environmental Cleaning,,Bi-Borough Director of Integrated Care,800
02/08/2023,1246247,Blitz Home Environmental Cleaning,,Bi-Borough Director of Integrated Care,700
02/08/2023,1246247,Blitz Home Environmental Cleaning,,Bi-Borough Director of Integrated Care,2150
28/09/2023,1246247,Blitz Home Environmental Cleaning,,Bi-Borough Director of Integrated Care,1000
28/09/2023,1246247,Blitz Home Environmental Cleaning,,Bi-Borough Director of Integrated Care,1300
13/07/2023,1246261,Brent Wandsworth & Westminster,,Bi-Borough Director of Integrated Care,682.1
19/07/2023,1246262,Brent Wandsworth & Westminster,B*Voluntary-Spot-V Dep-Enhanced - do not u,Bi-Borough Director of Integrated Care,720
19/07/2023,1246262,Brent Wandsworth & Westminster,B*Voluntary-Spot-V Dep-Enhanced - do not u,Bi-Borough Director of Integrated Care,922.08
27/07/2023,1246261,Brent Wandsworth & Westminster,B*Voluntary-Spot-V Dep-Enhanced - do not u,Bi-Borough Director of Integrated Care,940.28
27/07/2023,1246261,Brent Wandsworth & Westminster,B*Voluntary-Spot-V Dep-Enhanced - do not u,Bi-Borough Director of Integrated Care,542.57
27/07/2023,1246261,Brent Wandsworth & Westminster,B*Voluntary-Spot-V Dep-Enhanced - do not u,Bi-Borough Director of Integrated Care,551.8
27/07/2023,1246261,Brent Wandsworth & Westminster,B*Voluntary-Spot-V Dep-Enhanced - do not u,Bi-Borough Director of Integrated Care,819.34
27/07/2023,1246261,Brent Wandsworth & Westminster,,Bi-Borough Director of Integrated Care,676.22
27/07/2023,1246261,Brent Wandsworth & Westminster,,Bi-Borough Director of Integrated Care,510.8
27/07/2023,1246261,Brent Wandsworth & Westminster,,Bi-Borough Director of Integrated Care,540.96
30/08/2023,1246261,Brent Wandsworth & Westminster,,Bi-Borough Director of Integrated Care,1460.96
30/08/2023,1246261,Brent Wandsworth & Westminster,,Bi-Borough Director of Integrated Care,1604.15
20/09/2023,1246262,Brent Wandsworth & Westminster,B*Voluntary-Spot-V Dep-Enhanced - do not u,Bi-Borough Director of Integrated Care,720
26/09/2023,1246262,Brent Wandsworth & Westminster,B*Voluntary-Spot-V Dep-Enhanced - do not u,Bi-Borough Director of Integrated Care,720
27/09/2023,1246261,Brent Wandsworth & Westminster,,Bi-Borough Director of Integrated Care,922.9
19/07/2023,1247482,PERSONAL PAYMENTS,,Bi-Borough Director of Integrated Care,833.28
16/08/2023,1247482,PERSONAL PAYMENTS,,Bi-Borough Director of Integrated Care,833.28
13/09/2023,1247482,PERSONAL PAYMENTS,,Bi-Borough Director of Integrated Care,833.28
19/07/2023,1246321,Camphill Village Trust,,Bi-Borough Director of Integrated Care,1159.4
16/08/2023,1246321,Camphill Village Trust,,Bi-Borough Director of Integrated Care,1159.4
13/09/2023,1246321,Camphill Village Trust,,Bi-Borough Director of Integrated Care,1159.4
19/07/2023,1306723,Carefield Support Services Ltd,,Bi-Borough Director of Integrated Care,1960
19/07/2023,1306723,Carefield Support Services Ltd,,Bi-Borough Director of Integrated Care,1960
16/08/2023,1306723,Carefield Support Services Ltd,,Bi-Borough Director of Integrated Care,1960
16/08/2023,1306723,Carefield Support Services Ltd,,Bi-Borough Director of Integrated Care,1960
13/09/2023,1306723,Carefield Support Services Ltd,,Bi-Borough Director of Integrated Care,1960
13/09/2023,1306723,Carefield Support Services Ltd,,Bi-Borough Director of Integrated Care,1960
19/07/2023,1299671,Clear Sight Care Ltd,,Bi-Borough Director of Integrated Care,1724
19/07/2023,1299671,Clear Sight Care Ltd,,Bi-Borough Director of Integrated Care,1724
16/08/2023,1299671,Clear Sight Care Ltd,,Bi-Borough Director of Integrated Care,1724
16/08/2023,1299671,Clear Sight Care Ltd,,Bi-Borough Director of Integrated Care,1724
13/09/2023,1299671,Clear Sight Care Ltd,,Bi-Borough Director of Integrated Care,1724
13/09/2023,1299671,Clear Sight Care Ltd,,Bi-Borough Director of Integrated Care,1724
05/07/2023,1246581,Clearup Solutions Limited,,Bi-Borough Director of Integrated Care,650
14/08/2023,1246581,Clearup Solutions Limited,,Bi-Borough Director of Integrated Care,685
06/07/2023,1244190,Clouds End Services Ltd,,Bi-Borough Director of Integrated Care,1100
11/08/2023,1244190,Clouds End Services Ltd,,Bi-Borough Director of Integrated Care,1180
01/09/2023,1244190,Clouds End Services Ltd,,Bi-Borough Director of Integrated Care,1180
19/07/2023,1246602,Community Housing Therapy,,Bi-Borough Director of Integrated Care,1940
16/08/2023,1246602,Community Housing Therapy,,Bi-Borough Director of Integrated Care,1940
16/08/2023,1246602,Community Housing Therapy,,Bi-Borough Director of Integrated Care,3930.42
16/08/2023,1246602,Community Housing Therapy,,Bi-Borough Director of Integrated Care,3930.33
13/09/2023,1246602,Community Housing Therapy,,Bi-Borough Director of Integrated Care,1940
13/09/2023,1246602,Community Housing Therapy,,Bi-Borough Director of Integrated Care,1719.52
13/09/2023,1246602,Community Housing Therapy,,Bi-Borough Director of Integrated Care,1719.56
25/07/2023,1268176,Conquest Care and Support,,Bi-Borough Director of Integrated Care,1357.36
26/08/2023,1268176,Conquest Care and Support,,Bi-Borough Director of Integrated Care,1339.96
20/09/2023,1268176,Conquest Care and Support,,Bi-Borough Director of Integrated Care,1339.96
24/07/2023,1244225,Core Arts,B*Voluntary-Spot-V Dep-Enhanced - do not u,Bi-Borough Director of Integrated Care,650
19/07/2023,1301212,Diverse Services Ltd,,Bi-Borough Director of Integrated Care,1700
16/08/2023,1301212,Diverse Services Ltd,,Bi-Borough Director of Integrated Care,1700
13/09/2023,1301212,Diverse Services Ltd,,Bi-Borough Director of Integrated Care,1700
29/08/2023,1292085,Doughty Street Chambers,Legal Costs,Bi-Borough Director of Integrated Care,1620
12/09/2023,1292085,Doughty Street Chambers,Legal Costs,Bi-Borough Director of Integrated Care,1260
28/07/2023,1259597,Ethica Services LTD,,Bi-Borough Director of Integrated Care,1479.24
07/09/2023,1259597,Ethica Services LTD,,Bi-Borough Director of Integrated Care,1479.17
20/09/2023,1259597,Ethica Services LTD,,Bi-Borough Director of Integrated Care,1479.17
11/09/2023,1252498,Field Court Chambers,Legal Costs,Bi-Borough Director of Integrated Care,650
22/08/2023,1243485,Grove Care Partnership Ltd,Payments to Private Contractors,Bi-Borough Director of Integrated Care,99119.19
27/07/2023,1247257,Health Vision Uk,,Bi-Borough Director of Integrated Care,615.32
27/07/2023,1247257,Health Vision Uk,,Bi-Borough Director of Integrated Care,1106.53
27/07/2023,1247257,Health Vision Uk,,Bi-Borough Director of Integrated Care,507.98
27/07/2023,1247257,Health Vision Uk,,Bi-Borough Director of Integrated Care,583.99
27/07/2023,1247257,Health Vision Uk,,Bi-Borough Director of Integrated Care,657.65
27/07/2023,1247257,Health Vision Uk,,Bi-Borough Director of Integrated Care,1187.76
27/07/2023,1247257,Health Vision Uk,,Bi-Borough Director of Integrated Care,598.62
27/07/2023,1247257,Health Vision Uk,,Bi-Borough Director of Integrated Care,1717.43
27/07/2023,1247257,Health Vision Uk,,Bi-Borough Director of Integrated Care,901.85
27/07/2023,1247257,Health Vision Uk,,Bi-Borough Director of Integrated Care,900.91
27/07/2023,1247257,Health Vision Uk,,Bi-Borough Director of Integrated Care,900.91
27/07/2023,1247257,Health Vision Uk,,Bi-Borough Director of Integrated Care,885.3
27/07/2023,1247257,Health Vision Uk,,Bi-Borough Director of Integrated Care,1281.15
27/07/2023,1247257,Health Vision Uk,,Bi-Borough Director of Integrated Care,933.48
27/07/2023,1247257,Health Vision Uk,,Bi-Borough Director of Integrated Care,1770.68
27/07/2023,1247257,Health Vision Uk,,Bi-Borough Director of Integrated Care,609.99
27/07/2023,1247257,Health Vision Uk,,Bi-Borough Director of Integrated Care,675.36
27/07/2023,1247257,Health Vision Uk,,Bi-Borough Director of Integrated Care,1071.99
27/07/2023,1247257,Health Vision Uk,,Bi-Borough Director of Integrated Care,1071.99
29/08/2023,1247257,Health Vision Uk,,Bi-Borough Director of Integrated Care,1107.86
29/08/2023,1247257,Health Vision Uk,,Bi-Borough Director of Integrated Care,593.88
29/08/2023,1247257,Health Vision Uk,,Bi-Borough Director of Integrated Care,1177.16
29/08/2023,1247257,Health Vision Uk,,Bi-Borough Director of Integrated Care,625.49
29/08/2023,1247257,Health Vision Uk,,Bi-Borough Director of Integrated Care,1756.14
29/08/2023,1247257,Health Vision Uk,,Bi-Borough Director of Integrated Care,880.63
29/08/2023,1247257,Health Vision Uk,,Bi-Borough Director of Integrated Care,891.22
29/08/2023,1247257,Health Vision Uk,,Bi-Borough Director of Integrated Care,891.24
29/08/2023,1247257,Health Vision Uk,,Bi-Borough Director of Integrated Care,890.96
29/08/2023,1247257,Health Vision Uk,,Bi-Borough Director of Integrated Care,989.16
29/08/2023,1247257,Health Vision Uk,,Bi-Borough Director of Integrated Care,1762.91
29/08/2023,1247257,Health Vision Uk,,Bi-Borough Director of Integrated Care,686.69
29/08/2023,1247257,Health Vision Uk,,Bi-Borough Director of Integrated Care,620.22
29/08/2023,1247257,Health Vision Uk,,Bi-Borough Director of Integrated Care,636.44
29/08/2023,1247257,Health Vision Uk,,Bi-Borough Director of Integrated Care,907.41
29/08/2023,1247257,Health Vision Uk,,Bi-Borough Director of Integrated Care,917.72
20/09/2023,1247257,Health Vision Uk,,Bi-Borough Director of Integrated Care,1105.88
20/09/2023,1247257,Health Vision Uk,,Bi-Borough Director of Integrated Care,593.88
20/09/2023,1247257,Health Vision Uk,,Bi-Borough Director of Integrated Care,1187.76
20/09/2023,1247257,Health Vision Uk,,Bi-Borough Director of Integrated Care,590.86
20/09/2023,1247257,Health Vision Uk,,Bi-Borough Director of Integrated Care,1749.04
20/09/2023,1247257,Health Vision Uk,,Bi-Borough Director of Integrated Care,1090.35
20/09/2023,1247257,Health Vision Uk,,Bi-Borough Director of Integrated Care,902.53
20/09/2023,1247257,Health Vision Uk,,Bi-Borough Director of Integrated Care,902.53
20/09/2023,1247257,Health Vision Uk,,Bi-Borough Director of Integrated Care,887.07
20/09/2023,1247257,Health Vision Uk,,Bi-Borough Director of Integrated Care,1447.11
20/09/2023,1247257,Health Vision Uk,,Bi-Borough Director of Integrated Care,1495.94
20/09/2023,1247257,Health Vision Uk,,Bi-Borough Director of Integrated Care,840.98
20/09/2023,1247257,Health Vision Uk,,Bi-Borough Director of Integrated Care,624.08
20/09/2023,1247257,Health Vision Uk,,Bi-Borough Director of Integrated Care,690.96
20/09/2023,1247257,Health Vision Uk,,Bi-Borough Director of Integrated Care,636.44
20/09/2023,1247257,Health Vision Uk,,Bi-Borough Director of Integrated Care,754.89
19/07/2023,1300210,Instant Care Solutions Ltd,,Bi-Borough Director of Integrated Care,2500
19/07/2023,1300210,Instant Care Solutions Ltd,,Bi-Borough Director of Integrated Care,2500
16/08/2023,1300210,Instant Care Solutions Ltd,,Bi-Borough Director of Integrated Care,2500
16/08/2023,1300210,Instant Care Solutions Ltd,,Bi-Borough Director of Integrated Care,2500
13/09/2023,1300210,Instant Care Solutions Ltd,,Bi-Borough Director of Integrated Care,2500
13/09/2023,1300210,Instant Care Solutions Ltd,,Bi-Borough Director of Integrated Care,2500
11/07/2023,1247526,Integrity Care and Support Ltd,,Bi-Borough Director of Integrated Care,1278.6
10/08/2023,1247526,Integrity Care and Support Ltd,,Bi-Borough Director of Integrated Care,1172.05
07/09/2023,1247526,Integrity Care and Support Ltd,,Bi-Borough Director of Integrated Care,1140.09
21/07/2023,1256893,Kapital Care WCC,,Bi-Borough Director of Integrated Care,1075.76
18/08/2023,1256893,Kapital Care WCC,,Bi-Borough Director of Integrated Care,1075.76
15/09/2023,1256893,Kapital Care WCC,,Bi-Borough Director of Integrated Care,1116.18
18/07/2023,1247650,London Care Ltd,,Bi-Borough Director of Integrated Care,805.98
18/07/2023,1247650,London Care Ltd,,Bi-Borough Director of Integrated Care,580.44
18/07/2023,1247650,London Care Ltd,,Bi-Borough Director of Integrated Care,586.81
18/07/2023,1247650,London Care Ltd,,Bi-Borough Director of Integrated Care,1764.32
18/07/2023,1247650,London Care Ltd,,Bi-Borough Director of Integrated Care,509.04
18/07/2023,1247650,London Care Ltd,,Bi-Borough Director of Integrated Care,678.72
18/07/2023,1247650,London Care Ltd,,Bi-Borough Director of Integrated Care,866.9
18/07/2023,1247650,London Care Ltd,,Bi-Borough Director of Integrated Care,1520.52
18/07/2023,1247650,London Care Ltd,,Bi-Borough Director of Integrated Care,872.85
19/07/2023,1247650,London Care Ltd,,Bi-Borough Director of Integrated Care,1457
19/07/2023,1247650,London Care Ltd,,Bi-Borough Director of Integrated Care,841.07
19/07/2023,1247650,London Care Ltd,,Bi-Borough Director of Integrated Care,815.02
19/07/2023,1247650,London Care Ltd,,Bi-Borough Director of Integrated Care,620.62
19/07/2023,1247650,London Care Ltd,,Bi-Borough Director of Integrated Care,505.38
19/07/2023,1247650,London Care Ltd,,Bi-Borough Director of Integrated Care,549.92
19/07/2023,1247650,London Care Ltd,,Bi-Borough Director of Integrated Care,1316.21
19/07/2023,1247650,London Care Ltd,,Bi-Borough Director of Integrated Care,628.48
19/07/2023,1247650,London Care Ltd,,Bi-Borough Director of Integrated Care,793.83
27/07/2023,1247650,London Care Ltd,Payments to Private Contractors,Bi-Borough Director of Integrated Care,13942
11/08/2023,1247650,London Care Ltd,,Bi-Borough Director of Integrated Care,859.99
11/08/2023,1247650,London Care Ltd,,Bi-Borough Director of Integrated Care,1168.61
11/08/2023,1247650,London Care Ltd,,Bi-Borough Director of Integrated Care,812.26
11/08/2023,1247650,London Care Ltd,,Bi-Borough Director of Integrated Care,794.31
11/08/2023,1247650,London Care Ltd,,Bi-Borough Director of Integrated Care,562.77
11/08/2023,1247650,London Care Ltd,,Bi-Borough Director of Integrated Care,577.33
11/08/2023,1247650,London Care Ltd,,Bi-Borough Director of Integrated Care,1938.59
11/08/2023,1247650,London Care Ltd,,Bi-Borough Director of Integrated Care,509.04
11/08/2023,1247650,London Care Ltd,,Bi-Borough Director of Integrated Care,678.72
11/08/2023,1247650,London Care Ltd,,Bi-Borough Director of Integrated Care,881.13
11/08/2023,1247650,London Care Ltd,,Bi-Borough Director of Integrated Care,1584.26
11/08/2023,1247650,London Care Ltd,,Bi-Borough Director of Integrated Care,804.21
11/08/2023,1247650,London Care Ltd,,Bi-Borough Director of Integrated Care,534.85
11/08/2023,1247650,London Care Ltd,,Bi-Borough Director of Integrated Care,593.88
11/08/2023,1247650,London Care Ltd,,Bi-Borough Director of Integrated Care,1946.37
11/08/2023,1247650,London Care Ltd,,Bi-Borough Director of Integrated Care,509.04
11/08/2023,1247650,London Care Ltd,,Bi-Borough Director of Integrated Care,678.72
11/08/2023,1247650,London Care Ltd,,Bi-Borough Director of Integrated Care,890.96
11/08/2023,1247650,London Care Ltd,,Bi-Borough Director of Integrated Care,1587.39
11/08/2023,1247650,London Care Ltd,,Bi-Borough Director of Integrated Care,872.2
19/07/2023,1247852,Look Ahead Care and Support Ltd,Rent,Bi-Borough Director of Integrated Care,1303.28
16/08/2023,1247852,Look Ahead Care and Support Ltd,Rent,Bi-Borough Director of Integrated Care,1303.28
13/09/2023,1247852,Look Ahead Care and Support Ltd,Rent,Bi-Borough Director of Integrated Care,1303.28
19/07/2023,1262948,Lotus House,,Bi-Borough Director of Integrated Care,2928
16/08/2023,1262948,Lotus House,,Bi-Borough Director of Integrated Care,2928
13/09/2023,1262948,Lotus House,,Bi-Borough Director of Integrated Care,2928
20/07/2023,1259132,MMR Home Care LTD,,Bi-Borough Director of Integrated Care,768.4
20/07/2023,1259132,MMR Home Care LTD,,Bi-Borough Director of Integrated Care,614.72
20/07/2023,1259132,MMR Home Care LTD,,Bi-Borough Director of Integrated Care,12909.12
18/08/2023,1259132,MMR Home Care LTD,,Bi-Borough Director of Integrated Care,768.4
18/08/2023,1259132,MMR Home Care LTD,,Bi-Borough Director of Integrated Care,614.72
18/08/2023,1259132,MMR Home Care LTD,,Bi-Borough Director of Integrated Care,12909.12
15/09/2023,1259132,MMR Home Care LTD,,Bi-Borough Director of Integrated Care,768.4
15/09/2023,1259132,MMR Home Care LTD,,Bi-Borough Director of Integrated Care,537.88
15/09/2023,1259132,MMR Home Care LTD,,Bi-Borough Director of Integrated Care,12909.12
19/07/2023,1244866,Micado Community Living Services,,Bi-Borough Director of Integrated Care,2880
16/08/2023,1244866,Micado Community Living Services,,Bi-Borough Director of Integrated Care,2880
13/09/2023,1244866,Micado Community Living Services,,Bi-Borough Director of Integrated Care,2880
19/07/2023,1270326,New Directions Flexible Social Care,,Bi-Borough Director of Integrated Care,1400
16/08/2023,1270326,New Directions Flexible Social Care,,Bi-Borough Director of Integrated Care,1400
13/09/2023,1270326,New Directions Flexible Social Care,,Bi-Borough Director of Integrated Care,1400
13/09/2023,1244970,Octavia Housing & Care (Rent,Rent,Bi-Borough Director of Integrated Care,4474.28
27/07/2023,1247479,PERSONAL PAYMENTS,Social Care - Direct Payments,Bi-Borough Director of Integrated Care,1639.08
27/07/2023,1247409,PERSONAL PAYMENTS,Social Care - Direct Payments,Bi-Borough Director of Integrated Care,508.84
27/07/2023,1259940,PERSONAL PAYMENTS,Adult Social Care - Other Transfer Pay,Bi-Borough Director of Integrated Care,2076.2
27/07/2023,1266895,PERSONAL PAYMENTS,Social Care - Direct Payments,Bi-Borough Director of Integrated Care,728
27/07/2023,1284661,PERSONAL PAYMENTS,Social Care - Direct Payments,Bi-Borough Director of Integrated Care,528
27/07/2023,1254334,PERSONAL PAYMENTS,Adult Social Care - Other Transfer Pay,Bi-Borough Director of Integrated Care,1500
27/07/2023,1246066,Barrie Bookkeeping & Payroll,Adult Social Care - Other Transfer Pay,Bi-Borough Director of Integrated Care,937.88
11/08/2023,1311599,PERSONAL PAYMENTS,Adult Social Care - Other Transfer Pay,Bi-Borough Director of Integrated Care,546.8
11/08/2023,1297283,PERSONAL PAYMENTS,Social Care - Direct Payments,Bi-Borough Director of Integrated Care,1200.9
15/08/2023,1246066,Barrie Bookkeeping & Payroll,Adult Social Care - Other Transfer Pay,Bi-Borough Director of Integrated Care,5711.51
24/08/2023,1266895,PERSONAL PAYMENTS,Social Care - Direct Payments,Bi-Borough Director of Integrated Care,728
24/08/2023,1284661,PERSONAL PAYMENTS,Social Care - Direct Payments,Bi-Borough Director of Integrated Care,528
24/08/2023,1254334,PERSONAL PAYMENTS,Adult Social Care - Other Transfer Pay,Bi-Borough Director of Integrated Care,1500
24/08/2023,1246066,Barrie Bookkeeping & Payroll,Adult Social Care - Other Transfer Pay,Bi-Borough Director of Integrated Care,937.88
24/08/2023,1247479,PERSONAL PAYMENTS,Social Care - Direct Payments,Bi-Borough Director of Integrated Care,1639.08
24/08/2023,1247409,PERSONAL PAYMENTS,Social Care - Direct Payments,Bi-Borough Director of Integrated Care,508.84
24/08/2023,1246066,Barrie Bookkeeping & Payroll,Adult Social Care - Other Transfer Pay,Bi-Borough Director of Integrated Care,2104.24
24/08/2023,1259940,PERSONAL PAYMENTS,Adult Social Care - Other Transfer Pay,Bi-Borough Director of Integrated Care,2076.2
21/09/2023,1308045,PERSONAL PAYMENTS,Social Care - Direct Payments,Bi-Borough Director of Integrated Care,5066.88
21/09/2023,1247409,PERSONAL PAYMENTS,Social Care - Direct Payments,Bi-Borough Director of Integrated Care,508.84
21/09/2023,1247479,PERSONAL PAYMENTS,Social Care - Direct Payments,Bi-Borough Director of Integrated Care,1639.08
21/09/2023,1314223,PERSONAL PAYMENTS,Social Care - Direct Payments,Bi-Borough Director of Integrated Care,4694.86
21/09/2023,1246066,Barrie Bookkeeping & Payroll,Adult Social Care - Other Transfer Pay,Bi-Borough Director of Integrated Care,2104.24
21/09/2023,1246066,Barrie Bookkeeping & Payroll,Adult Social Care - Other Transfer Pay,Bi-Borough Director of Integrated Care,20666.64
21/09/2023,1259940,PERSONAL PAYMENTS,Adult Social Care - Other Transfer Pay,Bi-Borough Director of Integrated Care,2076.2
21/09/2023,1266895,PERSONAL PAYMENTS,Social Care - Direct Payments,Bi-Borough Director of Integrated Care,728
21/09/2023,1284661,PERSONAL PAYMENTS,Social Care - Direct Payments,Bi-Borough Director of Integrated Care,528
21/09/2023,1246066,Barrie Bookkeeping & Payroll,Adult Social Care - Other Transfer Pay,Bi-Borough Director of Integrated Care,937.88
21/09/2023,1254334,PERSONAL PAYMENTS,Adult Social Care - Other Transfer Pay,Bi-Borough Director of Integrated Care,1500
24/07/2023,1248541,Priory Nursing Agency & Home Care,,Bi-Borough Director of Integrated Care,5205.15
31/08/2023,1248541,Priory Nursing Agency & Home Care,,Bi-Borough Director of Integrated Care,4303.04
16/09/2023,1248541,Priory Nursing Agency & Home Care,,Bi-Borough Director of Integrated Care,2322
18/07/2023,1245316,Respect Care Services Ltd,,Bi-Borough Director of Integrated Care,691.56
19/07/2023,1245316,Respect Care Services Ltd,,Bi-Borough Director of Integrated Care,768.4
19/07/2023,1245316,Respect Care Services Ltd,,Bi-Borough Director of Integrated Care,691.56
26/07/2023,1245316,Respect Care Services Ltd,,Bi-Borough Director of Integrated Care,634.73
26/07/2023,1245316,Respect Care Services Ltd,,Bi-Borough Director of Integrated Care,691.56
08/08/2023,1245316,Respect Care Services Ltd,,Bi-Borough Director of Integrated Care,634.73
08/08/2023,1245316,Respect Care Services Ltd,,Bi-Borough Director of Integrated Care,691.56
29/08/2023,1245316,Respect Care Services Ltd,,Bi-Borough Director of Integrated Care,634.73
29/08/2023,1245316,Respect Care Services Ltd,,Bi-Borough Director of Integrated Care,691.56
07/09/2023,1245316,Respect Care Services Ltd,,Bi-Borough Director of Integrated Care,634.73
07/09/2023,1245316,Respect Care Services Ltd,,Bi-Borough Director of Integrated Care,691.56
18/09/2023,1245316,Respect Care Services Ltd,,Bi-Borough Director of Integrated Care,634.73
18/09/2023,1245316,Respect Care Services Ltd,,Bi-Borough Director of Integrated Care,691.56
19/07/2023,1248618,Riverside Echg,,Bi-Borough Director of Integrated Care,2434.63
19/07/2023,1248618,Riverside Echg,Rent,Bi-Borough Director of Integrated Care,3637.23
19/07/2023,1248618,Riverside Echg,Rent,Bi-Borough Director of Integrated Care,836.64
19/07/2023,1248618,Riverside Echg,Rent,Bi-Borough Director of Integrated Care,1354.23
16/08/2023,1248618,Riverside Echg,Rent,Bi-Borough Director of Integrated Care,836.64
16/08/2023,1248618,Riverside Echg,Rent,Bi-Borough Director of Integrated Care,1491.12
16/08/2023,1248618,Riverside Echg,,Bi-Borough Director of Integrated Care,661.84
16/08/2023,1248618,Riverside Echg,Rent,Bi-Borough Director of Integrated Care,1491.12
13/09/2023,1248618,Riverside Echg,Rent,Bi-Borough Director of Integrated Care,836.64
13/09/2023,1248618,Riverside Echg,Rent,Bi-Borough Director of Integrated Care,1491.12
13/09/2023,1248618,Riverside Echg,Rent,Bi-Borough Director of Integrated Care,1491.12
13/09/2023,1248618,Riverside Echg,,Bi-Borough Director of Integrated Care,661.84
17/07/2023,1274076,Royal Association for Deaf People,,Bi-Borough Director of Integrated Care,840
19/07/2023,1272438,ST GEORGES SUPPORTED LIVING LTD,,Bi-Borough Director of Integrated Care,1700
16/08/2023,1272438,ST GEORGES SUPPORTED LIVING LTD,,Bi-Borough Director of Integrated Care,1700
13/09/2023,1272438,ST GEORGES SUPPORTED LIVING LTD,,Bi-Borough Director of Integrated Care,1700
19/07/2023,1248843,Sage Care Ltd,,Bi-Borough Director of Integrated Care,2630.32
19/07/2023,1248843,Sage Care Ltd,,Bi-Borough Director of Integrated Care,2078.72
19/07/2023,1248843,Sage Care Ltd,,Bi-Borough Director of Integrated Care,593.88
26/07/2023,1248843,Sage Care Ltd,,Bi-Borough Director of Integrated Care,1887.89
26/07/2023,1248843,Sage Care Ltd,,Bi-Borough Director of Integrated Care,2004.48
26/07/2023,1248843,Sage Care Ltd,,Bi-Borough Director of Integrated Care,569.14
13/09/2023,1248843,Sage Care Ltd,,Bi-Borough Director of Integrated Care,2078.72
13/09/2023,1248843,Sage Care Ltd,,Bi-Borough Director of Integrated Care,577.39
22/09/2023,1248843,Sage Care Ltd,,Bi-Borough Director of Integrated Care,1781.76
22/09/2023,1248843,Sage Care Ltd,,Bi-Borough Director of Integrated Care,554.29
22/09/2023,1248843,Sage Care Ltd,,Bi-Borough Director of Integrated Care,1029.39
22/09/2023,1248843,Sage Care Ltd,,Bi-Borough Director of Integrated Care,1176.45
30/08/2023,1248878,Sevacare (Uk) Ltd,,Bi-Borough Director of Integrated Care,1112.16
30/08/2023,1248878,Sevacare (Uk) Ltd,,Bi-Borough Director of Integrated Care,1112.16
28/09/2023,1248878,Sevacare (Uk) Ltd,,Bi-Borough Director of Integrated Care,1339.37
19/07/2023,1245584,Single Homeless Project,Rent,Bi-Borough Director of Integrated Care,1652.16
18/07/2023,1248913,Smithfield Health & Social Care,,Bi-Borough Director of Integrated Care,780.73
14/08/2023,1248913,Smithfield Health & Social Care,,Bi-Borough Director of Integrated Care,797.36
12/09/2023,1248913,Smithfield Health & Social Care,,Bi-Borough Director of Integrated Care,794.62
19/07/2023,1248970,St Martin Of Tours Ha Ltd (Use,,Bi-Borough Director of Integrated Care,1530
19/07/2023,1248970,St Martin Of Tours Ha Ltd (Use,,Bi-Borough Director of Integrated Care,1530
19/07/2023,1248970,St Martin Of Tours Ha Ltd (Use,,Bi-Borough Director of Integrated Care,1940
19/07/2023,1248970,St Martin Of Tours Ha Ltd (Use,,Bi-Borough Director of Integrated Care,1940
19/07/2023,1248970,St Martin Of Tours Ha Ltd (Use,,Bi-Borough Director of Integrated Care,3800
16/08/2023,1248970,St Martin Of Tours Ha Ltd (Use,,Bi-Borough Director of Integrated Care,1530
16/08/2023,1248970,St Martin Of Tours Ha Ltd (Use,,Bi-Borough Director of Integrated Care,1530
16/08/2023,1248970,St Martin Of Tours Ha Ltd (Use,,Bi-Borough Director of Integrated Care,1940
16/08/2023,1248970,St Martin Of Tours Ha Ltd (Use,,Bi-Borough Director of Integrated Care,1940
16/08/2023,1248970,St Martin Of Tours Ha Ltd (Use,,Bi-Borough Director of Integrated Care,3800
13/09/2023,1248970,St Martin Of Tours Ha Ltd (Use,,Bi-Borough Director of Integrated Care,1940
13/09/2023,1248970,St Martin Of Tours Ha Ltd (Use,,Bi-Borough Director of Integrated Care,1940
13/09/2023,1248970,St Martin Of Tours Ha Ltd (Use,,Bi-Borough Director of Integrated Care,3800
13/09/2023,1248970,St Martin Of Tours Ha Ltd (Use,,Bi-Borough Director of Integrated Care,1530
13/09/2023,1248970,St Martin Of Tours Ha Ltd (Use,,Bi-Borough Director of Integrated Care,1530
19/07/2023,1245636,St Mungos Broadway (Grants &,Rent,Bi-Borough Director of Integrated Care,3053.51
16/08/2023,1245636,St Mungos Broadway (Grants &,Rent,Bi-Borough Director of Integrated Care,2000.4
13/09/2023,1245636,St Mungos Broadway (Grants &,Rent,Bi-Borough Director of Integrated Care,2000.4
17/07/2023,1245182,Supporting Care Ltd,,Bi-Borough Director of Integrated Care,3044.82
24/08/2023,1245182,Supporting Care Ltd,,Bi-Borough Director of Integrated Care,3308.94
24/08/2023,1245182,Supporting Care Ltd,,Bi-Borough Director of Integrated Care,3308.94
24/08/2023,1245182,Supporting Care Ltd,,Bi-Borough Director of Integrated Care,3308.94
24/08/2023,1245182,Supporting Care Ltd,,Bi-Borough Director of Integrated Care,3308.94
21/09/2023,1245182,Supporting Care Ltd,,Bi-Borough Director of Integrated Care,3573.06
22/09/2023,1245182,Supporting Care Ltd,,Bi-Borough Director of Integrated Care,3308.94
19/07/2023,1246095,Theana Ltd T/a Enlighten Homes,,Bi-Borough Director of Integrated Care,2370
19/07/2023,1246095,Theana Ltd T/a Enlighten Homes,,Bi-Borough Director of Integrated Care,2370
16/08/2023,1246095,Theana Ltd T/a Enlighten Homes,,Bi-Borough Director of Integrated Care,2370
16/08/2023,1246095,Theana Ltd T/a Enlighten Homes,,Bi-Borough Director of Integrated Care,2370
13/09/2023,1246095,Theana Ltd T/a Enlighten Homes,,Bi-Borough Director of Integrated Care,2370
13/09/2023,1246095,Theana Ltd T/a Enlighten Homes,,Bi-Borough Director of Integrated Care,2370
19/07/2023,1251428,Uniq Care & Support Ltd,,Bi-Borough Director of Integrated Care,1693.6
16/08/2023,1251428,Uniq Care & Support Ltd,,Bi-Borough Director of Integrated Care,1693.6
13/09/2023,1251428,Uniq Care & Support Ltd,,Bi-Borough Director of Integrated Care,1693.6
11/07/2023,1249232,Vincentian Care Plus,,Bi-Borough Director of Integrated Care,1771.31
11/07/2023,1249232,Vincentian Care Plus,,Bi-Borough Director of Integrated Care,880.35
11/07/2023,1249232,Vincentian Care Plus,,Bi-Borough Director of Integrated Care,593.88
14/07/2023,1249232,Vincentian Care Plus,,Bi-Borough Director of Integrated Care,593.88
14/07/2023,1249232,Vincentian Care Plus,,Bi-Borough Director of Integrated Care,890.82
14/07/2023,1249232,Vincentian Care Plus,,Bi-Borough Director of Integrated Care,890.8
14/07/2023,1249232,Vincentian Care Plus,,Bi-Borough Director of Integrated Care,1187.76
14/07/2023,1249232,Vincentian Care Plus,,Bi-Borough Director of Integrated Care,530.25
14/07/2023,1249232,Vincentian Care Plus,,Bi-Borough Director of Integrated Care,593.88
14/07/2023,1249232,Vincentian Care Plus,,Bi-Borough Director of Integrated Care,3220.7
14/07/2023,1249232,Vincentian Care Plus,,Bi-Borough Director of Integrated Care,766.78
14/07/2023,1249232,Vincentian Care Plus,,Bi-Borough Director of Integrated Care,1272.6
14/07/2023,1249232,Vincentian Care Plus,,Bi-Borough Director of Integrated Care,1866.48
14/07/2023,1249232,Vincentian Care Plus,,Bi-Borough Director of Integrated Care,1197.77
14/07/2023,1249232,Vincentian Care Plus,,Bi-Borough Director of Integrated Care,2969.4
14/07/2023,1249232,Vincentian Care Plus,,Bi-Borough Director of Integrated Care,2451.63
14/07/2023,1249232,Vincentian Care Plus,,Bi-Borough Director of Integrated Care,899.91
14/07/2023,1249232,Vincentian Care Plus,,Bi-Borough Director of Integrated Care,894.36
14/07/2023,1249232,Vincentian Care Plus,,Bi-Borough Director of Integrated Care,588.69
14/07/2023,1249232,Vincentian Care Plus,,Bi-Borough Director of Integrated Care,593.88
14/07/2023,1249232,Vincentian Care Plus,,Bi-Borough Director of Integrated Care,593.88
14/07/2023,1249232,Vincentian Care Plus,,Bi-Borough Director of Integrated Care,1527.12
14/07/2023,1249232,Vincentian Care Plus,,Bi-Borough Director of Integrated Care,593.88
14/07/2023,1249232,Vincentian Care Plus,,Bi-Borough Director of Integrated Care,509.04
14/07/2023,1249232,Vincentian Care Plus,,Bi-Borough Director of Integrated Care,1357.44
14/07/2023,1249232,Vincentian Care Plus,,Bi-Borough Director of Integrated Care,1267.71
10/08/2023,1249232,Vincentian Care Plus,,Bi-Borough Director of Integrated Care,509.04
10/08/2023,1249232,Vincentian Care Plus,,Bi-Borough Director of Integrated Care,1781.92
10/08/2023,1249232,Vincentian Care Plus,,Bi-Borough Director of Integrated Care,859.14
10/08/2023,1249232,Vincentian Care Plus,,Bi-Borough Director of Integrated Care,593.88
11/08/2023,1249232,Vincentian Care Plus,,Bi-Borough Director of Integrated Care,3220.7
11/08/2023,1249232,Vincentian Care Plus,,Bi-Borough Director of Integrated Care,766.78
11/08/2023,1249232,Vincentian Care Plus,,Bi-Borough Director of Integrated Care,1272.6
11/08/2023,1249232,Vincentian Care Plus,,Bi-Borough Director of Integrated Care,1866.48
11/08/2023,1249232,Vincentian Care Plus,,Bi-Borough Director of Integrated Care,1197.77
11/08/2023,1249232,Vincentian Care Plus,,Bi-Borough Director of Integrated Care,2969.4
11/08/2023,1249232,Vincentian Care Plus,,Bi-Borough Director of Integrated Care,2375.52
11/08/2023,1249232,Vincentian Care Plus,,Bi-Borough Director of Integrated Care,899.91
11/08/2023,1249232,Vincentian Care Plus,,Bi-Borough Director of Integrated Care,890.82
11/08/2023,1249232,Vincentian Care Plus,,Bi-Borough Director of Integrated Care,1848.36
11/08/2023,1249232,Vincentian Care Plus,,Bi-Borough Director of Integrated Care,593.88
11/08/2023,1249232,Vincentian Care Plus,,Bi-Borough Director of Integrated Care,593.88
11/08/2023,1249232,Vincentian Care Plus,,Bi-Borough Director of Integrated Care,593.88
11/08/2023,1249232,Vincentian Care Plus,,Bi-Borough Director of Integrated Care,1707.49
11/08/2023,1249232,Vincentian Care Plus,,Bi-Borough Director of Integrated Care,731.66
11/08/2023,1249232,Vincentian Care Plus,,Bi-Borough Director of Integrated Care,593.88
11/08/2023,1249232,Vincentian Care Plus,,Bi-Borough Director of Integrated Care,524
11/08/2023,1249232,Vincentian Care Plus,,Bi-Borough Director of Integrated Care,1357.44
11/08/2023,1249232,Vincentian Care Plus,,Bi-Borough Director of Integrated Care,509.04
11/08/2023,1249232,Vincentian Care Plus,,Bi-Borough Director of Integrated Care,1266.96
11/08/2023,1249232,Vincentian Care Plus,,Bi-Borough Director of Integrated Care,805.98
11/08/2023,1249232,Vincentian Care Plus,,Bi-Borough Director of Integrated Care,880.22
11/08/2023,1249232,Vincentian Care Plus,,Bi-Borough Director of Integrated Care,593.88
11/08/2023,1249232,Vincentian Care Plus,,Bi-Borough Director of Integrated Care,890.8
11/08/2023,1249232,Vincentian Care Plus,,Bi-Borough Director of Integrated Care,1187.76
11/08/2023,1249232,Vincentian Care Plus,,Bi-Borough Director of Integrated Care,593.88
04/09/2023,1249232,Vincentian Care Plus,,Bi-Borough Director of Integrated Care,1781.92
04/09/2023,1249232,Vincentian Care Plus,,Bi-Borough Director of Integrated Care,848.53
04/09/2023,1249232,Vincentian Care Plus,,Bi-Borough Director of Integrated Care,593.88
07/09/2023,1249232,Vincentian Care Plus,,Bi-Borough Director of Integrated Care,766.78
07/09/2023,1249232,Vincentian Care Plus,,Bi-Borough Director of Integrated Care,3220.7
07/09/2023,1249232,Vincentian Care Plus,,Bi-Borough Director of Integrated Care,1272.6
07/09/2023,1249232,Vincentian Care Plus,,Bi-Borough Director of Integrated Care,1864.78
07/09/2023,1249232,Vincentian Care Plus,,Bi-Borough Director of Integrated Care,1197.77
07/09/2023,1249232,Vincentian Care Plus,,Bi-Borough Director of Integrated Care,3001.22
07/09/2023,1249232,Vincentian Care Plus,,Bi-Borough Director of Integrated Care,2319.1
07/09/2023,1249232,Vincentian Care Plus,,Bi-Borough Director of Integrated Care,899.91
07/09/2023,1249232,Vincentian Care Plus,,Bi-Borough Director of Integrated Care,864.31
07/09/2023,1249232,Vincentian Care Plus,,Bi-Borough Director of Integrated Care,2375.52
07/09/2023,1249232,Vincentian Care Plus,,Bi-Borough Director of Integrated Care,593.88
07/09/2023,1249232,Vincentian Care Plus,,Bi-Borough Director of Integrated Care,593.88
07/09/2023,1249232,Vincentian Care Plus,,Bi-Borough Director of Integrated Care,593.88
07/09/2023,1249232,Vincentian Care Plus,,Bi-Borough Director of Integrated Care,593.86
07/09/2023,1249232,Vincentian Care Plus,,Bi-Borough Director of Integrated Care,1357.44
07/09/2023,1249232,Vincentian Care Plus,,Bi-Borough Director of Integrated Care,509.04
07/09/2023,1249232,Vincentian Care Plus,,Bi-Borough Director of Integrated Care,1266.96
07/09/2023,1249232,Vincentian Care Plus,,Bi-Borough Director of Integrated Care,1375.8
07/09/2023,1249232,Vincentian Care Plus,,Bi-Borough Director of Integrated Care,901.43
07/09/2023,1249232,Vincentian Care Plus,,Bi-Borough Director of Integrated Care,593.88
07/09/2023,1249232,Vincentian Care Plus,,Bi-Borough Director of Integrated Care,883.9
07/09/2023,1249232,Vincentian Care Plus,,Bi-Borough Director of Integrated Care,1207.56
07/09/2023,1249232,Vincentian Care Plus,,Bi-Borough Director of Integrated Care,593.88
07/09/2023,1249232,Vincentian Care Plus,,Bi-Borough Director of Integrated Care,593.88
14/08/2023,1249291,Westminster Society,,Bi-Borough Director of Integrated Care,1575.36
28/09/2023,1249291,Westminster Society,,Bi-Borough Director of Integrated Care,1750.4
19/07/2023,1292491,17 Care UK Ltd T/a Care Spectrum,,Bi-Borough Director of Integrated Care,2260
16/08/2023,1292491,17 Care UK Ltd T/a Care Spectrum,,Bi-Borough Director of Integrated Care,2260
13/09/2023,1292491,17 Care UK Ltd T/a Care Spectrum,,Bi-Borough Director of Integrated Care,2260
19/07/2023,1309203,AGINCARE (SOUTHWARK) LIMITED,,Bi-Borough Director of Integrated Care,4885.72
19/07/2023,1309203,AGINCARE (SOUTHWARK) LIMITED,,Bi-Borough Director of Integrated Care,4885.72
16/08/2023,1309203,AGINCARE (SOUTHWARK) LIMITED,,Bi-Borough Director of Integrated Care,1800
16/08/2023,1309203,AGINCARE (SOUTHWARK) LIMITED,,Bi-Borough Director of Integrated Care,1800
13/09/2023,1309203,AGINCARE (SOUTHWARK) LIMITED,,Bi-Borough Director of Integrated Care,1800
13/09/2023,1309203,AGINCARE (SOUTHWARK) LIMITED,,Bi-Borough Director of Integrated Care,1800
19/07/2023,1243431,Abba Residential Home,,Bi-Borough Director of Integrated Care,3120
19/07/2023,1243431,Abba Residential Home,,Bi-Borough Director of Integrated Care,2472
19/07/2023,1243431,Abba Residential Home,,Bi-Borough Director of Integrated Care,2472
19/07/2023,1243431,Abba Residential Home,,Bi-Borough Director of Integrated Care,3544.56
19/07/2023,1243431,Abba Residential Home,,Bi-Borough Director of Integrated Care,1629.92
19/07/2023,1243431,Abba Residential Home,,Bi-Borough Director of Integrated Care,1629.92
31/07/2023,1243431,Abba Residential Home,,Bi-Borough Director of Integrated Care,3948
16/08/2023,1243431,Abba Residential Home,,Bi-Borough Director of Integrated Care,3120
16/08/2023,1243431,Abba Residential Home,,Bi-Borough Director of Integrated Care,2472
16/08/2023,1243431,Abba Residential Home,,Bi-Borough Director of Integrated Care,2472
16/08/2023,1243431,Abba Residential Home,,Bi-Borough Director of Integrated Care,3544.56
16/08/2023,1243431,Abba Residential Home,,Bi-Borough Director of Integrated Care,1629.92
16/08/2023,1243431,Abba Residential Home,,Bi-Borough Director of Integrated Care,1629.92
16/08/2023,1243431,Abba Residential Home,,Bi-Borough Director of Integrated Care,108029.05
13/09/2023,1243431,Abba Residential Home,,Bi-Borough Director of Integrated Care,2472
13/09/2023,1243431,Abba Residential Home,,Bi-Borough Director of Integrated Care,2472
13/09/2023,1243431,Abba Residential Home,,Bi-Borough Director of Integrated Care,3544.56
13/09/2023,1243431,Abba Residential Home,,Bi-Borough Director of Integrated Care,1629.92
13/09/2023,1243431,Abba Residential Home,,Bi-Borough Director of Integrated Care,1629.92
13/09/2023,1243431,Abba Residential Home,,Bi-Borough Director of Integrated Care,2457.2
13/09/2023,1243431,Abba Residential Home,,Bi-Borough Director of Integrated Care,3120
19/07/2023,1243851,Accomplish Group Ltd,,Bi-Borough Director of Integrated Care,3730
19/07/2023,1243851,Accomplish Group Ltd,,Bi-Borough Director of Integrated Care,3730
16/08/2023,1243851,Accomplish Group Ltd,,Bi-Borough Director of Integrated Care,3730
16/08/2023,1243851,Accomplish Group Ltd,,Bi-Borough Director of Integrated Care,3730
13/09/2023,1243851,Accomplish Group Ltd,,Bi-Borough Director of Integrated Care,3730
13/09/2023,1243851,Accomplish Group Ltd,,Bi-Borough Director of Integrated Care,3730
19/07/2023,1245982,Anchor Trust,,Bi-Borough Director of Integrated Care,1725.72
19/07/2023,1245982,Anchor Trust,,Bi-Borough Director of Integrated Care,1725.68
03/08/2023,1245982,Anchor Trust,,Bi-Borough Director of Integrated Care,1226.16
03/08/2023,1245982,Anchor Trust,,Bi-Borough Director of Integrated Care,1226.16
03/08/2023,1245982,Anchor Trust,,Bi-Borough Director of Integrated Care,2574.92
03/08/2023,1245982,Anchor Trust,,Bi-Borough Director of Integrated Care,1287.48
03/08/2023,1245982,Anchor Trust,,Bi-Borough Director of Integrated Care,1287.44
16/08/2023,1245982,Anchor Trust,,Bi-Borough Director of Integrated Care,1725.72
16/08/2023,1245982,Anchor Trust,,Bi-Borough Director of Integrated Care,1725.68
13/09/2023,1245982,Anchor Trust,,Bi-Borough Director of Integrated Care,1725.72
13/09/2023,1245982,Anchor Trust,,Bi-Borough Director of Integrated Care,1725.68
25/09/2023,1245982,Anchor Trust,,Bi-Borough Director of Integrated Care,2452.32
25/09/2023,1245982,Anchor Trust,,Bi-Borough Director of Integrated Care,2452.32
25/09/2023,1245982,Anchor Trust,,Bi-Borough Director of Integrated Care,5979.45
25/09/2023,1245982,Anchor Trust,,Bi-Borough Director of Integrated Care,2574.96
25/09/2023,1245982,Anchor Trust,,Bi-Borough Director of Integrated Care,2574.88
19/07/2023,1267747,Apex Care Homes Ltd,,Bi-Borough Director of Integrated Care,1710
19/07/2023,1267747,Apex Care Homes Ltd,,Bi-Borough Director of Integrated Care,1710
16/08/2023,1267747,Apex Care Homes Ltd,,Bi-Borough Director of Integrated Care,1710
16/08/2023,1267747,Apex Care Homes Ltd,,Bi-Borough Director of Integrated Care,1710
13/09/2023,1267747,Apex Care Homes Ltd,,Bi-Borough Director of Integrated Care,1710
13/09/2023,1267747,Apex Care Homes Ltd,,Bi-Borough Director of Integrated Care,1710
19/07/2023,1308781,Appcourt Ltd,,Bi-Borough Director of Integrated Care,4725
19/07/2023,1308781,Appcourt Ltd,,Bi-Borough Director of Integrated Care,4725
16/08/2023,1308781,Appcourt Ltd,,Bi-Borough Director of Integrated Care,2700
16/08/2023,1308781,Appcourt Ltd,,Bi-Borough Director of Integrated Care,2700
13/09/2023,1308781,Appcourt Ltd,,Bi-Borough Director of Integrated Care,2700
13/09/2023,1308781,Appcourt Ltd,,Bi-Borough Director of Integrated Care,2700
19/07/2023,1266508,Ashley Healthcare Ltd,,Bi-Borough Director of Integrated Care,1700
19/07/2023,1266508,Ashley Healthcare Ltd,,Bi-Borough Director of Integrated Care,1700
16/08/2023,1266508,Ashley Healthcare Ltd,,Bi-Borough Director of Integrated Care,1700
16/08/2023,1266508,Ashley Healthcare Ltd,,Bi-Borough Director of Integrated Care,1700
13/09/2023,1266508,Ashley Healthcare Ltd,,Bi-Borough Director of Integrated Care,1700
13/09/2023,1266508,Ashley Healthcare Ltd,,Bi-Borough Director of Integrated Care,1700
19/07/2023,1272521,Ashurst Lodge Healthcare Ltd,,Bi-Borough Director of Integrated Care,2492
19/07/2023,1272521,Ashurst Lodge Healthcare Ltd,,Bi-Borough Director of Integrated Care,2492
16/08/2023,1272521,Ashurst Lodge Healthcare Ltd,,Bi-Borough Director of Integrated Care,2492
16/08/2023,1272521,Ashurst Lodge Healthcare Ltd,,Bi-Borough Director of Integrated Care,2492
13/09/2023,1272521,Ashurst Lodge Healthcare Ltd,,Bi-Borough Director of Integrated Care,2492
13/09/2023,1272521,Ashurst Lodge Healthcare Ltd,,Bi-Borough Director of Integrated Care,2492
19/07/2023,1245072,Aster Healthcare Ltd,,Bi-Borough Director of Integrated Care,2521.44
19/07/2023,1245072,Aster Healthcare Ltd,,Bi-Borough Director of Integrated Care,2521.48
16/08/2023,1245072,Aster Healthcare Ltd,,Bi-Borough Director of Integrated Care,2139.4
16/08/2023,1245072,Aster Healthcare Ltd,,Bi-Borough Director of Integrated Care,2139.44
13/09/2023,1245072,Aster Healthcare Ltd,,Bi-Borough Director of Integrated Care,2139.44
13/09/2023,1245072,Aster Healthcare Ltd,,Bi-Borough Director of Integrated Care,2139.4
19/07/2023,1245074,Astra Homes Ltd,,Bi-Borough Director of Integrated Care,1600
19/07/2023,1245074,Astra Homes Ltd,,Bi-Borough Director of Integrated Care,1600
19/07/2023,1245074,Astra Homes Ltd,,Bi-Borough Director of Integrated Care,1750
19/07/2023,1245074,Astra Homes Ltd,,Bi-Borough Director of Integrated Care,1750
19/07/2023,1245074,Astra Homes Ltd,,Bi-Borough Director of Integrated Care,2196
19/07/2023,1245074,Astra Homes Ltd,,Bi-Borough Director of Integrated Care,2196
16/08/2023,1245074,Astra Homes Ltd,,Bi-Borough Director of Integrated Care,1600
16/08/2023,1245074,Astra Homes Ltd,,Bi-Borough Director of Integrated Care,1600
16/08/2023,1245074,Astra Homes Ltd,,Bi-Borough Director of Integrated Care,1750
16/08/2023,1245074,Astra Homes Ltd,,Bi-Borough Director of Integrated Care,1750
16/08/2023,1245074,Astra Homes Ltd,,Bi-Borough Director of Integrated Care,2196
16/08/2023,1245074,Astra Homes Ltd,,Bi-Borough Director of Integrated Care,2196
13/09/2023,1245074,Astra Homes Ltd,,Bi-Borough Director of Integrated Care,1600
13/09/2023,1245074,Astra Homes Ltd,,Bi-Borough Director of Integrated Care,1600
13/09/2023,1245074,Astra Homes Ltd,,Bi-Borough Director of Integrated Care,1750
13/09/2023,1245074,Astra Homes Ltd,,Bi-Borough Director of Integrated Care,1750
13/09/2023,1245074,Astra Homes Ltd,,Bi-Borough Director of Integrated Care,2196
13/09/2023,1245074,Astra Homes Ltd,,Bi-Borough Director of Integrated Care,2196
19/07/2023,1268910,BROWNLOW ENTERPRISES Ltd,,Bi-Borough Director of Integrated Care,1800
19/07/2023,1268910,BROWNLOW ENTERPRISES Ltd,,Bi-Borough Director of Integrated Care,1800
19/07/2023,1268910,BROWNLOW ENTERPRISES Ltd,,Bi-Borough Director of Integrated Care,3000
19/07/2023,1268910,BROWNLOW ENTERPRISES Ltd,,Bi-Borough Director of Integrated Care,2200
19/07/2023,1268910,BROWNLOW ENTERPRISES Ltd,,Bi-Borough Director of Integrated Care,2200
16/08/2023,1268910,BROWNLOW ENTERPRISES Ltd,,Bi-Borough Director of Integrated Care,3000
16/08/2023,1268910,BROWNLOW ENTERPRISES Ltd,,Bi-Borough Director of Integrated Care,2200
16/08/2023,1268910,BROWNLOW ENTERPRISES Ltd,,Bi-Borough Director of Integrated Care,2200
16/08/2023,1268910,BROWNLOW ENTERPRISES Ltd,,Bi-Borough Director of Integrated Care,1800
16/08/2023,1268910,BROWNLOW ENTERPRISES Ltd,,Bi-Borough Director of Integrated Care,1800
13/09/2023,1268910,BROWNLOW ENTERPRISES Ltd,,Bi-Borough Director of Integrated Care,3000
13/09/2023,1268910,BROWNLOW ENTERPRISES Ltd,,Bi-Borough Director of Integrated Care,2200
13/09/2023,1268910,BROWNLOW ENTERPRISES Ltd,,Bi-Borough Director of Integrated Care,2200
13/09/2023,1268910,BROWNLOW ENTERPRISES Ltd,,Bi-Borough Director of Integrated Care,1800
13/09/2023,1268910,BROWNLOW ENTERPRISES Ltd,,Bi-Borough Director of Integrated Care,1800
19/07/2023,1308031,Barchester Healthcare Homes LTD,,Bi-Borough Director of Integrated Care,2956
19/07/2023,1308031,Barchester Healthcare Homes LTD,,Bi-Borough Director of Integrated Care,2956
16/08/2023,1308031,Barchester Healthcare Homes LTD,,Bi-Borough Director of Integrated Care,2956
16/08/2023,1308031,Barchester Healthcare Homes LTD,,Bi-Borough Director of Integrated Care,2956
13/09/2023,1308031,Barchester Healthcare Homes LTD,,Bi-Borough Director of Integrated Care,2956
13/09/2023,1308031,Barchester Healthcare Homes LTD,,Bi-Borough Director of Integrated Care,2956
19/07/2023,1306813,Barchester Healthcare Homes Ltd,,Bi-Borough Director of Integrated Care,3300
19/07/2023,1306813,Barchester Healthcare Homes Ltd,,Bi-Borough Director of Integrated Care,3300
19/07/2023,1245081,Barchester Healthcare Homes Ltd,,Bi-Borough Director of Integrated Care,2720
19/07/2023,1245081,Barchester Healthcare Homes Ltd,,Bi-Borough Director of Integrated Care,2720
16/08/2023,1306813,Barchester Healthcare Homes Ltd,,Bi-Borough Director of Integrated Care,16760
16/08/2023,1306813,Barchester Healthcare Homes Ltd,,Bi-Borough Director of Integrated Care,16760
16/08/2023,1245081,Barchester Healthcare Homes Ltd,,Bi-Borough Director of Integrated Care,2720
16/08/2023,1245081,Barchester Healthcare Homes Ltd,,Bi-Borough Director of Integrated Care,2720
13/09/2023,1245081,Barchester Healthcare Homes Ltd,,Bi-Borough Director of Integrated Care,2720
13/09/2023,1245081,Barchester Healthcare Homes Ltd,,Bi-Borough Director of Integrated Care,2720
19/07/2023,1305073,PERSONAL PAYMENTS,,Bi-Borough Director of Integrated Care,5500
16/08/2023,1305073,PERSONAL PAYMENTS,,Bi-Borough Director of Integrated Care,5500
13/09/2023,1305073,PERSONAL PAYMENTS,,Bi-Borough Director of Integrated Care,5500
19/07/2023,1290868,Bondcare (London) Ltd Fern Gardens,,Bi-Borough Director of Integrated Care,5342.85
16/08/2023,1290868,Bondcare (London) Ltd Fern Gardens,,Bi-Borough Director of Integrated Care,4400
13/09/2023,1290868,Bondcare (London) Ltd Fern Gardens,,Bi-Borough Director of Integrated Care,4400
19/07/2023,1243455,Bupa Care Homes(BNH) Ltd - T/a,,Bi-Borough Director of Integrated Care,4419.16
16/08/2023,1243455,Bupa Care Homes(BNH) Ltd - T/a,,Bi-Borough Director of Integrated Care,4419.16
13/09/2023,1243455,Bupa Care Homes(BNH) Ltd - T/a,,Bi-Borough Director of Integrated Care,4419.16
16/08/2023,1266973,PERSONAL PAYMENTS,,Bi-Borough Director of Integrated Care,925.54
16/08/2023,1266973,PERSONAL PAYMENTS,,Bi-Borough Director of Integrated Care,925.55
13/09/2023,1266973,PERSONAL PAYMENTS,,Bi-Borough Director of Integrated Care,630
13/09/2023,1266973,PERSONAL PAYMENTS,,Bi-Borough Director of Integrated Care,3239.44
13/09/2023,1266973,PERSONAL PAYMENTS,,Bi-Borough Director of Integrated Care,3239.4
13/09/2023,1266973,PERSONAL PAYMENTS,,Bi-Borough Director of Integrated Care,630
19/07/2023,1286184,CTK RESIDENTIAL CARE HOMES 2 LTD,,Bi-Borough Director of Integrated Care,2400
19/07/2023,1286184,CTK RESIDENTIAL CARE HOMES 2 LTD,,Bi-Borough Director of Integrated Care,2400
16/08/2023,1286184,CTK RESIDENTIAL CARE HOMES 2 LTD,,Bi-Borough Director of Integrated Care,2400
16/08/2023,1286184,CTK RESIDENTIAL CARE HOMES 2 LTD,,Bi-Borough Director of Integrated Care,2400
13/09/2023,1286184,CTK RESIDENTIAL CARE HOMES 2 LTD,,Bi-Borough Director of Integrated Care,2400
13/09/2023,1286184,CTK RESIDENTIAL CARE HOMES 2 LTD,,Bi-Borough Director of Integrated Care,2400
19/07/2023,1259100,Care Assist Limited,,Bi-Borough Director of Integrated Care,3800
19/07/2023,1259100,Care Assist Limited,,Bi-Borough Director of Integrated Care,2102
19/07/2023,1259100,Care Assist Limited,,Bi-Borough Director of Integrated Care,2102
19/07/2023,1259100,Care Assist Limited,,Bi-Borough Director of Integrated Care,1150
19/07/2023,1259100,Care Assist Limited,,Bi-Borough Director of Integrated Care,1150
16/08/2023,1259100,Care Assist Limited,,Bi-Borough Director of Integrated Care,3800
